Workbook

Sheet Corridor
D1: Project | E1: Example 2 for Freeway Balancing
D2: Scenario | E2: Year 2012 AM Peak
D4: Location Information
D6: Corridor | E6: Corridor & Direction | F6: Link ID | G6: Affects 2+ Corridors? | H6: # of Lanes | I6: Type | J6: Location
D7: NB I-39/90 | E7: NB I-39/90 | F7: 1000 | H7: 3 | I7: mainline | J7: Beltline I/C to Badger I/C
E8: NB I-39/90 | F8: 1010 | G8: Primary | H8: 1 | I8: off | J8: off to WB WIS 30
E9: NB I-39/90 | F9: 1020 | G9: Primary | H9: 1 | I9: off | J9: off to EB I-94
E10: NB I-39/90 | F10: 1030 | H10: 3 | I10: mainline. | J10: b/n ramps
E11: NB I-39/90 | F11: 1040 | G11: Primary | H11: 1 | I11: on | J11: on from EB WIS 30
E12: NB I-39/90 | F12: 1050 | G12: Primary | H12: 2 | I12: on | J12: on from WB I-94
E13: NB I-39/90 | F13: 1060 | H13: 4 | I13: mainline | J13: Badger to US 151
E14: NB I-39/90 | F14: 1070 | H14: 2 | I14: CD | J14: off to US 151/High Crossing CD
E15: NB I-39/90 | F15: 1080 | H15: 1 | I15: off | J15: CD: off to High Crossing
E16: NB I-39/90 | F16: 1090 | G16: Primary | H16: 1 | I16: off | J16: CD: off to NB US 151
E17: NB I-39/90 | F17: 1100 | H17: 1 | I17: CD | J17: CD: b/n ramps
E18: NB I-39/90 | F18: 1110 | G18: Primary | H18: 1 | I18: on | J18: CD: on from NB US 151
E19: NB I-39/90 | F19: 1120 | G19: Primary | H19: 1 | I19: off | J19: CD: off to SB US 151
E20: NB I-39/90 | F20: 1130 | H20: 1 | I20: CD | J20: CD: b/n ramps
E21: NB I-39/90 | F21: 1140 | G21: Primary | H21: 1 | I21: on | J21: CD: on from SB US 151
E22: NB I-39/90 | F22: 1150 | H22: 3 | I22: mainline. | J22: b/n CD exit & CD entrance
E23: NB I-39/90 | F23: 1160 | H23: 1 | I23: CD | J23: on from CD
E24: NB I-39/90 | F24: 1170 | H24: 3 | I24: mainline | J24: US 151 to US 51
E25: NB I-39/90 | F25: 1180 | H25: 1 | I25: off | J25: off to US 51
E26: NB I-39/90 | F26: 1190 | H26: 1 | I26: on | J26: on from NB US 51
E27: NB I-39/90 | F27: 1200 | H27: 1 | I27: on | J27: on from SB US 51
E28: NB I-39/90 | F28: 1210 | H28: 3 | I28: mainline | J28: US 51 to WIS 19
D29: SB I-39/90 | E29: SB I-39/90 | F29: 2000 | H29: 3 | I29: mainline | J29: WIS 19 to US 51
E30: SB I-39/90 | F30: 2010 | H30: 1 | I30: off | J30: off to US 51
E31: SB I-39/90 | F31: 2020 | H31: 1 | I31: on | J31: on from SB US 51
E32: SB I-39/90 | F32: 2030 | H32: 1 | I32: on | J32: on from NB US 51
E33: SB I-39/90 | F33: 2040 | H33: 3 | I33: mainline | J33: US 51 to US 151
E34: SB I-39/90 | F34: 2050 | H34: 1 | I34: CD | J34: off to US 151 CD
E35: SB I-39/90 | F35: 2060 | G35: Primary | H35: 1 | I35: off | J35: CD: off to SB US 151
E36: SB I-39/90 | F36: 2070 | H36: 1 | I36: CD | J36: CD: b/n ramps
E37: SB I-39/90 | F37: 2080 | G37: Primary | H37: 1 | I37: on | J37: CD: on from SB US 151
E38: SB I-39/90 | F38: 2090 | G38: Primary | H38: 1 | I38: off | J38: CD: off to NB US 151
E39: SB I-39/90 | F39: 2100 | H39: 1 | I39: CD | J39: CD: b/n ramps
E40: SB I-39/90 | F40: 2110 | G40: Primary | H40: 1 | I40: on | J40: CD: on from NB US 151
E41: SB I-39/90 | F41: 2120 | H41: 3 | I41: mainline. | J41: b/n CD exit & CD entrance
E42: SB I-39/90 | F42: 2130 | H42: 1 | I42: CD | J42: on from CD
E43: SB I-39/90 | F43: 2140 | H43: 1 | I43: on | J43: on from High Crossing
E44: SB I-39/90 | F44: 2150 | H44: 4 | I44: mainline | J44: US 151 to Badger
E45: SB I-39/90 | F45: 2160 | G45: Primary | H45: 2 | I45: off | J45: off to EB I-94
E46: SB I-39/90 | F46: 2170 | G46: Primary | H46: 1 | I46: off | J46: off to WB WIS 30
E47: SB I-39/90 | F47: 2180 | H47: 3 | I47: mainline. | J47: b/n ramps
E48: SB I-39/90 | F48: 2190 | G48: Primary | H48: 1 | I48: on | J48: on from WB I-94
E49: SB I-39/90 | F49: 2200 | G49: Primary | H49: 1 | I49: on | J49: on from EB WIS 30
E50: SB I-39/90 | F50: 2210 | H50: 3 | I50: mainline | J50: Badger I/C to Beltline I/C
D51: NB US 151 | E51: NB US 151 | F51: 3000 | H51: 3 | I51: mainline | J51: Frontage Rd to I-39/90/94
E52: NB US 151 | F52: 2110 | G52: Secondary | H52: 1 | I52: off | J52: off to SB I-39/90/94
E53: NB US 151 | F53: 2090 | G53: Secondary | H53: 1 | I53: on | J53: on from SB I-39/90/94
E54: NB US 151 | F54: 1110 | G54: Secondary | H54: 1 | I54: off | J54: off to NB I-39/90/94
E55: NB US 151 | F55: 1090 | G55: Secondary | H55: 1 | I55: on | J55: on from NB I-39/90/94
E56: NB US 151 | F56: 3050 | H56: 3 | I56: mainline | J56: I-39/90/94 to American Pkwy
E57: NB US 151 | F57: 3060 | H57: 1 | I57: off | J57: off to EB American Pkwy
E58: NB US 151 | F58: 3070 | H58: 1 | I58: off | J58: off to WB American Pkwy
E59: NB US 151 | F59: 3080 | H59: 3 | I59: mainline. | J59: b/n ramps
E60: NB US 151 | F60: 3090 | H60: 1 | I60: on | J60: NB on from American Pkwy
E61: NB US 151 | F61: 3100 | H61: 3 | I61: mainline | J61: American Pkwy to Reiner Rd
D62: SB US 151 | E62: SB US 151 | F62: 4000 | H62: 3 | I62: mainline | J62: Reiner Rd to American Pkwy
E63: SB US 151 | F63: 4010 | H63: 1 | I63: CD | J63: off to American Pkwy/High Crossing
E64: SB US 151 | F64: 4020 | H64: 1 | I64: off | J64: off to WB American Pkwy
E65: SB US 151 | F65: 4030 | H65: 1 | I65: off | J65: off to High Crossing
E66: SB US 151 | F66: 4040 | H66: 1 | I66: on | J66: on from High Crossing
E67: SB US 151 | F67: 4050 | H67: 3 | I67: mainline. | J67: b/n ramps
E68: SB US 151 | F68: 4060 | H68: 1 | I68: on | J68: on from EB American Pkwy
E69: SB US 151 | F69: 4070 | H69: 3 | I69: mainline | J69: American Pkwy to I-39/90/94
E70: SB US 151 | F70: 1140 | G70: Secondary | H70: 1 | I70: off | J70: off to NB I-39/90/94
E71: SB US 151 | F71: 1120 | G71: Secondary | H71: 1 | I71: on | J71: on from NB I-39/90/94
E72: SB US 151 | F72: 2080 | G72: Secondary | H72: 1 | I72: off | J72: off to SB I-39/90/94
E73: SB US 151 | F73: 2060 | G73: Secondary | H73: 1 | I73: on | J73: on from SB I-39/90/94
E74: SB US 151 | F74: 4120 | H74: 3 | I74: mainline | J74: I-39/90/94 to Frontage Rd
D75: EB WIS 30 | E75: EB WIS 30 | F75: 5000 | H75: 3 | I75: mainline | J75: Fair Oaks to US 51
E76: EB WIS 30 | F76: 5010 | H76: 1 | I76: off | J76: off to US 51
E77: EB WIS 30 | F77: 5020 | H77: 1 | I77: on | J77: on from US 51
E78: EB WIS 30 | F78: 5030 | H78: 3 | I78: mainline | J78: US 51 to Thompson Dr
E79: EB WIS 30 | F79: 5040 | H79: 1 | I79: off | J79: off to Thompson Dr
E80: EB WIS 30 | F80: 5050 | H80: 2 | I80: mainline | J80: Thompson Dr to I-39/90
E81: EB WIS 30 | F81: 2200 | G81: Secondary | H81: 1 | I81: off | J81: off to SB I-39/90
E82: EB WIS 30 | F82: 1040 | G82: Secondary | H82: 1 | I82: off | J82: off to NB I-39/90
E83: EB WIS 30 | F83: 5080 | H83: 2 | I83: mainline | J83: EB WIS 30 to EB I-94
E84: EB WIS 30 | F84: 1020 | G84: Secondary | H84: 1 | I84: on | J84: on from NB I-39/90
E85: EB WIS 30 | F85: 2160 | G85: Secondary | H85: 2 | I85: on | J85: on from SB I-39/90/94
D86: EB I-94 | E86: EB I-94 | F86: 5110 | H86: 3 | I86: mainline | J86: Badger to County N
D87: WB I-94 | E87: WB I-94 | F87: 6000 | H87: 3 | I87: mainline | J87: County N to Badger
E88: WB I-94 | F88: 1050 | G88: Secondary | H88: 2 | I88: off | J88: off to NB I-39/90
E89: WB I-94 | F89: 2190 | G89: Secondary | H89: 1 | I89: off | J89: off to SB I-39/90
D90: WB WIS 30 | E90: WB WIS 30 | F90: 6030 | H90: 2 | I90: mainline | J90: EB I-94 to EB WIS 30
E91: WB WIS 30 | F91: 2170 | G91: Secondary | H91: 1 | I91: on | J91: on from SB I-39/90/94
E92: WB WIS 30 | F92: 1010 | G92: Secondary | H92: 1 | I92: on | J92: on from NB I-39/90
E93: WB WIS 30 | F93: 6060 | H93: 2 | I93: mainline | J93: Badger to Thompson Dr
E94: WB WIS 30 | F94: 6070 | H94: 1 | I94: on | J94: on from Thompson Dr
E95: WB WIS 30 | F95: 6080 | H95: 3 | I95: mainline | J95: Thompson Dr to US 51
E96: WB WIS 30 | F96: 6090 | H96: 1 | I96: off | J96: off to US 51
E97: WB WIS 30 | F97: 6100 | H97: 1 | I97: on | J97: on from US 51
E98: WB WIS 30 | F98: 6110 | H98: 3 | I98: mainline | J98: US 51 to Fair Oaks

Sheet Raw-Initial Volumes
D1: Project | E1: =project_name -> Example 2 for Freeway Balancing
D2: Scenario | E2: =scenario_name -> Year 2012 AM Peak
D6: Location Information | K6: Raw/Initial Traffic Volumes | AK6: Initial Input to Volume Balancing
K7: AADT | Q7: ATR | U7: V-SPOC | Y7: Tube Count 1 | AC7: Tube Count 2 | AG7: Turning Movement Count
C9: SORT | D9: Corridor | E9: Corridor & Direction | F9: Link ID | G9: Affects 2+ Corridors? | H9: # of Lanes | I9: Type | J9: Location | K9: TRADAS ID | L9: Year | M9: AADT | N9: K-factor | O9: Hourly Volume | P9: Comments | Q9: Date | R9: Hour | S9: Volume | T9: Comments | U9: Date | V9: Hour | W9: Volume | X9: Comments | Y9: Date | Z9: Hour | AA9: Volume | AB9: Comments | AC9: Date | AD9: Hour | AE9: Volume | AF9: Comments | AG9: Date | AH9: Hour | AI9: Volume | AJ9: Comments | AK9: Source / Comments | AL9: Raw Volume
C10: 1 | D10: NB I-39/90 | E10: NB I-39/90 | F10: 1000 | H10: 3 | I10: mainline | J10: Beltline I/C to Badger I/C | K10: 130004 | Q10: 2012-08-10 | R10: 07:00:00 | S10: 3710 | U10: 2012-08-10 | V10: 07:00:00 | W10: 3669 | AK10: ATR | AL10: =S10 -> 3710
C11: 2 | E11: NB I-39/90 | F11: 1010 | G11: Primary | H11: 1 | I11: off | J11: off to WB WIS 30 | Y11: 2010-03-01 | Z11: 07:00:00 | AA11: 504 | AK11: Tube | AL11: =AA11 -> 504
C12: 3 | E12: NB I-39/90 | F12: 1020 | G12: Primary | H12: 1 | I12: off | J12: off to EB I-94 | Y12: 2010-03-01 | Z12: 07:00:00 | AA12: 409 | AK12: Tube | AL12: =AA12 -> 409
C13: 4 | E13: NB I-39/90 | F13: 1030 | H13: 3 | I13: mainline. | J13: b/n ramps
C14: 5 | E14: NB I-39/90 | F14: 1040 | G14: Primary | H14: 1 | I14: on | J14: on from EB WIS 30 | Y14: 2010-03-01 | Z14: 07:00:00 | AA14: 441 | AK14: Tube | AL14: =AA14 -> 441
C15: 6 | E15: NB I-39/90 | F15: 1050 | G15: Primary | H15: 2 | I15: on | J15: on from WB I-94 | Y15: 2010-03-01 | Z15: 07:00:00 | AA15: 787 | AK15: Tube | AL15: =AA15 -> 787
C16: 7 | E16: NB I-39/90 | F16: 1060 | H16: 4 | I16: mainline | J16: Badger to US 151 | Q16: 2012-08-10 | R16: 07:00:00 | U16: 2012-08-10 | V16: 07:00:00 | W16: 3768
C17: 8 | E17: NB I-39/90 | F17: 1070 | H17: 2 | I17: CD | J17: off to US 151/High Crossing CD | U17: 2012-08-10 | V17: 07:00:00 | W17: 1843 | AK17: V-SPOC | AL17: =W17 -> 1843
C18: 9 | E18: NB I-39/90 | F18: 1080 | H18: 1 | I18: off | J18: CD: off to High Crossing | Y18: 2010-04-05 | Z18: 07:00:00 | AA18: 541 | AG18: 2012-05-05 | AH18: 07:00:00 | AI18: 535 | AK18: TM Count | AL18: =AA18 -> 541
C19: 10 | E19: NB I-39/90 | F19: 1090 | G19: Primary | H19: 1 | I19: off | J19: CD: off to NB US 151 | U19: 2012-08-10 | V19: 07:00:00 | W19: 1469 | Y19: 2010-04-05 | Z19: 07:00:00 | AA19: 1627 | AK19: V-SPOC | AL19: =W19 -> 1469
C20: 11 | E20: NB I-39/90 | F20: 1100 | H20: 1 | I20: CD | J20: CD: b/n ramps
C21: 12 | E21: NB I-39/90 | F21: 1110 | G21: Primary | H21: 1 | I21: on | J21: CD: on from NB US 151 | U21: 2012-08-10 | V21: 07:00:00 | W21: 102 | Y21: 2010-04-05 | Z21: 07:00:00 | AA21: 102 | AK21: V-SPOC | AL21: =W21 -> 102
C22: 13 | E22: NB I-39/90 | F22: 1120 | G22: Primary | H22: 1 | I22: off | J22: CD: off to SB US 151 | U22: 2012-08-10 | V22: 07:00:00 | W22: 154 | Y22: 2010-04-05 | Z22: 07:00:00 | AA22: 153 | AK22: V-SPOC | AL22: =W22 -> 154
C23: 14 | E23: NB I-39/90 | F23: 1130 | H23: 1 | I23: CD | J23: CD: b/n ramps
C24: 15 | E24: NB I-39/90 | F24: 1140 | G24: Primary | H24: 1 | I24: on | J24: CD: on from SB US 151 | Y24: 2010-04-05 | Z24: 07:00:00 | AA24: 171 | AK24: Tube | AL24: =AA24 -> 171
C25: 16 | E25: NB I-39/90 | F25: 1150 | H25: 3 | I25: mainline. | J25: b/n CD exit & CD entrance
C26: 17 | E26: NB I-39/90 | F26: 1160 | H26: 1 | I26: CD | J26: on from CD
C27: 18 | E27: NB I-39/90 | F27: 1170 | H27: 3 | I27: mainline | J27: US 151 to US 51 | K27: 130259 | Q27: 2012-08-10 | R27: 07:00:00 | S27: 1785 | U27: 2012-08-10 | V27: 07:00:00 | W27: 1790 | AK27: ATR | AL27: =S27 -> 1785
C28: 19 | E28: NB I-39/90 | F28: 1180 | H28: 1 | I28: off | J28: off to US 51 | U28: 2012-08-10 | V28: 07:00:00 | W28: 297 | Y28: 2010-05-06 | Z28: 07:00:00 | AA28: 349 | AG28: 2013-06-06 | AH28: 07:00:00 | AI28: 308 | AK28: V-SPOC | AL28: =W28 -> 297
C29: 20 | E29: NB I-39/90 | F29: 1190 | H29: 1 | I29: on | J29: on from NB US 51 | Y29: 2010-05-06 | Z29: 07:00:00 | AA29: 108 | AG29: 2013-06-06 | AH29: 07:00:00 | AI29: 143 | AK29: Tube | AL29: =AA29 -> 108
C30: 21 | E30: NB I-39/90 | F30: 1200 | H30: 1 | I30: on | J30: on from SB US 51 | Y30: 2010-05-06 | Z30: 07:00:00 | AA30: 39 | AG30: 2013-06-06 | AH30: 07:00:00 | AI30: 12 | AK30: Tube | AL30: =AA30 -> 39
C31: 22 | E31: NB I-39/90 | F31: 1210 | H31: 3 | I31: mainline | J31: US 51 to WIS 19 | Y31: 2008-01-01 | Z31: 07:00:00 | AA31: 964 | AB31: Too Old to use
C32: 23 | D32: SB I-39/90 | E32: SB I-39/90 | F32: 2000 | H32: 3 | I32: mainline | J32: WIS 19 to US 51 | Y32: 2008-01-01 | Z32: 07:00:00 | AA32: 1684 | AB32: Too Old to use
C33: 24 | E33: SB I-39/90 | F33: 2010 | H33: 1 | I33: off | J33: off to US 51 | Y33: 2010-05-06 | Z33: 07:00:00 | AA33: 911 | AG33: 2013-06-06 | AH33: 07:00:00 | AI33: 789 | AK33: Tube | AL33: =AA33 -> 911
C34: 25 | E34: SB I-39/90 | F34: 2020 | H34: 1 | I34: on | J34: on from SB US 51 | Y34: 2010-05-06 | Z34: 07:00:00 | AA34: 160 | AG34: 2013-06-06 | AH34: 07:00:00 | AI34: 269 | AK34: Tube | AL34: =AA34 -> 160
C35: 26 | E35: SB I-39/90 | F35: 2030 | H35: 1 | I35: on | J35: on from NB US 51 | Y35: 2010-05-06 | Z35: 07:00:00 | AA35: 153 | AG35: 2013-06-06 | AH35: 07:00:00 | AI35: 76 | AK35: Tube | AL35: =AA35 -> 153
C36: 27 | E36: SB I-39/90 | F36: 2040 | H36: 3 | I36: mainline | J36: US 51 to US 151 | K36: 130259 | Q36: 2012-08-10 | R36: 07:00:00 | S36: 1854 | U36: 2012-08-10 | V36: 07:00:00 | W36: 1875 | AK36: ATR | AL36: =S36 -> 1854
C37: 28 | E37: SB I-39/90 | F37: 2050 | H37: 1 | I37: CD | J37: off to US 151 CD
C38: 29 | E38: SB I-39/90 | F38: 2060 | G38: Primary | H38: 1 | I38: off | J38: CD: off to SB US 151 | U38: 2012-08-10 | V38: 07:00:00 | W38: 145 | Y38: 2010-08-08 | Z38: 07:00:00 | AA38: 154 | AK38: V-SPOC | AL38: =W38 -> 145
C39: 30 | E39: SB I-39/90 | F39: 2070 | H39: 1 | I39: CD | J39: CD: b/n ramps
C40: 31 | E40: SB I-39/90 | F40: 2080 | G40: Primary | H40: 1 | I40: on | J40: CD: on from SB US 151 | U40: 2012-08-10 | V40: 07:00:00 | W40: 1693 | Y40: 2010-08-08 | Z40: 07:00:00 | AA40: 1834 | AK40: V-SPOC | AL40: =W40 -> 1693
C41: 32 | E41: SB I-39/90 | F41: 2090 | G41: Primary | H41: 1 | I41: off | J41: CD: off to NB US 151 | U41: 2012-08-10 | V41: 07:00:00 | W41: 233 | Y41: 2010-08-08 | Z41: 07:00:00 | AA41: 266 | AK41: V-SPOC | AL41: =W41 -> 233
C42: 33 | E42: SB I-39/90 | F42: 2100 | H42: 1 | I42: CD | J42: CD: b/n ramps
C43: 34 | E43: SB I-39/90 | F43: 2110 | G43: Primary | H43: 1 | I43: on | J43: CD: on from NB US 151 | Y43: 2010-08-08 | Z43: 07:00:00 | AA43: 229 | AK43: Tube | AL43: =AA43 -> 229
C44: 35 | E44: SB I-39/90 | F44: 2120 | H44: 3 | I44: mainline. | J44: b/n CD exit & CD entrance
C45: 36 | E45: SB I-39/90 | F45: 2130 | H45: 1 | I45: CD | J45: on from CD
C46: 37 | E46: SB I-39/90 | F46: 2140 | H46: 1 | I46: on | J46: on from High Crossing | Y46: 2010-08-08 | Z46: 07:00:00 | AA46: 250 | AG46: 2012-05-05 | AH46: 07:00:00 | AI46: 260 | AK46: Tube | AL46: =AA46 -> 250
C47: 38 | E47: SB I-39/90 | F47: 2150 | H47: 4 | I47: mainline | J47: US 151 to Badger | U47: 2012-08-10 | V47: 07:00:00 | W47: 3564 | AK47: V-SPOC | AL47: =W47 -> 3564
C48: 39 | E48: SB I-39/90 | F48: 2160 | G48: Primary | H48: 2 | I48: off | J48: off to EB I-94 | Y48: 2010-03-01 | Z48: 07:00:00 | AA48: 442 | AK48: Tube | AL48: =AA48 -> 442
C49: 40 | E49: SB I-39/90 | F49: 2170 | G49: Primary | H49: 1 | I49: off | J49: off to WB WIS 30 | Y49: 2010-03-01 | Z49: 07:00:00 | AA49: 844 | AK49: Tube | AL49: =AA49 -> 844
C50: 41 | E50: SB I-39/90 | F50: 2180 | H50: 3 | I50: mainline. | J50: b/n ramps
C51: 42 | E51: SB I-39/90 | F51: 2190 | G51: Primary | H51: 1 | I51: on | J51: on from WB I-94 | Y51: 2010-03-01 | Z51: 07:00:00 | AA51: 912 | AK51: Tube | AL51: =AA51 -> 912
C52: 43 | E52: SB I-39/90 | F52: 2200 | G52: Primary | H52: 1 | I52: on | J52: on from EB WIS 30 | Y52: 2010-03-01 | Z52: 07:00:00 | AA52: 206 | AK52: Tube | AL52: =AA52 -> 206
C53: 44 | E53: SB I-39/90 | F53: 2210 | H53: 3 | I53: mainline | J53: Badger I/C to Beltline I/C | K53: 130004 | Q53: 2012-08-10 | R53: 07:00:00 | S53: 3536 | U53: 2012-08-10 | V53: 07:00:00 | W53: 3480 | AK53: ATR | AL53: =S53 -> 3536
C54: 45 | D54: NB US 151 | E54: NB US 151 | F54: 3000 | H54: 3 | I54: mainline | J54: Frontage Rd to I-39/90/94 | AG54: 2012-05-15 | AH54: 07:00:00 | AI54: 753 | AK54: TM Count | AL54: =AI54 -> 753
C55: 46 | E55: NB US 151 | F55: 2110 | G55: Secondary | H55: 1 | I55: off | J55: off to SB I-39/90/94 | K55: =IF(NOT(K43=""),K43,"") ->  | Y55: 2010-08-08 | Z55: 07:00:00 | AA55: 229 | AK55: =IF(NOT(AK43=""),AK43,"") -> Tube | AL55: 229
C56: 47 | E56: NB US 151 | F56: 2090 | G56: Secondary | H56: 1 | I56: on | J56: on from SB I-39/90/94 | K56: =IF(NOT(K41=""),K41,"") ->  | U56: 2012-08-10 | V56: 07:00:00 | W56: 233 | Y56: 2010-08-08 | Z56: 07:00:00 | AA56: 266 | AK56: =IF(NOT(AK41=""),AK41,"") -> V-SPOC | AL56: 233
C57: 48 | E57: NB US 151 | F57: 1110 | G57: Secondary | H57: 1 | I57: off | J57: off to NB I-39/90/94 | K57: =IF(NOT(K21=""),K21,"") ->  | U57: 2012-08-10 | V57: 07:00:00 | W57: 102 | Y57: 2010-04-05 | Z57: 07:00:00 | AA57: 102 | AK57: =IF(NOT(AK21=""),AK21,"") -> V-SPOC | AL57: 102
C58: 49 | E58: NB US 151 | F58: 1090 | G58: Secondary | H58: 1 | I58: on | J58: on from NB I-39/90/94 | K58: =IF(NOT(K19=""),K19,"") ->  | U58: 2012-08-10 | V58: 07:00:00 | W58: 1469 | Y58: 2010-04-05 | Z58: 07:00:00 | AA58: 1627 | AK58: =IF(NOT(AK19=""),AK19,"") -> V-SPOC | AL58: 1469
C59: 50 | E59: NB US 151 | F59: 3050 | H59: 3 | I59: mainline | J59: I-39/90/94 to American Pkwy | Y59: 2012-02-02 | AA59: 2177 | AK59: Tube | AL59: =AA59 -> 2177
C60: 51 | E60: NB US 151 | F60: 3060 | H60: 1 | I60: off | J60: off to EB American Pkwy | AA60: 155 | AK60: Tube | AL60: =AA60 -> 155
C61: 52 | E61: NB US 151 | F61: 3070 | H61: 1 | I61: off | J61: off to WB American Pkwy | AA61: 910 | AK61: Tube | AL61: =AA61 -> 910
C62: 53 | E62: NB US 151 | F62: 3080 | H62: 3 | I62: mainline. | J62: b/n ramps
C63: 54 | E63: NB US 151 | F63: 3090 | H63: 1 | I63: on | J63: NB on from American Pkwy | AA63: 129 | AK63: Tube | AL63: =AA63 -> 129
C64: 55 | E64: NB US 151 | F64: 3100 | H64: 3 | I64: mainline | J64: American Pkwy to Reiner Rd | K64: 136055 | Q64: 2012-08-10 | R64: 07:00:00 | S64: 1354 | AK64: ATR | AL64: =S64 -> 1354
C65: 56 | D65: SB US 151 | E65: SB US 151 | F65: 4000 | H65: 3 | I65: mainline | J65: Reiner Rd to American Pkwy | K65: 136055 | Q65: 2017-08-10 | R65: 07:00:00 | S65: 3622 | AK65: ATR | AL65: =S65 -> 3622
C66: 57 | E66: SB US 151 | F66: 4010 | H66: 1 | I66: CD | J66: off to American Pkwy/High Crossing
C67: 58 | E67: SB US 151 | F67: 4020 | H67: 1 | I67: off | J67: off to WB American Pkwy | Y67: 2010-09-09 | AA67: 271 | AK67: Tube | AL67: =AA67 -> 271
C68: 59 | E68: SB US 151 | F68: 4030 | H68: 1 | I68: off | J68: off to High Crossing | Y68: 2010-09-09 | AA68: 153 | AK68: Tube | AL68: 153
C69: 60 | E69: SB US 151 | F69: 4040 | H69: 1 | I69: on | J69: on from High Crossing | Y69: 2010-09-09 | AA69: 104 | AK69: Tube | AL69: 104
C70: 61 | E70: SB US 151 | F70: 4050 | H70: 3 | I70: mainline. | J70: b/n ramps
C71: 62 | E71: SB US 151 | F71: 4060 | H71: 1 | I71: on | J71: on from EB American Pkwy | Y71: 2010-09-09 | AA71: 349 | AK71: Tube | AL71: =AA71 -> 349
C72: 63 | E72: SB US 151 | F72: 4070 | H72: 3 | I72: mainline | J72: American Pkwy to I-39/90/94 | Y72: 2012-02-02 | AA72: 3382 | AK72: Tube | AL72: =AA72 -> 3382
C73: 64 | E73: SB US 151 | F73: 1140 | G73: Secondary | H73: 1 | I73: off | J73: off to NB I-39/90/94 | K73: =IF(NOT(K24=""),K24,"") ->  | Y73: 2010-04-05 | Z73: 07:00:00 | AA73: 171 | AK73: =IF(NOT(AK24=""),AK24,"") -> Tube | AL73: 171
C74: 65 | E74: SB US 151 | F74: 1120 | G74: Secondary | H74: 1 | I74: on | J74: on from NB I-39/90/94 | K74: =IF(NOT(K22=""),K22,"") ->  | U74: 2012-08-10 | V74: 07:00:00 | W74: 154 | Y74: 2010-04-05 | Z74: 07:00:00 | AA74: 153 | AK74: =IF(NOT(AK22=""),AK22,"") -> V-SPOC | AL74: 154
C75: 66 | E75: SB US 151 | F75: 2080 | G75: Secondary | H75: 1 | I75: off | J75: off to SB I-39/90/94 | K75: =IF(NOT(K40=""),K40,"") ->  | U75: 2012-08-10 | V75: 07:00:00 | W75: 1693 | Y75: 2010-08-08 | Z75: 07:00:00 | AA75: 1834 | AK75: =IF(NOT(AK40=""),AK40,"") -> V-SPOC | AL75: 1693
C76: 67 | E76: SB US 151 | F76: 2060 | G76: Secondary | H76: 1 | I76: on | J76: on from SB I-39/90/94 | K76: =IF(NOT(K38=""),K38,"") ->  | U76: 2012-08-10 | V76: 07:00:00 | W76: 145 | Y76: 2010-08-08 | Z76: 07:00:00 | AA76: 154 | AK76: =IF(NOT(AK38=""),AK38,"") -> V-SPOC | AL76: 145
C77: 68 | E77: SB US 151 | F77: 4120 | H77: 3 | I77: mainline | J77: I-39/90/94 to Frontage Rd | AG77: 2012-05-15 | AH77: 07:00:00 | AI77: 1835 | AK77: TM Count | AL77: =AI77 -> 1835
C78: 69 | D78: EB WIS 30 | E78: EB WIS 30 | F78: 5000 | H78: 3 | I78: mainline | J78: Fair Oaks to US 51 | U78: 2012-08-10 | V78: 07:00:00 | W78: 667 | X78: Seems low compared to tube count | Y78: 2012-11-01 | Z78: 07:00:00 | AA78: 1377 | AK78: Tube | AL78: =AA78 -> 1377
C79: 70 | E79: EB WIS 30 | F79: 5010 | H79: 1 | I79: off | J79: off to US 51 | U79: 2012-08-10 | V79: 07:00:00 | W79: 649 | Y79: 2010-09-09 | Z79: 07:00:00 | AA79: 646 | AG79: 2012-07-18 | AI79: 649 | AK79: V-SPOC | AL79: =AI79 -> 649
C80: 71 | E80: EB WIS 30 | F80: 5020 | H80: 1 | I80: on | J80: on from US 51 | U80: 2012-08-10 | V80: 07:00:00 | W80: 503 | Y80: 2010-09-09 | Z80: 07:00:00 | AA80: 576 | AG80: 2012-07-18 | AI80: 503 | AK80: V-SPOC | AL80: =AI80 -> 503
C81: 72 | E81: EB WIS 30 | F81: 5030 | H81: 3 | I81: mainline | J81: US 51 to Thompson Dr | Y81: 2010-03-01 | Z81: 07:00:00 | AA81: 1020
C82: 73 | E82: EB WIS 30 | F82: 5040 | H82: 1 | I82: off | J82: off to Thompson Dr | AG82: 2013-05-02 | AI82: 271 | AK82: TM Count | AL82: =AI82 -> 271
C83: 74 | E83: EB WIS 30 | F83: 5050 | H83: 2 | I83: mainline | J83: Thompson Dr to I-39/90
C84: 75 | E84: EB WIS 30 | F84: 2200 | G84: Secondary | H84: 1 | I84: off | J84: off to SB I-39/90 | K84: =IF(NOT(K52=""),K52,"") ->  | Y84: 2010-03-01 | Z84: 07:00:00 | AA84: 206 | AK84: =IF(NOT(AK52=""),AK52,"") -> Tube | AL84: 206
C85: 76 | E85: EB WIS 30 | F85: 1040 | G85: Secondary | H85: 1 | I85: off | J85: off to NB I-39/90 | K85: =IF(NOT(K14=""),K14,"") ->  | Y85: 2010-03-01 | Z85: 07:00:00 | AA85: 441 | AK85: =IF(NOT(AK14=""),AK14,"") -> Tube | AL85: 441
C86: 77 | E86: EB WIS 30 | F86: 5080 | H86: 2 | I86: mainline | J86: EB WIS 30 to EB I-94
C87: 78 | E87: EB WIS 30 | F87: 1020 | G87: Secondary | H87: 1 | I87: on | J87: on from NB I-39/90 | K87: =IF(NOT(K12=""),K12,"") ->  | Y87: 2010-03-01 | Z87: 07:00:00 | AA87: 409 | AK87: =IF(NOT(AK12=""),AK12,"") -> Tube | AL87: 409
C88: 79 | E88: EB WIS 30 | F88: 2160 | G88: Secondary | H88: 2 | I88: on | J88: on from SB I-39/90/94 | K88: =IF(NOT(K48=""),K48,"") ->  | Y88: 2010-03-01 | Z88: 07:00:00 | AA88: 442 | AK88: =IF(NOT(AK48=""),AK48,"") -> Tube | AL88: 442
C89: 80 | D89: EB I-94 | E89: EB I-94 | F89: 5110 | H89: 3 | I89: mainline | J89: Badger to County N | U89: 2012-08-10 | V89: 07:00:00 | W89: 1014 | Y89: 2010-09-09 | Z89: 07:00:00 | AA89: 612 | AB89: Seems lower than V-SPOC | AK89: V-SPOC | AL89: =W89 -> 1014
C90: 81 | D90: WB I-94 | E90: WB I-94 | F90: 6000 | H90: 3 | I90: mainline | J90: County N to Badger | U90: 2012-08-10 | V90: 07:00:00 | W90: 2444 | Y90: 2010-09-09 | Z90: 07:00:00 | AA90: 1589 | AB90: Seems lower than V-SPOC | AK90: V-SPOC | AL90: =W90 -> 2444
C91: 82 | E91: WB I-94 | F91: 1050 | G91: Secondary | H91: 2 | I91: off | J91: off to NB I-39/90 | K91: =IF(NOT(K15=""),K15,"") ->  | Y91: 2010-03-01 | Z91: 07:00:00 | AA91: 787 | AK91: =IF(NOT(AK15=""),AK15,"") -> Tube | AL91: 787
C92: 83 | E92: WB I-94 | F92: 2190 | G92: Secondary | H92: 1 | I92: off | J92: off to SB I-39/90 | K92: =IF(NOT(K51=""),K51,"") ->  | Y92: 2010-03-01 | Z92: 07:00:00 | AA92: 912 | AK92: =IF(NOT(AK51=""),AK51,"") -> Tube | AL92: 912
C93: 84 | D93: WB WIS 30 | E93: WB WIS 30 | F93: 6030 | H93: 2 | I93: mainline | J93: EB I-94 to EB WIS 30
C94: 85 | E94: WB WIS 30 | F94: 2170 | G94: Secondary | H94: 1 | I94: on | J94: on from SB I-39/90/94 | K94: =IF(NOT(K49=""),K49,"") ->  | Y94: 2010-03-01 | Z94: 07:00:00 | AA94: 844 | AK94: =IF(NOT(AK49=""),AK49,"") -> Tube | AL94: 844
C95: 86 | E95: WB WIS 30 | F95: 1010 | G95: Secondary | H95: 1 | I95: on | J95: on from NB I-39/90 | K95: =IF(NOT(K11=""),K11,"") ->  | Y95: 2010-03-01 | Z95: 07:00:00 | AA95: 504 | AK95: =IF(NOT(AK11=""),AK11,"") -> Tube | AL95: 504
C96: 87 | E96: WB WIS 30 | F96: 6060 | H96: 2 | I96: mainline | J96: Badger to Thompson Dr
C97: 88 | E97: WB WIS 30 | F97: 6070 | H97: 1 | I97: on | J97: on from Thompson Dr | AG97: 2013-05-02 | AI97: 1097 | AK97: TM Count | AL97: =AI97 -> 1097
C98: 89 | E98: WB WIS 30 | F98: 6080 | H98: 3 | I98: mainline | J98: Thompson Dr to US 51
C99: 90 | E99: WB WIS 30 | F99: 6090 | H99: 1 | I99: off | J99: off to US 51 | U99: 2012-08-10 | V99: 07:00:00 | W99: 1325 | Y99: 2010-09-09 | AA99: 1402 | AG99: 2012-07-18 | AI99: 1211 | AK99: V-SPOC | AL99: =W99 -> 1325
C100: 91 | E100: WB WIS 30 | F100: 6100 | H100: 1 | I100: on | J100: on from US 51 | U100: 2012-08-10 | V100: 07:00:00 | W100: 507 | Y100: 2010-09-09 | AA100: 534 | AG100: 2012-07-18 | AI100: 506 | AK100: V-SPOC | AL100: =W100 -> 507
C101: 92 | E101: WB WIS 30 | F101: 6110 | H101: 3 | I101: mainline | J101: US 51 to Fair Oaks | U101: 2012-08-10 | V101: 07:00:00 | W101: 2052 | X101: Seems low compared to tube count | Y101: 2012-11-01 | Z101: 07:00:00 | AA101: 2781 | AK101: Tube | AL101: =AA101 -> 2781

Sheet Balancing
B1: *** Do not sort this worksheet*** | I1: Green highlighted cells demonstrate user inputs. See the notes on each highlighted cell for more info
B2: Filtering is ok, but sorting may cause errors in the Solver volumes, cumulative sums, and potentially the FINAL volumes.
B3: Use the Diagnostics sheet for sorting data.
B4: Location Information | I4: Balancing
B5: Project | C5: =project_name -> Example 2 for Freeway Balancing | I5: User Inputs - Volumes | M5: Raw vs Balanced Comparison | P5: User Inputs - Solver | S5: Solver Objective & Penalty Functions
B6: Scenario | C6: =scenario_name -> Year 2012 AM Peak | M6: Also shown on "Diagnostics" worksheet | S6: =total_wRNSE*W8+sd_wRNSE*X8+total_wLargeRNSE*Y8+total_fixedPenalty -> 3 | T6: Solver Objective | X6: Large RNSE Penalty Threshold | Y6: 3 | AC6: Check for Blank Cells (show warning)
J7: Selected Raw/Initial Count used to start balancing | L7: Volume Type | U7: Network Weight | V7: Normalization Factors | W7: 117.720996 | X7: 2.486878883 | Y7: 0.1410793736 | AC7: TRUE
V8: theta: | W8: =1/MAX(normFactor_wRNSE, 0.1) -> 0.008494661397 | X8: =1/MAX(normFactor_SD, 0.1) -> 0.4021104554 | Y8: =1/MAX(normFactor_wLargeRNSE, 0.1) -> 7.088208393 | AC8: First Solver Run?
L9: Hourly | M9: Totals | N9: =SUM($N11:$N102) -> 105.1589603 | U9: =SUM($U11:$U102) -> 16.308 | W9: =SUM($W11:$W102) -> 117.720996 | X9: =_xlfn.STDEV.P($W11:$W102) -> 2.486878883 | Y9: =SUM($Y11:$Y102) -> 0.1410793736 | Z9: =SUM($Z11:$Z102) -> 0 | AC9: FALSE
B10: Corridor | C10: Corridor & Direction | D10: Link ID | E10: Affects 2+ Corridors? | F10: # of Lanes | G10: Location Type | H10: Location | I10: Ramp Sign | J10: Source / Comments | K10: Raw/Initial Volume | L10: FINAL Balanced Volumes | M10: Diff | N10: RNSE | O10: Comments | P10: Include as a Solver Variable? | Q10: Fixed Anchor | R10: Weight Adjustment | S10: Global Weight Rank | T10: Capacity Weight | U10: Weight Product (Cap. * Adj.) | V10: Global Weight | W10: Weighted RNSE Penalty | X10: Weighted SD Penalty | Y10: Weighted Large RNSE Penalty | Z10: Fixed Anchor Penalty | AC10: DO NOT USE OR DELETE THIS COLUMN
B11: NB I-39/90 | C11: NB I-39/90 | D11: 1000 | F11: 3 | G11: mainline | H11: Beltline I/C to Badger I/C | J11: =IF($K11>0,INDEX('Raw-Initial Volumes'!$AK$10:$AK$101,MATCH($D11,'Raw-Initial Volumes'!$F$10:$F$101,0)),"") -> ATR | K11: =INDEX('Raw-Initial Volumes'!$AL$10:$AL$101,MATCH($D11,'Raw-Initial Volumes'!$F$10:$F$101,0)) -> 3710 | L11: =3610 -> 3610 | M11: =IF(K11>0,L11-K11,0) -> -100 | N11: =IF(K11>0,SQRT(M11^2/K11),0) -> 1.641772758 | P11: TRUE | R11: 2 | S11: =IF(NOT($Q11="Fixed"),1+SUMPRODUCT(NOT($Q$11:$Q$102="Fixed")*($V$11:$V$102>$V11)),"") -> 1 | T11: =Capacity_Weight(K11/F11,capweight_scale) -> 0.6183333333 | U11: =T11*R11*IF(E11="Secondary",0,1) -> 1.236666667 | V11: =U11/network_weight*100 -> 7.583190254 | W11: =N11*V11 -> 12.44987518 | Y11: =V11*MAX(N11-$Y$6,0)^2 -> 0 | Z11: =IF(Q11="Fixed",999*(L11-K11)^2,0) -> 0
C12: NB I-39/90 | D12: 1010 | E12: Primary | F12: 1 | G12: off | H12: off to WB WIS 30 | I12: -1 | J12: =IF($K12>0,INDEX('Raw-Initial Volumes'!$AK$10:$AK$101,MATCH($D12,'Raw-Initial Volumes'!$F$10:$F$101,0)),"") -> Tube | K12: =INDEX('Raw-Initial Volumes'!$AL$10:$AL$101,MATCH($D12,'Raw-Initial Volumes'!$F$10:$F$101,0)) -> 504 | L12: =570 -> 570 | M12: 66 | N12: 2.939873661 | P12: TRUE | R12: 1 | S12: 24 | T12: 0.252 | U12: 0.252 | V12: 1.545253863 | W12: 4.542851132 | Y12: 0 | Z12: 0
C13: NB I-39/90 | D13: 1020 | E13: Primary | F13: 1 | G13: off | H13: off to EB I-94 | I13: -1 | J13: =IF($K13>0,INDEX('Raw-Initial Volumes'!$AK$10:$AK$101,MATCH($D13,'Raw-Initial Volumes'!$F$10:$F$101,0)),"") -> Tube | K13: =INDEX('Raw-Initial Volumes'!$AL$10:$AL$101,MATCH($D13,'Raw-Initial Volumes'!$F$10:$F$101,0)) -> 409 | L13: =470 -> 470 | M13: 61 | N13: 3.016255876 | P13: TRUE | R13: 1 | S13: 29 | T13: 0.2045 | U13: 0.2045 | V13: 1.253985774 | W13: 3.782341959 | Y13: 0.0003313701455 | Z13: 0
C14: NB I-39/90 | D14: 1030 | F14: 3 | G14: mainline. | H14: b/n ramps | J14: =IF($K14>0,INDEX('Raw-Initial Volumes'!$AK$10:$AK$101,MATCH($D14,'Raw-Initial Volumes'!$F$10:$F$101,0)),"") ->  | K14: =INDEX('Raw-Initial Volumes'!$AL$10:$AL$101,MATCH($D14,'Raw-Initial Volumes'!$F$10:$F$101,0)) -> 0 | L14: =L$11+SUMPRODUCT(L$12:L13,$I$12:$I13) -> 2570 | M14: 0 | N14: 0 | R14: 1 | S14: 54 | T14: 0 | U14: 0 | V14: 0 | W14: 0 | Y14: 0 | Z14: 0
C15: NB I-39/90 | D15: 1040 | E15: Primary | F15: 1 | G15: on | H15: on from EB WIS 30 | I15: 1 | J15: =IF($K15>0,INDEX('Raw-Initial Volumes'!$AK$10:$AK$101,MATCH($D15,'Raw-Initial Volumes'!$F$10:$F$101,0)),"") -> Tube | K15: =INDEX('Raw-Initial Volumes'!$AL$10:$AL$101,MATCH($D15,'Raw-Initial Volumes'!$F$10:$F$101,0)) -> 441 | L15: =380 -> 380 | M15: -61 | N15: 2.904761905 | P15: TRUE | R15: 1 | S15: 28 | T15: 0.2205 | U15: 0.2205 | V15: 1.35209713 | W15: 3.927520235 | Y15: 0 | Z15: 0
C16: NB I-39/90 | D16: 1050 | E16: Primary | F16: 2 | G16: on | H16: on from WB I-94 | I16: 1 | J16: =IF($K16>0,INDEX('Raw-Initial Volumes'!$AK$10:$AK$101,MATCH($D16,'Raw-Initial Volumes'!$F$10:$F$101,0)),"") -> Tube | K16: =INDEX('Raw-Initial Volumes'!$AL$10:$AL$101,MATCH($D16,'Raw-Initial Volumes'!$F$10:$F$101,0)) -> 787 | L16: =700 -> 700 | M16: -87 | N16: 3.101215075 | P16: TRUE | R16: 1 | S16: 30 | T16: 0.19675 | U16: 0.19675 | V16: 1.206463086 | W16: 3.741501509 | Y16: 0.01235960077 | Z16: 0
C17: NB I-39/90 | D17: 1060 | F17: 4 | G17: mainline | H17: Badger to US 151 | J17: =IF($K17>0,INDEX('Raw-Initial Volumes'!$AK$10:$AK$101,MATCH($D17,'Raw-Initial Volumes'!$F$10:$F$101,0)),"") ->  | K17: =INDEX('Raw-Initial Volumes'!$AL$10:$AL$101,MATCH($D17,'Raw-Initial Volumes'!$F$10:$F$101,0)) -> 0 | L17: =L$11+SUMPRODUCT(L$12:L16,$I$12:$I16) -> 3650 | M17: 0 | N17: 0 | R17: 1 | S17: 54 | T17: 0 | U17: 0 | V17: 0 | W17: 0 | Y17: 0 | Z17: 0
C18: NB I-39/90 | D18: 1070 | F18: 2 | G18: CD | H18: off to US 151/High Crossing CD | J18: =IF($K18>0,INDEX('Raw-Initial Volumes'!$AK$10:$AK$101,MATCH($D18,'Raw-Initial Volumes'!$F$10:$F$101,0)),"") -> V-SPOC | K18: =INDEX('Raw-Initial Volumes'!$AL$10:$AL$101,MATCH($D18,'Raw-Initial Volumes'!$F$10:$F$101,0)) -> 1843 | L18: =SUM(L19:L20,L23) -> 1970 | M18: 127 | N18: 2.958292097 | R18: 1 | S18: 11 | T18: 0.46075 | U18: 0.46075 | V18: 2.825300466 | W18: 8.358064041 | Y18: 0 | Z18: 0
C19: NB I-39/90 | D19: 1080 | F19: 1 | G19: off | H19: CD: off to High Crossing | I19: -1 | J19: =IF($K19>0,INDEX('Raw-Initial Volumes'!$AK$10:$AK$101,MATCH($D19,'Raw-Initial Volumes'!$F$10:$F$101,0)),"") -> TM Count | K19: =INDEX('Raw-Initial Volumes'!$AL$10:$AL$101,MATCH($D19,'Raw-Initial Volumes'!$F$10:$F$101,0)) -> 541 | L19: =470 -> 470 | M19: -71 | N19: 3.052528421 | P19: TRUE | R19: 1 | S19: 22 | T19: 0.2705 | U19: 0.2705 | V19: 1.658695119 | W19: 5.063213992 | Y19: 0.00457672961 | Z19: 0
C20: NB I-39/90 | D20: 1090 | E20: Primary | F20: 1 | G20: off | H20: CD: off to NB US 151 | I20: -1 | J20: =IF($K20>0,INDEX('Raw-Initial Volumes'!$AK$10:$AK$101,MATCH($D20,'Raw-Initial Volumes'!$F$10:$F$101,0)),"") -> V-SPOC | K20: =INDEX('Raw-Initial Volumes'!$AL$10:$AL$101,MATCH($D20,'Raw-Initial Volumes'!$F$10:$F$101,0)) -> 1469 | L20: =1380 -> 1380 | M20: -89 | N20: 2.322090324 | P20: TRUE | R20: 1 | S20: 4 | T20: 0.7345 | U20: 0.7345 | V20: 4.503924454 | W20: 10.45851939 | Y20: 0 | Z20: 0
C21: NB I-39/90 | D21: 1100 | F21: 1 | G21: CD | H21: CD: b/n ramps | J21: =IF($K21>0,INDEX('Raw-Initial Volumes'!$AK$10:$AK$101,MATCH($D21,'Raw-Initial Volumes'!$F$10:$F$101,0)),"") ->  | K21: =INDEX('Raw-Initial Volumes'!$AL$10:$AL$101,MATCH($D21,'Raw-Initial Volumes'!$F$10:$F$101,0)) -> 0 | L21: =L18-L19-L20 -> 120 | M21: 0 | N21: 0 | R21: 1 | S21: 54 | T21: 0 | U21: 0 | V21: 0 | W21: 0 | Y21: 0 | Z21: 0
C22: NB I-39/90 | D22: 1110 | E22: Primary | F22: 1 | G22: on | H22: CD: on from NB US 151 | I22: 1 | J22: =IF($K22>0,INDEX('Raw-Initial Volumes'!$AK$10:$AK$101,MATCH($D22,'Raw-Initial Volumes'!$F$10:$F$101,0)),"") -> V-SPOC | K22: =INDEX('Raw-Initial Volumes'!$AL$10:$AL$101,MATCH($D22,'Raw-Initial Volumes'!$F$10:$F$101,0)) -> 102 | L22: =70 -> 70 | M22: -32 | N22: 3.168472138 | P22: TRUE | R22: 1 | S22: 42 | T22: 0.1 | U22: 0.1 | V22: 0.6131959774 | W22: 1.942894369 | Y22: 0.01740425627 | Z22: 0
C23: NB I-39/90 | D23: 1120 | E23: Primary | F23: 1 | G23: off | H23: CD: off to SB US 151 | I23: -1 | J23: =IF($K23>0,INDEX('Raw-Initial Volumes'!$AK$10:$AK$101,MATCH($D23,'Raw-Initial Volumes'!$F$10:$F$101,0)),"") -> V-SPOC | K23: =INDEX('Raw-Initial Volumes'!$AL$10:$AL$101,MATCH($D23,'Raw-Initial Volumes'!$F$10:$F$101,0)) -> 154 | L23: =120 -> 120 | M23: -34 | N23: 2.739798078 | P23: TRUE | R23: 1 | S23: 42 | T23: 0.1 | U23: 0.1 | V23: 0.6131959774 | W23: 1.68003316 | Y23: 0 | Z23: 0
C24: NB I-39/90 | D24: 1130 | F24: 1 | G24: CD | H24: CD: b/n ramps | J24: =IF($K24>0,INDEX('Raw-Initial Volumes'!$AK$10:$AK$101,MATCH($D24,'Raw-Initial Volumes'!$F$10:$F$101,0)),"") ->  | K24: =INDEX('Raw-Initial Volumes'!$AL$10:$AL$101,MATCH($D24,'Raw-Initial Volumes'!$F$10:$F$101,0)) -> 0 | L24: =L21+L22-L23 -> 70 | M24: 0 | N24: 0 | R24: 1 | S24: 54 | T24: 0 | U24: 0 | V24: 0 | W24: 0 | Y24: 0 | Z24: 0
C25: NB I-39/90 | D25: 1140 | E25: Primary | F25: 1 | G25: on | H25: CD: on from SB US 151 | I25: 1 | J25: =IF($K25>0,INDEX('Raw-Initial Volumes'!$AK$10:$AK$101,MATCH($D25,'Raw-Initial Volumes'!$F$10:$F$101,0)),"") -> Tube | K25: =INDEX('Raw-Initial Volumes'!$AL$10:$AL$101,MATCH($D25,'Raw-Initial Volumes'!$F$10:$F$101,0)) -> 171 | L25: =130 -> 130 | M25: -41 | N25: 3.135348363 | P25: TRUE | R25: 1 | S25: 42 | T25: 0.1 | U25: 0.1 | V25: 0.6131959774 | W25: 1.922583004 | Y25: 0.01123324708 | Z25: 0
C26: NB I-39/90 | D26: 1150 | F26: 3 | G26: mainline. | H26: b/n CD exit & CD entrance | J26: =IF($K26>0,INDEX('Raw-Initial Volumes'!$AK$10:$AK$101,MATCH($D26,'Raw-Initial Volumes'!$F$10:$F$101,0)),"") ->  | K26: =INDEX('Raw-Initial Volumes'!$AL$10:$AL$101,MATCH($D26,'Raw-Initial Volumes'!$F$10:$F$101,0)) -> 0 | L26: =L17-L18 -> 1680 | M26: 0 | N26: 0 | R26: 1 | S26: 54 | T26: 0 | U26: 0 | V26: 0 | W26: 0 | Y26: 0 | Z26: 0
C27: NB I-39/90 | D27: 1160 | F27: 1 | G27: CD | H27: on from CD | J27: =IF($K27>0,INDEX('Raw-Initial Volumes'!$AK$10:$AK$101,MATCH($D27,'Raw-Initial Volumes'!$F$10:$F$101,0)),"") ->  | K27: =INDEX('Raw-Initial Volumes'!$AL$10:$AL$101,MATCH($D27,'Raw-Initial Volumes'!$F$10:$F$101,0)) -> 0 | L27: =SUM(L22,L25) -> 200 | M27: 0 | N27: 0 | R27: 1 | S27: 54 | T27: 0 | U27: 0 | V27: 0 | W27: 0 | Y27: 0 | Z27: 0
C28: NB I-39/90 | D28: 1170 | F28: 3 | G28: mainline | H28: US 151 to US 51 | J28: =IF($K28>0,INDEX('Raw-Initial Volumes'!$AK$10:$AK$101,MATCH($D28,'Raw-Initial Volumes'!$F$10:$F$101,0)),"") -> ATR | K28: =INDEX('Raw-Initial Volumes'!$AL$10:$AL$101,MATCH($D28,'Raw-Initial Volumes'!$F$10:$F$101,0)) -> 1785 | L28: =L$11+SUMPRODUCT(L$12:L27,$I$12:$I27) -> 1880 | M28: 95 | N28: 2.248560075 | R28: 3 | S28: 2 | T28: 0.2975 | U28: 0.8925 | V28: 5.472774099 | W28: 12.30586134 | Y28: 0 | Z28: 0
C29: NB I-39/90 | D29: 1180 | F29: 1 | G29: off | H29: off to US 51 | I29: -1 | J29: =IF($K29>0,INDEX('Raw-Initial Volumes'!$AK$10:$AK$101,MATCH($D29,'Raw-Initial Volumes'!$F$10:$F$101,0)),"") -> V-SPOC | K29: =INDEX('Raw-Initial Volumes'!$AL$10:$AL$101,MATCH($D29,'Raw-Initial Volumes'!$F$10:$F$101,0)) -> 297 | L29: =300 -> 300 | M29: 3 | N29: 0.174077656 | P29: TRUE | R29: 1 | S29: 33 | T29: 0.1485 | U29: 0.1485 | V29: 0.9105960265 | W29: 0.1585144218 | Y29: 0 | Z29: 0
C30: NB I-39/90 | D30: 1190 | F30: 1 | G30: on | H30: on from NB US 51 | I30: 1 | J30: =IF($K30>0,INDEX('Raw-Initial Volumes'!$AK$10:$AK$101,MATCH($D30,'Raw-Initial Volumes'!$F$10:$F$101,0)),"") -> Tube | K30: =INDEX('Raw-Initial Volumes'!$AL$10:$AL$101,MATCH($D30,'Raw-Initial Volumes'!$F$10:$F$101,0)) -> 108 | L30: =110 -> 110 | M30: 2 | N30: 0.1924500897 | P30: TRUE | R30: 1 | S30: 42 | T30: 0.1 | U30: 0.1 | V30: 0.6131959774 | W30: 0.1180096209 | Y30: 0 | Z30: 0
C31: NB I-39/90 | D31: 1200 | F31: 1 | G31: on | H31: on from SB US 51 | I31: 1 | J31: =IF($K31>0,INDEX('Raw-Initial Volumes'!$AK$10:$AK$101,MATCH($D31,'Raw-Initial Volumes'!$F$10:$F$101,0)),"") -> Tube | K31: =INDEX('Raw-Initial Volumes'!$AL$10:$AL$101,MATCH($D31,'Raw-Initial Volumes'!$F$10:$F$101,0)) -> 39 | L31: =40 -> 40 | M31: 1 | N31: 0.1601281538 | P31: TRUE | R31: 1 | S31: 42 | T31: 0.1 | U31: 0.1 | V31: 0.6131959774 | W31: 0.09818993979 | Y31: 0 | Z31: 0
C32: NB I-39/90 | D32: 1210 | F32: 3 | G32: mainline | H32: US 51 to WIS 19 | J32: =IF($K32>0,INDEX('Raw-Initial Volumes'!$AK$10:$AK$101,MATCH($D32,'Raw-Initial Volumes'!$F$10:$F$101,0)),"") ->  | K32: =INDEX('Raw-Initial Volumes'!$AL$10:$AL$101,MATCH($D32,'Raw-Initial Volumes'!$F$10:$F$101,0)) -> 0 | L32: =L$11+SUMPRODUCT(L$12:L31,$I$12:$I31) -> 1730 | M32: 0 | N32: 0 | R32: 1 | S32: 54 | T32: 0 | U32: 0 | V32: 0 | W32: 0 | Y32: 0 | Z32: 0
B33: SB I-39/90 | C33: SB I-39/90 | D33: 2000 | F33: 3 | G33: mainline | H33: WIS 19 to US 51 | J33: =IF($K33>0,INDEX('Raw-Initial Volumes'!$AK$10:$AK$101,MATCH($D33,'Raw-Initial Volumes'!$F$10:$F$101,0)),"") ->  | K33: =INDEX('Raw-Initial Volumes'!$AL$10:$AL$101,MATCH($D33,'Raw-Initial Volumes'!$F$10:$F$101,0)) -> 0 | L33: =2450 -> 2450 | M33: 0 | N33: 0 | P33: TRUE | R33: 1 | S33: 54 | T33: 0 | U33: 0 | V33: 0 | W33: 0 | Y33: 0 | Z33: 0
C34: SB I-39/90 | D34: 2010 | F34: 1 | G34: off | H34: off to US 51 | I34: -1 | J34: =IF($K34>0,INDEX('Raw-Initial Volumes'!$AK$10:$AK$101,MATCH($D34,'Raw-Initial Volumes'!$F$10:$F$101,0)),"") -> Tube | K34: =INDEX('Raw-Initial Volumes'!$AL$10:$AL$101,MATCH($D34,'Raw-Initial Volumes'!$F$10:$F$101,0)) -> 911 | L34: =910 -> 910 | M34: -1 | N34: 0.0331314781 | P34: TRUE | R34: 1 | S34: 13 | T34: 0.4555 | U34: 0.4555 | V34: 2.793107677 | W34: 0.09253978583 | Y34: 0 | Z34: 0
C35: SB I-39/90 | D35: 2020 | F35: 1 | G35: on | H35: on from SB US 51 | I35: 1 | J35: =IF($K35>0,INDEX('Raw-Initial Volumes'!$AK$10:$AK$101,MATCH($D35,'Raw-Initial Volumes'!$F$10:$F$101,0)),"") -> Tube | K35: =INDEX('Raw-Initial Volumes'!$AL$10:$AL$101,MATCH($D35,'Raw-Initial Volumes'!$F$10:$F$101,0)) -> 160 | L35: =160 -> 160 | M35: 0 | N35: 0 | P35: TRUE | R35: 1 | S35: 42 | T35: 0.1 | U35: 0.1 | V35: 0.6131959774 | W35: 0 | Y35: 0 | Z35: 0
C36: SB I-39/90 | D36: 2030 | F36: 1 | G36: on | H36: on from NB US 51 | I36: 1 | J36: =IF($K36>0,INDEX('Raw-Initial Volumes'!$AK$10:$AK$101,MATCH($D36,'Raw-Initial Volumes'!$F$10:$F$101,0)),"") -> Tube | K36: =INDEX('Raw-Initial Volumes'!$AL$10:$AL$101,MATCH($D36,'Raw-Initial Volumes'!$F$10:$F$101,0)) -> 153 | L36: =150 -> 150 | M36: -3 | N36: 0.242535625 | P36: TRUE | R36: 1 | S36: 42 | T36: 0.1 | U36: 0.1 | V36: 0.6131959774 | W36: 0.1487218697 | Y36: 0 | Z36: 0
C37: SB I-39/90 | D37: 2040 | F37: 3 | G37: mainline | H37: US 51 to US 151 | J37: =IF($K37>0,INDEX('Raw-Initial Volumes'!$AK$10:$AK$101,MATCH($D37,'Raw-Initial Volumes'!$F$10:$F$101,0)),"") -> ATR | K37: =INDEX('Raw-Initial Volumes'!$AL$10:$AL$101,MATCH($D37,'Raw-Initial Volumes'!$F$10:$F$101,0)) -> 1854 | L37: =$L$33+SUMPRODUCT($L$34:L36,$I$34:I36) -> 1850 | M37: -4 | N37: 0.09289773524 | R37: 1 | S37: 20 | T37: 0.309 | U37: 0.309 | V37: 1.89477557 | W37: 0.1760203593 | Y37: 0 | Z37: 0
C38: SB I-39/90 | D38: 2050 | F38: 1 | G38: CD | H38: off to US 151 CD | J38: =IF($K38>0,INDEX('Raw-Initial Volumes'!$AK$10:$AK$101,MATCH($D38,'Raw-Initial Volumes'!$F$10:$F$101,0)),"") ->  | K38: =INDEX('Raw-Initial Volumes'!$AL$10:$AL$101,MATCH($D38,'Raw-Initial Volumes'!$F$10:$F$101,0)) -> 0 | L38: =SUM(L39,L42) -> 400 | M38: 0 | N38: 0 | R38: 1 | S38: 54 | T38: 0 | U38: 0 | V38: 0 | W38: 0 | Y38: 0 | Z38: 0
C39: SB I-39/90 | D39: 2060 | E39: Primary | F39: 1 | G39: off | H39: CD: off to SB US 151 | I39: -1 | J39: =IF($K39>0,INDEX('Raw-Initial Volumes'!$AK$10:$AK$101,MATCH($D39,'Raw-Initial Volumes'!$F$10:$F$101,0)),"") -> V-SPOC | K39: =INDEX('Raw-Initial Volumes'!$AL$10:$AL$101,MATCH($D39,'Raw-Initial Volumes'!$F$10:$F$101,0)) -> 145 | L39: =140 -> 140 | M39: -5 | N39: 0.4152273993 | P39: TRUE | R39: 1 | S39: 42 | T39: 0.1 | U39: 0.1 | V39: 0.6131959774 | W39: 0.254615771 | Y39: 0 | Z39: 0
C40: SB I-39/90 | D40: 2070 | F40: 1 | G40: CD | H40: CD: b/n ramps | J40: =IF($K40>0,INDEX('Raw-Initial Volumes'!$AK$10:$AK$101,MATCH($D40,'Raw-Initial Volumes'!$F$10:$F$101,0)),"") ->  | K40: =INDEX('Raw-Initial Volumes'!$AL$10:$AL$101,MATCH($D40,'Raw-Initial Volumes'!$F$10:$F$101,0)) -> 0 | L40: =L38-L39 -> 260 | M40: 0 | N40: 0 | R40: 1 | S40: 54 | T40: 0 | U40: 0 | V40: 0 | W40: 0 | Y40: 0 | Z40: 0
C41: SB I-39/90 | D41: 2080 | E41: Primary | F41: 1 | G41: on | H41: CD: on from SB US 151 | I41: 1 | J41: =IF($K41>0,INDEX('Raw-Initial Volumes'!$AK$10:$AK$101,MATCH($D41,'Raw-Initial Volumes'!$F$10:$F$101,0)),"") -> V-SPOC | K41: =INDEX('Raw-Initial Volumes'!$AL$10:$AL$101,MATCH($D41,'Raw-Initial Volumes'!$F$10:$F$101,0)) -> 1693 | L41: =1690 -> 1690 | M41: -3 | N41: 0.07291095314 | P41: TRUE | R41: 1 | S41: 3 | T41: 0.8465 | U41: 0.8465 | V41: 5.190703949 | W41: 0.3784591724 | Y41: 0 | Z41: 0
C42: SB I-39/90 | D42: 2090 | E42: Primary | F42: 1 | G42: off | H42: CD: off to NB US 151 | I42: -1 | J42: =IF($K42>0,INDEX('Raw-Initial Volumes'!$AK$10:$AK$101,MATCH($D42,'Raw-Initial Volumes'!$F$10:$F$101,0)),"") -> V-SPOC | K42: =INDEX('Raw-Initial Volumes'!$AL$10:$AL$101,MATCH($D42,'Raw-Initial Volumes'!$F$10:$F$101,0)) -> 233 | L42: =260 -> 260 | M42: 27 | N42: 1.768828812 | P42: TRUE | R42: 1 | S42: 38 | T42: 0.1165 | U42: 0.1165 | V42: 0.7143733137 | W42: 1.2636041 | Y42: 0 | Z42: 0
C43: SB I-39/90 | D43: 2100 | F43: 1 | G43: CD | H43: CD: b/n ramps | J43: =IF($K43>0,INDEX('Raw-Initial Volumes'!$AK$10:$AK$101,MATCH($D43,'Raw-Initial Volumes'!$F$10:$F$101,0)),"") ->  | K43: =INDEX('Raw-Initial Volumes'!$AL$10:$AL$101,MATCH($D43,'Raw-Initial Volumes'!$F$10:$F$101,0)) -> 0 | L43: =L40+L41-L42 -> 1690 | M43: =IF(K43>0,L43-K43,0) -> 0 | N43: =IF(K43>0,SQRT(M43^2/K43),0) -> 0 | R43: 1 | S43: =IF(NOT($Q43="Fixed"),1+SUMPRODUCT(NOT($Q$11:$Q$102="Fixed")*($V$11:$V$102>$V43)),"") -> 54 | T43: =Capacity_Weight(K43/F43,capweight_scale) -> 0 | U43: =T43*R43*IF(E43="Secondary",0,1) -> 0 | V43: =U43/network_weight*100 -> 0 | W43: =N43*V43 -> 0 | Y43: =V43*MAX(N43-$Y$6,0)^2 -> 0 | Z43: =IF(Q43="Fixed",999*(L43-K43)^2,0) -> 0
C44: SB I-39/90 | D44: 2110 | E44: Primary | F44: 1 | G44: on | H44: CD: on from NB US 151 | I44: 1 | J44: =IF($K44>0,INDEX('Raw-Initial Volumes'!$AK$10:$AK$101,MATCH($D44,'Raw-Initial Volumes'!$F$10:$F$101,0)),"") -> Tube | K44: =INDEX('Raw-Initial Volumes'!$AL$10:$AL$101,MATCH($D44,'Raw-Initial Volumes'!$F$10:$F$101,0)) -> 229 | L44: =210 -> 210 | M44: -19 | N44: 1.255555341 | P44: TRUE | R44: 1 | S44: 39 | T44: 0.1145 | U44: 0.1145 | V44: 0.7021093942 | W44: 0.8815371997 | Y44: 0 | Z44: 0
C45: SB I-39/90 | D45: 2120 | F45: 3 | G45: mainline. | H45: b/n CD exit & CD entrance | J45: =IF($K45>0,INDEX('Raw-Initial Volumes'!$AK$10:$AK$101,MATCH($D45,'Raw-Initial Volumes'!$F$10:$F$101,0)),"") ->  | K45: =INDEX('Raw-Initial Volumes'!$AL$10:$AL$101,MATCH($D45,'Raw-Initial Volumes'!$F$10:$F$101,0)) -> 0 | L45: =L37-L38 -> 1450 | M45: 0 | N45: 0 | R45: 1 | S45: 54 | T45: 0 | U45: 0 | V45: 0 | W45: 0 | Y45: 0 | Z45: 0
C46: SB I-39/90 | D46: 2130 | F46: 1 | G46: CD | H46: on from CD | J46: =IF($K46>0,INDEX('Raw-Initial Volumes'!$AK$10:$AK$101,MATCH($D46,'Raw-Initial Volumes'!$F$10:$F$101,0)),"") ->  | K46: =INDEX('Raw-Initial Volumes'!$AL$10:$AL$101,MATCH($D46,'Raw-Initial Volumes'!$F$10:$F$101,0)) -> 0 | L46: =SUM(L41,L44) -> 1900 | M46: 0 | N46: 0 | R46: 1 | S46: 54 | T46: 0 | U46: 0 | V46: 0 | W46: 0 | Y46: 0 | Z46: 0
C47: SB I-39/90 | D47: 2140 | F47: 1 | G47: on | H47: on from High Crossing | I47: 1 | J47: =IF($K47>0,INDEX('Raw-Initial Volumes'!$AK$10:$AK$101,MATCH($D47,'Raw-Initial Volumes'!$F$10:$F$101,0)),"") -> Tube | K47: =INDEX('Raw-Initial Volumes'!$AL$10:$AL$101,MATCH($D47,'Raw-Initial Volumes'!$F$10:$F$101,0)) -> 250 | L47: =250 -> 250 | M47: 0 | N47: 0 | P47: TRUE | R47: 1 | S47: 37 | T47: 0.125 | U47: 0.125 | V47: 0.7664949718 | W47: 0 | Y47: 0 | Z47: 0
C48: SB I-39/90 | D48: 2150 | F48: 4 | G48: mainline | H48: US 151 to Badger | J48: =IF($K48>0,INDEX('Raw-Initial Volumes'!$AK$10:$AK$101,MATCH($D48,'Raw-Initial Volumes'!$F$10:$F$101,0)),"") -> V-SPOC | K48: =INDEX('Raw-Initial Volumes'!$AL$10:$AL$101,MATCH($D48,'Raw-Initial Volumes'!$F$10:$F$101,0)) -> 3564 | L48: =L$33+SUMPRODUCT(L$34:L47,$I$34:$I47) -> 3600 | M48: 36 | N48: 0.6030226892 | R48: 1 | S48: 15 | T48: 0.4455 | U48: 0.4455 | V48: 2.731788079 | W48: 1.647330194 | Y48: 0 | Z48: 0
C49: SB I-39/90 | D49: 2160 | E49: Primary | F49: 2 | G49: off | H49: off to EB I-94 | I49: -1 | J49: =IF($K49>0,INDEX('Raw-Initial Volumes'!$AK$10:$AK$101,MATCH($D49,'Raw-Initial Volumes'!$F$10:$F$101,0)),"") -> Tube | K49: =INDEX('Raw-Initial Volumes'!$AL$10:$AL$101,MATCH($D49,'Raw-Initial Volumes'!$F$10:$F$101,0)) -> 442 | L49: =380 -> 380 | M49: -62 | N49: 2.949039264 | P49: TRUE | R49: 1 | S49: 40 | T49: 0.1105 | U49: 0.1105 | V49: 0.6775815551 | W49: 1.99821461 | Y49: 0 | Z49: 0
C50: SB I-39/90 | D50: 2170 | E50: Primary | F50: 1 | G50: off | H50: off to WB WIS 30 | I50: -1 | J50: =IF($K50>0,INDEX('Raw-Initial Volumes'!$AK$10:$AK$101,MATCH($D50,'Raw-Initial Volumes'!$F$10:$F$101,0)),"") -> Tube | K50: =INDEX('Raw-Initial Volumes'!$AL$10:$AL$101,MATCH($D50,'Raw-Initial Volumes'!$F$10:$F$101,0)) -> 844 | L50: =840 -> 840 | M50: -4 | N50: 0.1376856782 | P50: TRUE | R50: 1 | S50: 16 | T50: 0.422 | U50: 0.422 | V50: 2.587687025 | W50: 0.3562874429 | Y50: 0 | Z50: 0
C51: SB I-39/90 | D51: 2180 | F51: 3 | G51: mainline. | H51: b/n ramps | J51: =IF($K51>0,INDEX('Raw-Initial Volumes'!$AK$10:$AK$101,MATCH($D51,'Raw-Initial Volumes'!$F$10:$F$101,0)),"") ->  | K51: =INDEX('Raw-Initial Volumes'!$AL$10:$AL$101,MATCH($D51,'Raw-Initial Volumes'!$F$10:$F$101,0)) -> 0 | L51: =L$33+SUMPRODUCT(L$34:L50,$I$34:$I50) -> 2380 | M51: 0 | N51: 0 | R51: 1 | S51: 54 | T51: 0 | U51: 0 | V51: 0 | W51: 0 | Y51: 0 | Z51: 0
C52: SB I-39/90 | D52: 2190 | E52: Primary | F52: 1 | G52: on | H52: on from WB I-94 | I52: 1 | J52: =IF($K52>0,INDEX('Raw-Initial Volumes'!$AK$10:$AK$101,MATCH($D52,'Raw-Initial Volumes'!$F$10:$F$101,0)),"") -> Tube | K52: =INDEX('Raw-Initial Volumes'!$AL$10:$AL$101,MATCH($D52,'Raw-Initial Volumes'!$F$10:$F$101,0)) -> 912 | L52: =910 -> 910 | M52: -2 | N52: 0.06622661785 | P52: TRUE | R52: 1 | S52: 12 | T52: 0.456 | U52: 0.456 | V52: 2.796173657 | W52: 0.1851811242 | Y52: 0 | Z52: 0
C53: SB I-39/90 | D53: 2200 | E53: Primary | F53: 1 | G53: on | H53: on from EB WIS 30 | I53: 1 | J53: =IF($K53>0,INDEX('Raw-Initial Volumes'!$AK$10:$AK$101,MATCH($D53,'Raw-Initial Volumes'!$F$10:$F$101,0)),"") -> Tube | K53: =INDEX('Raw-Initial Volumes'!$AL$10:$AL$101,MATCH($D53,'Raw-Initial Volumes'!$F$10:$F$101,0)) -> 206 | L53: =240 -> 240 | M53: 34 | N53: 2.368892249 | P53: TRUE | R53: 1 | S53: 41 | T53: 0.103 | U53: 0.103 | V53: 0.6315918568 | W53: 1.496173054 | Y53: 0 | Z53: 0
C54: SB I-39/90 | D54: 2210 | F54: 3 | G54: mainline | H54: Badger I/C to Beltline I/C | J54: =IF($K54>0,INDEX('Raw-Initial Volumes'!$AK$10:$AK$101,MATCH($D54,'Raw-Initial Volumes'!$F$10:$F$101,0)),"") -> ATR | K54: =INDEX('Raw-Initial Volumes'!$AL$10:$AL$101,MATCH($D54,'Raw-Initial Volumes'!$F$10:$F$101,0)) -> 3536 | L54: =L$33+SUMPRODUCT(L$34:L53,$I$34:$I53) -> 3530 | M54: -6 | N54: 0.1009009191 | R54: 1 | S54: 7 | T54: 0.5893333333 | U54: 0.5893333333 | V54: 3.613768294 | W54: 0.3646325422 | Y54: 0 | Z54: 0
B55: NB US 151 | C55: NB US 151 | D55: 3000 | F55: 3 | G55: mainline | H55: Frontage Rd to I-39/90/94 | J55: =IF($K55>0,INDEX('Raw-Initial Volumes'!$AK$10:$AK$101,MATCH($D55,'Raw-Initial Volumes'!$F$10:$F$101,0)),"") -> TM Count | K55: =INDEX('Raw-Initial Volumes'!$AL$10:$AL$101,MATCH($D55,'Raw-Initial Volumes'!$F$10:$F$101,0)) -> 753 | L55: =820 -> 820 | M55: 67 | N55: 2.441615732 | P55: TRUE | R55: 1 | S55: 36 | T55: 0.1255 | U55: 0.1255 | V55: 0.7695609517 | W55: 1.878972127 | Y55: 0 | Z55: 0
C56: NB US 151 | D56: 2110 | E56: Secondary | F56: 1 | G56: off | H56: off to SB I-39/90/94 | I56: -1 | J56: =IF($K56>0,INDEX('Raw-Initial Volumes'!$AK$10:$AK$101,MATCH($D56,'Raw-Initial Volumes'!$F$10:$F$101,0)),"") -> Tube | K56: =INDEX('Raw-Initial Volumes'!$AL$10:$AL$101,MATCH($D56,'Raw-Initial Volumes'!$F$10:$F$101,0)) -> 229 | L56: =L44 -> 210 | M56: -19 | N56: 1.255555341 | R56: 1 | S56: 54 | T56: 0.1145 | U56: 0 | V56: 0 | W56: 0 | Y56: 0 | Z56: 0
C57: NB US 151 | D57: 2090 | E57: Secondary | F57: 1 | G57: on | H57: on from SB I-39/90/94 | I57: 1 | J57: =IF($K57>0,INDEX('Raw-Initial Volumes'!$AK$10:$AK$101,MATCH($D57,'Raw-Initial Volumes'!$F$10:$F$101,0)),"") -> V-SPOC | K57: =INDEX('Raw-Initial Volumes'!$AL$10:$AL$101,MATCH($D57,'Raw-Initial Volumes'!$F$10:$F$101,0)) -> 233 | L57: =L42 -> 260 | M57: 27 | N57: 1.768828812 | R57: 1 | S57: 54 | T57: 0.1165 | U57: 0 | V57: 0 | W57: 0 | Y57: 0 | Z57: 0
C58: NB US 151 | D58: 1110 | E58: Secondary | F58: 1 | G58: off | H58: off to NB I-39/90/94 | I58: -1 | J58: =IF($K58>0,INDEX('Raw-Initial Volumes'!$AK$10:$AK$101,MATCH($D58,'Raw-Initial Volumes'!$F$10:$F$101,0)),"") -> V-SPOC | K58: =INDEX('Raw-Initial Volumes'!$AL$10:$AL$101,MATCH($D58,'Raw-Initial Volumes'!$F$10:$F$101,0)) -> 102 | L58: =L22 -> 70 | M58: -32 | N58: 3.168472138 | R58: 1 | S58: 54 | T58: 0.1 | U58: 0 | V58: 0 | W58: 0 | Y58: 0 | Z58: 0
C59: NB US 151 | D59: 1090 | E59: Secondary | F59: 1 | G59: on | H59: on from NB I-39/90/94 | I59: 1 | J59: =IF($K59>0,INDEX('Raw-Initial Volumes'!$AK$10:$AK$101,MATCH($D59,'Raw-Initial Volumes'!$F$10:$F$101,0)),"") -> V-SPOC | K59: =INDEX('Raw-Initial Volumes'!$AL$10:$AL$101,MATCH($D59,'Raw-Initial Volumes'!$F$10:$F$101,0)) -> 1469 | L59: =L20 -> 1380 | M59: -89 | N59: 2.322090324 | R59: 1 | S59: 54 | T59: 0.7345 | U59: 0 | V59: 0 | W59: 0 | Y59: 0 | Z59: 0
C60: NB US 151 | D60: 3050 | F60: 3 | G60: mainline | H60: I-39/90/94 to American Pkwy | J60: =IF($K60>0,INDEX('Raw-Initial Volumes'!$AK$10:$AK$101,MATCH($D60,'Raw-Initial Volumes'!$F$10:$F$101,0)),"") -> Tube | K60: =INDEX('Raw-Initial Volumes'!$AL$10:$AL$101,MATCH($D60,'Raw-Initial Volumes'!$F$10:$F$101,0)) -> 2177 | L60: =L$55+SUMPRODUCT(L$56:L59,$I$56:$I59) -> 2180 | M60: 3 | N60: 0.06429719695 | R60: 1 | S60: 18 | T60: 0.3628333333 | U60: 0.3628333333 | V60: 2.224879405 | W60: 0.1430535093 | Y60: 0 | Z60: 0
C61: NB US 151 | D61: 3060 | F61: 1 | G61: off | H61: off to EB American Pkwy | I61: -1 | J61: =IF($K61>0,INDEX('Raw-Initial Volumes'!$AK$10:$AK$101,MATCH($D61,'Raw-Initial Volumes'!$F$10:$F$101,0)),"") -> Tube | K61: =INDEX('Raw-Initial Volumes'!$AL$10:$AL$101,MATCH($D61,'Raw-Initial Volumes'!$F$10:$F$101,0)) -> 155 | L61: =130 -> 130 | M61: -25 | N61: 2.008048322 | P61: TRUE | R61: 1 | S61: 42 | T61: 0.1 | U61: 0.1 | V61: 0.6131959774 | W61: 1.231327154 | Y61: 0 | Z61: 0
C62: NB US 151 | D62: 3070 | F62: 1 | G62: off | H62: off to WB American Pkwy | I62: -1 | J62: =IF($K62>0,INDEX('Raw-Initial Volumes'!$AK$10:$AK$101,MATCH($D62,'Raw-Initial Volumes'!$F$10:$F$101,0)),"") -> Tube | K62: =INDEX('Raw-Initial Volumes'!$AL$10:$AL$101,MATCH($D62,'Raw-Initial Volumes'!$F$10:$F$101,0)) -> 910 | L62: =910 -> 910 | M62: 0 | N62: 0 | P62: TRUE | R62: 1 | S62: 14 | T62: 0.455 | U62: 0.455 | V62: 2.790041697 | W62: 0 | Y62: 0 | Z62: 0
C63: NB US 151 | D63: 3080 | F63: 3 | G63: mainline. | H63: b/n ramps | J63: =IF($K63>0,INDEX('Raw-Initial Volumes'!$AK$10:$AK$101,MATCH($D63,'Raw-Initial Volumes'!$F$10:$F$101,0)),"") ->  | K63: =INDEX('Raw-Initial Volumes'!$AL$10:$AL$101,MATCH($D63,'Raw-Initial Volumes'!$F$10:$F$101,0)) -> 0 | L63: =L$55+SUMPRODUCT(L$56:L62,$I$56:$I62) -> 1140 | M63: 0 | N63: 0 | R63: 1 | S63: 54 | T63: 0 | U63: 0 | V63: 0 | W63: 0 | Y63: 0 | Z63: 0
C64: NB US 151 | D64: 3090 | F64: 1 | G64: on | H64: NB on from American Pkwy | I64: 1 | J64: =IF($K64>0,INDEX('Raw-Initial Volumes'!$AK$10:$AK$101,MATCH($D64,'Raw-Initial Volumes'!$F$10:$F$101,0)),"") -> Tube | K64: =INDEX('Raw-Initial Volumes'!$AL$10:$AL$101,MATCH($D64,'Raw-Initial Volumes'!$F$10:$F$101,0)) -> 129 | L64: =150 -> 150 | M64: 21 | N64: 1.848946903 | P64: TRUE | R64: 1 | S64: 42 | T64: 0.1 | U64: 0.1 | V64: 0.6131959774 | W64: 1.133766804 | Y64: 0 | Z64: 0
C65: NB US 151 | D65: 3100 | F65: 3 | G65: mainline | H65: American Pkwy to Reiner Rd | J65: =IF($K65>0,INDEX('Raw-Initial Volumes'!$AK$10:$AK$101,MATCH($D65,'Raw-Initial Volumes'!$F$10:$F$101,0)),"") -> ATR | K65: =INDEX('Raw-Initial Volumes'!$AL$10:$AL$101,MATCH($D65,'Raw-Initial Volumes'!$F$10:$F$101,0)) -> 1354 | L65: =L$55+SUMPRODUCT(L$56:L64,$I$56:$I64) -> 1290 | M65: -64 | N65: 1.739284561 | R65: 1 | S65: 27 | T65: 0.2256666667 | U65: 0.2256666667 | V65: 1.383778922 | W65: 2.406785315 | Y65: 0 | Z65: 0
B66: SB US 151 | C66: SB US 151 | D66: 4000 | F66: 3 | G66: mainline | H66: Reiner Rd to American Pkwy | J66: =IF($K66>0,INDEX('Raw-Initial Volumes'!$AK$10:$AK$101,MATCH($D66,'Raw-Initial Volumes'!$F$10:$F$101,0)),"") -> ATR | K66: =INDEX('Raw-Initial Volumes'!$AL$10:$AL$101,MATCH($D66,'Raw-Initial Volumes'!$F$10:$F$101,0)) -> 3622 | L66: =3550 -> 3550 | M66: -72 | N66: 1.196350054 | P66: TRUE | R66: 1 | S66: 6 | T66: 0.6036666667 | U66: 0.6036666667 | V66: 3.701659717 | W66: 4.428480802 | Y66: 0 | Z66: 0
C67: SB US 151 | D67: 4010 | F67: 1 | G67: CD | H67: off to American Pkwy/High Crossing | J67: =IF($K67>0,INDEX('Raw-Initial Volumes'!$AK$10:$AK$101,MATCH($D67,'Raw-Initial Volumes'!$F$10:$F$101,0)),"") ->  | K67: =INDEX('Raw-Initial Volumes'!$AL$10:$AL$101,MATCH($D67,'Raw-Initial Volumes'!$F$10:$F$101,0)) -> 0 | L67: =SUM(L68:L69) -> 510 | M67: 0 | N67: 0 | R67: 1 | S67: 54 | T67: 0 | U67: 0 | V67: 0 | W67: 0 | Y67: 0 | Z67: 0
C68: SB US 151 | D68: 4020 | F68: 1 | G68: off | H68: off to WB American Pkwy | I68: -1 | J68: =IF($K68>0,INDEX('Raw-Initial Volumes'!$AK$10:$AK$101,MATCH($D68,'Raw-Initial Volumes'!$F$10:$F$101,0)),"") -> Tube | K68: =INDEX('Raw-Initial Volumes'!$AL$10:$AL$101,MATCH($D68,'Raw-Initial Volumes'!$F$10:$F$101,0)) -> 271 | L68: =320 -> 320 | M68: 49 | N68: 2.976538022 | P68: TRUE | R68: 1 | S68: 34 | T68: 0.1355 | U68: 0.1355 | V68: 0.8308805494 | W68: 2.473147547 | Y68: 0 | Z68: 0
C69: SB US 151 | D69: 4030 | F69: 1 | G69: off | H69: off to High Crossing | I69: -1 | J69: =IF($K69>0,INDEX('Raw-Initial Volumes'!$AK$10:$AK$101,MATCH($D69,'Raw-Initial Volumes'!$F$10:$F$101,0)),"") -> Tube | K69: =INDEX('Raw-Initial Volumes'!$AL$10:$AL$101,MATCH($D69,'Raw-Initial Volumes'!$F$10:$F$101,0)) -> 153 | L69: =190 -> 190 | M69: 37 | N69: 2.991272709 | P69: TRUE | R69: 1 | S69: 42 | T69: 0.1 | U69: 0.1 | V69: 0.6131959774 | W69: 1.834236392 | Y69: 0 | Z69: 0
C70: SB US 151 | D70: 4040 | F70: 1 | G70: on | H70: on from High Crossing | I70: 1 | J70: =IF($K70>0,INDEX('Raw-Initial Volumes'!$AK$10:$AK$101,MATCH($D70,'Raw-Initial Volumes'!$F$10:$F$101,0)),"") -> Tube | K70: =INDEX('Raw-Initial Volumes'!$AL$10:$AL$101,MATCH($D70,'Raw-Initial Volumes'!$F$10:$F$101,0)) -> 104 | L70: =70 -> 70 | M70: -34 | N70: 3.333974297 | P70: TRUE | R70: 1 | S70: 42 | T70: 0.1 | U70: 0.1 | V70: 0.6131959774 | W70: 2.044379628 | Y70: 0.06839516267 | Z70: 0
C71: SB US 151 | D71: 4050 | F71: 3 | G71: mainline. | H71: b/n ramps | J71: =IF($K71>0,INDEX('Raw-Initial Volumes'!$AK$10:$AK$101,MATCH($D71,'Raw-Initial Volumes'!$F$10:$F$101,0)),"") ->  | K71: =INDEX('Raw-Initial Volumes'!$AL$10:$AL$101,MATCH($D71,'Raw-Initial Volumes'!$F$10:$F$101,0)) -> 0 | L71: =L$66+SUMPRODUCT(L$67:L70,$I$67:$I70) -> 3110 | M71: 0 | N71: 0 | R71: 1 | S71: 54 | T71: 0 | U71: 0 | V71: 0 | W71: 0 | Y71: 0 | Z71: 0
C72: SB US 151 | D72: 4060 | F72: 1 | G72: on | H72: on from EB American Pkwy | I72: 1 | J72: =IF($K72>0,INDEX('Raw-Initial Volumes'!$AK$10:$AK$101,MATCH($D72,'Raw-Initial Volumes'!$F$10:$F$101,0)),"") -> Tube | K72: =INDEX('Raw-Initial Volumes'!$AL$10:$AL$101,MATCH($D72,'Raw-Initial Volumes'!$F$10:$F$101,0)) -> 349 | L72: =290 -> 290 | M72: -59 | N72: 3.158197593 | P72: TRUE | R72: 1 | S72: 31 | T72: 0.1745 | U72: 0.1745 | V72: 1.070026981 | W72: 3.379356634 | Y72: 0.02677900704 | Z72: 0
C73: SB US 151 | D73: 4070 | F73: 3 | G73: mainline | H73: American Pkwy to I-39/90/94 | J73: =IF($K73>0,INDEX('Raw-Initial Volumes'!$AK$10:$AK$101,MATCH($D73,'Raw-Initial Volumes'!$F$10:$F$101,0)),"") -> Tube | K73: =INDEX('Raw-Initial Volumes'!$AL$10:$AL$101,MATCH($D73,'Raw-Initial Volumes'!$F$10:$F$101,0)) -> 3382 | L73: =L$66+SUMPRODUCT(L$67:L72,$I$67:$I72) -> 3400 | M73: 18 | N73: 0.3095178525 | R73: 1 | S73: 8 | T73: 0.5636666667 | U73: 0.5636666667 | V73: 3.456381326 | W73: 1.069811725 | Y73: 0 | Z73: 0
C74: SB US 151 | D74: 1140 | E74: Secondary | F74: 1 | G74: off | H74: off to NB I-39/90/94 | I74: -1 | J74: =IF($K74>0,INDEX('Raw-Initial Volumes'!$AK$10:$AK$101,MATCH($D74,'Raw-Initial Volumes'!$F$10:$F$101,0)),"") -> Tube | K74: =INDEX('Raw-Initial Volumes'!$AL$10:$AL$101,MATCH($D74,'Raw-Initial Volumes'!$F$10:$F$101,0)) -> 171 | L74: =L25 -> 130 | M74: -41 | N74: 3.135348363 | R74: 1 | S74: 54 | T74: 0.1 | U74: 0 | V74: 0 | W74: 0 | Y74: 0 | Z74: 0
C75: SB US 151 | D75: 1120 | E75: Secondary | F75: 1 | G75: on | H75: on from NB I-39/90/94 | I75: 1 | J75: =IF($K75>0,INDEX('Raw-Initial Volumes'!$AK$10:$AK$101,MATCH($D75,'Raw-Initial Volumes'!$F$10:$F$101,0)),"") -> V-SPOC | K75: =INDEX('Raw-Initial Volumes'!$AL$10:$AL$101,MATCH($D75,'Raw-Initial Volumes'!$F$10:$F$101,0)) -> 154 | L75: =L23 -> 120 | M75: =IF(K75>0,L75-K75,0) -> -34 | N75: =IF(K75>0,SQRT(M75^2/K75),0) -> 2.739798078 | R75: 1 | S75: =IF(NOT($Q75="Fixed"),1+SUMPRODUCT(NOT($Q$11:$Q$102="Fixed")*($V$11:$V$102>$V75)),"") -> 54 | T75: =Capacity_Weight(K75/F75,capweight_scale) -> 0.1 | U75: =T75*R75*IF(E75="Secondary",0,1) -> 0 | V75: =U75/network_weight*100 -> 0 | W75: =N75*V75 -> 0 | Y75: =V75*MAX(N75-$Y$6,0)^2 -> 0 | Z75: =IF(Q75="Fixed",999*(L75-K75)^2,0) -> 0
C76: SB US 151 | D76: 2080 | E76: Secondary | F76: 1 | G76: off | H76: off to SB I-39/90/94 | I76: -1 | J76: =IF($K76>0,INDEX('Raw-Initial Volumes'!$AK$10:$AK$101,MATCH($D76,'Raw-Initial Volumes'!$F$10:$F$101,0)),"") -> V-SPOC | K76: =INDEX('Raw-Initial Volumes'!$AL$10:$AL$101,MATCH($D76,'Raw-Initial Volumes'!$F$10:$F$101,0)) -> 1693 | L76: =L41 -> 1690 | M76: -3 | N76: 0.07291095314 | R76: 1 | S76: 54 | T76: 0.8465 | U76: 0 | V76: 0 | W76: 0 | Y76: 0 | Z76: 0
C77: SB US 151 | D77: 2060 | E77: Secondary | F77: 1 | G77: on | H77: on from SB I-39/90/94 | I77: 1 | J77: =IF($K77>0,INDEX('Raw-Initial Volumes'!$AK$10:$AK$101,MATCH($D77,'Raw-Initial Volumes'!$F$10:$F$101,0)),"") -> V-SPOC | K77: =INDEX('Raw-Initial Volumes'!$AL$10:$AL$101,MATCH($D77,'Raw-Initial Volumes'!$F$10:$F$101,0)) -> 145 | L77: =L39 -> 140 | M77: -5 | N77: 0.4152273993 | R77: 1 | S77: 54 | T77: 0.1 | U77: 0 | V77: 0 | W77: 0 | Y77: 0 | Z77: 0
C78: SB US 151 | D78: 4120 | F78: 3 | G78: mainline | H78: I-39/90/94 to Frontage Rd | J78: =IF($K78>0,INDEX('Raw-Initial Volumes'!$AK$10:$AK$101,MATCH($D78,'Raw-Initial Volumes'!$F$10:$F$101,0)),"") -> TM Count | K78: =INDEX('Raw-Initial Volumes'!$AL$10:$AL$101,MATCH($D78,'Raw-Initial Volumes'!$F$10:$F$101,0)) -> 1835 | L78: =L$66+SUMPRODUCT(L$67:L77,$I$67:$I77) -> 1840 | M78: 5 | N78: 0.1167217983 | R78: 1 | S78: 21 | T78: 0.3058333333 | U78: 0.3058333333 | V78: 1.875357698 | W78: 0.218895123 | Y78: 0 | Z78: 0
B79: EB WIS 30 | C79: EB WIS 30 | D79: 5000 | F79: 3 | G79: mainline | H79: Fair Oaks to US 51 | J79: =IF($K79>0,INDEX('Raw-Initial Volumes'!$AK$10:$AK$101,MATCH($D79,'Raw-Initial Volumes'!$F$10:$F$101,0)),"") -> Tube | K79: =INDEX('Raw-Initial Volumes'!$AL$10:$AL$101,MATCH($D79,'Raw-Initial Volumes'!$F$10:$F$101,0)) -> 1377 | L79: =1380 -> 1380 | M79: 3 | N79: 0.08084520835 | P79: TRUE | R79: 1 | S79: 26 | T79: 0.2295 | U79: 0.2295 | V79: 1.407284768 | W79: 0.1137722303 | Y79: 0 | Z79: 0
C80: EB WIS 30 | D80: 5010 | F80: 1 | G80: off | H80: off to US 51 | I80: -1 | J80: =IF($K80>0,INDEX('Raw-Initial Volumes'!$AK$10:$AK$101,MATCH($D80,'Raw-Initial Volumes'!$F$10:$F$101,0)),"") -> V-SPOC | K80: =INDEX('Raw-Initial Volumes'!$AL$10:$AL$101,MATCH($D80,'Raw-Initial Volumes'!$F$10:$F$101,0)) -> 649 | L80: =650 -> 650 | M80: 1 | N80: 0.0392534336 | P80: TRUE | R80: 1 | S80: 19 | T80: 0.3245 | U80: 0.3245 | V80: 1.989820947 | W80: 0.07810730441 | Y80: 0 | Z80: 0
C81: EB WIS 30 | D81: 5020 | F81: 1 | G81: on | H81: on from US 51 | I81: 1 | J81: =IF($K81>0,INDEX('Raw-Initial Volumes'!$AK$10:$AK$101,MATCH($D81,'Raw-Initial Volumes'!$F$10:$F$101,0)),"") -> V-SPOC | K81: =INDEX('Raw-Initial Volumes'!$AL$10:$AL$101,MATCH($D81,'Raw-Initial Volumes'!$F$10:$F$101,0)) -> 503 | L81: =500 -> 500 | M81: -3 | N81: 0.1337633886 | P81: TRUE | R81: 1 | S81: 25 | T81: 0.2515 | U81: 0.2515 | V81: 1.542187883 | W81: 0.2062882772 | Y81: 0 | Z81: 0
C82: EB WIS 30 | D82: 5030 | F82: 3 | G82: mainline | H82: US 51 to Thompson Dr | J82: =IF($K82>0,INDEX('Raw-Initial Volumes'!$AK$10:$AK$101,MATCH($D82,'Raw-Initial Volumes'!$F$10:$F$101,0)),"") ->  | K82: =INDEX('Raw-Initial Volumes'!$AL$10:$AL$101,MATCH($D82,'Raw-Initial Volumes'!$F$10:$F$101,0)) -> 0 | L82: =L$79+SUMPRODUCT(L$80:L81,$I$80:$I81) -> 1230 | M82: 0 | N82: 0 | R82: 1 | S82: 54 | T82: 0 | U82: 0 | V82: 0 | W82: 0 | Y82: 0 | Z82: 0
C83: EB WIS 30 | D83: 5040 | F83: 1 | G83: off | H83: off to Thompson Dr | I83: -1 | J83: =IF($K83>0,INDEX('Raw-Initial Volumes'!$AK$10:$AK$101,MATCH($D83,'Raw-Initial Volumes'!$F$10:$F$101,0)),"") -> TM Count | K83: =INDEX('Raw-Initial Volumes'!$AL$10:$AL$101,MATCH($D83,'Raw-Initial Volumes'!$F$10:$F$101,0)) -> 271 | L83: =270 -> 270 | M83: -1 | N83: 0.06074567392 | P83: TRUE | R83: 1 | S83: 34 | T83: 0.1355 | U83: 0.1355 | V83: 0.8308805494 | W83: 0.05047239892 | Y83: 0 | Z83: 0
C84: EB WIS 30 | D84: 5050 | F84: 2 | G84: mainline | H84: Thompson Dr to I-39/90 | J84: =IF($K84>0,INDEX('Raw-Initial Volumes'!$AK$10:$AK$101,MATCH($D84,'Raw-Initial Volumes'!$F$10:$F$101,0)),"") ->  | K84: =INDEX('Raw-Initial Volumes'!$AL$10:$AL$101,MATCH($D84,'Raw-Initial Volumes'!$F$10:$F$101,0)) -> 0 | L84: =L$79+SUMPRODUCT(L$80:L83,$I$80:$I83) -> 960 | M84: 0 | N84: 0 | R84: 1 | S84: 54 | T84: 0 | U84: 0 | V84: 0 | W84: 0 | Y84: 0 | Z84: 0
C85: EB WIS 30 | D85: 2200 | E85: Secondary | F85: 1 | G85: off | H85: off to SB I-39/90 | I85: -1 | J85: =IF($K85>0,INDEX('Raw-Initial Volumes'!$AK$10:$AK$101,MATCH($D85,'Raw-Initial Volumes'!$F$10:$F$101,0)),"") -> Tube | K85: =INDEX('Raw-Initial Volumes'!$AL$10:$AL$101,MATCH($D85,'Raw-Initial Volumes'!$F$10:$F$101,0)) -> 206 | L85: =L53 -> 240 | M85: 34 | N85: 2.368892249 | R85: 1 | S85: 54 | T85: 0.103 | U85: 0 | V85: 0 | W85: 0 | Y85: 0 | Z85: 0
C86: EB WIS 30 | D86: 1040 | E86: Secondary | F86: 1 | G86: off | H86: off to NB I-39/90 | I86: -1 | J86: =IF($K86>0,INDEX('Raw-Initial Volumes'!$AK$10:$AK$101,MATCH($D86,'Raw-Initial Volumes'!$F$10:$F$101,0)),"") -> Tube | K86: =INDEX('Raw-Initial Volumes'!$AL$10:$AL$101,MATCH($D86,'Raw-Initial Volumes'!$F$10:$F$101,0)) -> 441 | L86: =L15 -> 380 | M86: -61 | N86: 2.904761905 | R86: 1 | S86: 54 | T86: 0.2205 | U86: 0 | V86: 0 | W86: 0 | Y86: 0 | Z86: 0
C87: EB WIS 30 | D87: 5080 | F87: 2 | G87: mainline | H87: EB WIS 30 to EB I-94 | J87: =IF($K87>0,INDEX('Raw-Initial Volumes'!$AK$10:$AK$101,MATCH($D87,'Raw-Initial Volumes'!$F$10:$F$101,0)),"") ->  | K87: =INDEX('Raw-Initial Volumes'!$AL$10:$AL$101,MATCH($D87,'Raw-Initial Volumes'!$F$10:$F$101,0)) -> 0 | L87: =L$79+SUMPRODUCT(L$80:L86,$I$80:$I86) -> 340 | M87: 0 | N87: 0 | R87: 1 | S87: 54 | T87: 0 | U87: 0 | V87: 0 | W87: 0 | Y87: 0 | Z87: 0
C88: EB WIS 30 | D88: 1020 | E88: Secondary | F88: 1 | G88: on | H88: on from NB I-39/90 | I88: 1 | J88: =IF($K88>0,INDEX('Raw-Initial Volumes'!$AK$10:$AK$101,MATCH($D88,'Raw-Initial Volumes'!$F$10:$F$101,0)),"") -> Tube | K88: =INDEX('Raw-Initial Volumes'!$AL$10:$AL$101,MATCH($D88,'Raw-Initial Volumes'!$F$10:$F$101,0)) -> 409 | L88: =L13 -> 470 | M88: 61 | N88: 3.016255876 | R88: 1 | S88: 54 | T88: 0.2045 | U88: 0 | V88: 0 | W88: 0 | Y88: 0 | Z88: 0
C89: EB WIS 30 | D89: 2160 | E89: Secondary | F89: 2 | G89: on | H89: on from SB I-39/90/94 | I89: 1 | J89: =IF($K89>0,INDEX('Raw-Initial Volumes'!$AK$10:$AK$101,MATCH($D89,'Raw-Initial Volumes'!$F$10:$F$101,0)),"") -> Tube | K89: =INDEX('Raw-Initial Volumes'!$AL$10:$AL$101,MATCH($D89,'Raw-Initial Volumes'!$F$10:$F$101,0)) -> 442 | L89: =L49 -> 380 | M89: -62 | N89: 2.949039264 | R89: 1 | S89: 54 | T89: 0.1105 | U89: 0 | V89: 0 | W89: 0 | Y89: 0 | Z89: 0
B90: EB I-94 | C90: EB I-94 | D90: 5110 | F90: 3 | G90: mainline | H90: Badger to County N | J90: =IF($K90>0,INDEX('Raw-Initial Volumes'!$AK$10:$AK$101,MATCH($D90,'Raw-Initial Volumes'!$F$10:$F$101,0)),"") -> V-SPOC | K90: =INDEX('Raw-Initial Volumes'!$AL$10:$AL$101,MATCH($D90,'Raw-Initial Volumes'!$F$10:$F$101,0)) -> 1014 | L90: =1010 -> 1010 | M90: -4 | N90: 0.1256148586 | P90: TRUE | R90: 1 | S90: 32 | T90: 0.169 | U90: 0.169 | V90: 1.036301202 | W90: 0.1301748289 | Y90: 0 | Z90: 0
B91: WB I-94 | C91: WB I-94 | D91: 6000 | F91: 3 | G91: mainline | H91: County N to Badger | J91: =IF($K91>0,INDEX('Raw-Initial Volumes'!$AK$10:$AK$101,MATCH($D91,'Raw-Initial Volumes'!$F$10:$F$101,0)),"") -> V-SPOC | K91: =INDEX('Raw-Initial Volumes'!$AL$10:$AL$101,MATCH($D91,'Raw-Initial Volumes'!$F$10:$F$101,0)) -> 2444 | L91: =2550 -> 2550 | M91: 106 | N91: 2.144150494 | P91: TRUE | R91: 1 | S91: 17 | T91: 0.4073333333 | U91: 0.4073333333 | V91: 2.497751615 | W91: 5.355555359 | Y91: 0 | Z91: 0
C92: WB I-94 | D92: 1050 | E92: Secondary | F92: 2 | G92: off | H92: off to NB I-39/90 | I92: -1 | J92: =IF($K92>0,INDEX('Raw-Initial Volumes'!$AK$10:$AK$101,MATCH($D92,'Raw-Initial Volumes'!$F$10:$F$101,0)),"") -> Tube | K92: =INDEX('Raw-Initial Volumes'!$AL$10:$AL$101,MATCH($D92,'Raw-Initial Volumes'!$F$10:$F$101,0)) -> 787 | L92: =L16 -> 700 | M92: -87 | N92: 3.101215075 | R92: 1 | S92: 54 | T92: 0.19675 | U92: 0 | V92: 0 | W92: 0 | Y92: 0 | Z92: 0
C93: WB I-94 | D93: 2190 | E93: Secondary | F93: 1 | G93: off | H93: off to SB I-39/90 | I93: -1 | J93: =IF($K93>0,INDEX('Raw-Initial Volumes'!$AK$10:$AK$101,MATCH($D93,'Raw-Initial Volumes'!$F$10:$F$101,0)),"") -> Tube | K93: =INDEX('Raw-Initial Volumes'!$AL$10:$AL$101,MATCH($D93,'Raw-Initial Volumes'!$F$10:$F$101,0)) -> 912 | L93: =L52 -> 910 | M93: -2 | N93: 0.06622661785 | R93: 1 | S93: 54 | T93: 0.456 | U93: 0 | V93: 0 | W93: 0 | Y93: 0 | Z93: 0
B94: WB WIS 30 | C94: WB WIS 30 | D94: 6030 | F94: 2 | G94: mainline | H94: EB I-94 to EB WIS 30 | J94: =IF($K94>0,INDEX('Raw-Initial Volumes'!$AK$10:$AK$101,MATCH($D94,'Raw-Initial Volumes'!$F$10:$F$101,0)),"") ->  | K94: =INDEX('Raw-Initial Volumes'!$AL$10:$AL$101,MATCH($D94,'Raw-Initial Volumes'!$F$10:$F$101,0)) -> 0 | L94: =0 -> 0 | M94: 0 | N94: 0 | P94: TRUE | R94: 1 | S94: 54 | T94: 0 | U94: 0 | V94: 0 | W94: 0 | Y94: 0 | Z94: 0
C95: WB WIS 30 | D95: 2170 | E95: Secondary | F95: 1 | G95: on | H95: on from SB I-39/90/94 | I95: 1 | J95: =IF($K95>0,INDEX('Raw-Initial Volumes'!$AK$10:$AK$101,MATCH($D95,'Raw-Initial Volumes'!$F$10:$F$101,0)),"") -> Tube | K95: =INDEX('Raw-Initial Volumes'!$AL$10:$AL$101,MATCH($D95,'Raw-Initial Volumes'!$F$10:$F$101,0)) -> 844 | L95: =L50 -> 840 | M95: -4 | N95: 0.1376856782 | R95: 1 | S95: 54 | T95: 0.422 | U95: 0 | V95: 0 | W95: 0 | Y95: 0 | Z95: 0
C96: WB WIS 30 | D96: 1010 | E96: Secondary | F96: 1 | G96: on | H96: on from NB I-39/90 | I96: 1 | J96: =IF($K96>0,INDEX('Raw-Initial Volumes'!$AK$10:$AK$101,MATCH($D96,'Raw-Initial Volumes'!$F$10:$F$101,0)),"") -> Tube | K96: =INDEX('Raw-Initial Volumes'!$AL$10:$AL$101,MATCH($D96,'Raw-Initial Volumes'!$F$10:$F$101,0)) -> 504 | L96: =L12 -> 570 | M96: 66 | N96: 2.939873661 | R96: 1 | S96: 54 | T96: 0.252 | U96: 0 | V96: 0 | W96: 0 | Y96: 0 | Z96: 0
C97: WB WIS 30 | D97: 6060 | F97: 2 | G97: mainline | H97: Badger to Thompson Dr | J97: =IF($K97>0,INDEX('Raw-Initial Volumes'!$AK$10:$AK$101,MATCH($D97,'Raw-Initial Volumes'!$F$10:$F$101,0)),"") ->  | K97: =INDEX('Raw-Initial Volumes'!$AL$10:$AL$101,MATCH($D97,'Raw-Initial Volumes'!$F$10:$F$101,0)) -> 0 | L97: =L$91+SUMPRODUCT(L$92:L96,$I$92:$I96) -> 2350 | M97: 0 | N97: 0 | R97: 1 | S97: 54 | T97: 0 | U97: 0 | V97: 0 | W97: 0 | Y97: 0 | Z97: 0
C98: WB WIS 30 | D98: 6070 | F98: 1 | G98: on | H98: on from Thompson Dr | I98: 1 | J98: =IF($K98>0,INDEX('Raw-Initial Volumes'!$AK$10:$AK$101,MATCH($D98,'Raw-Initial Volumes'!$F$10:$F$101,0)),"") -> TM Count | K98: =INDEX('Raw-Initial Volumes'!$AL$10:$AL$101,MATCH($D98,'Raw-Initial Volumes'!$F$10:$F$101,0)) -> 1097 | L98: =1110 -> 1110 | M98: 13 | N98: 0.3925003411 | P98: TRUE | R98: 1 | S98: 9 | T98: 0.5485 | U98: 0.5485 | V98: 3.363379936 | W98: 1.320127772 | Y98: 0 | Z98: 0
C99: WB WIS 30 | D99: 6080 | F99: 3 | G99: mainline | H99: Thompson Dr to US 51 | J99: =IF($K99>0,INDEX('Raw-Initial Volumes'!$AK$10:$AK$101,MATCH($D99,'Raw-Initial Volumes'!$F$10:$F$101,0)),"") ->  | K99: =INDEX('Raw-Initial Volumes'!$AL$10:$AL$101,MATCH($D99,'Raw-Initial Volumes'!$F$10:$F$101,0)) -> 0 | L99: =L$91+SUMPRODUCT(L$92:L98,$I$92:$I98) -> 3460 | M99: 0 | N99: 0 | R99: 1 | S99: 54 | T99: 0 | U99: 0 | V99: 0 | W99: 0 | Y99: 0 | Z99: 0
C100: WB WIS 30 | D100: 6090 | F100: 1 | G100: off | H100: off to US 51 | I100: -1 | J100: =IF($K100>0,INDEX('Raw-Initial Volumes'!$AK$10:$AK$101,MATCH($D100,'Raw-Initial Volumes'!$F$10:$F$101,0)),"") -> V-SPOC | K100: =INDEX('Raw-Initial Volumes'!$AL$10:$AL$101,MATCH($D100,'Raw-Initial Volumes'!$F$10:$F$101,0)) -> 1325 | L100: =1320 -> 1320 | M100: -5 | N100: 0.1373605639 | P100: TRUE | R100: 1 | S100: 5 | T100: 0.6625 | U100: 0.6625 | V100: 4.062423351 | W100: 0.5580167624 | Y100: 0 | Z100: 0
C101: WB WIS 30 | D101: 6100 | F101: 1 | G101: on | H101: on from US 51 | I101: 1 | J101: =IF($K101>0,INDEX('Raw-Initial Volumes'!$AK$10:$AK$101,MATCH($D101,'Raw-Initial Volumes'!$F$10:$F$101,0)),"") -> V-SPOC | K101: =INDEX('Raw-Initial Volumes'!$AL$10:$AL$101,MATCH($D101,'Raw-Initial Volumes'!$F$10:$F$101,0)) -> 507 | L101: =550 -> 550 | M101: 43 | N101: 1.909697044 | P101: TRUE | R101: 1 | S101: 23 | T101: 0.2535 | U101: 0.2535 | V101: 1.554451803 | W101: 2.968532013 | Y101: 0 | Z101: 0
C102: WB WIS 30 | D102: 6110 | F102: 3 | G102: mainline | H102: US 51 to Fair Oaks | J102: =IF($K102>0,INDEX('Raw-Initial Volumes'!$AK$10:$AK$101,MATCH($D102,'Raw-Initial Volumes'!$F$10:$F$101,0)),"") -> Tube | K102: =INDEX('Raw-Initial Volumes'!$AL$10:$AL$101,MATCH($D102,'Raw-Initial Volumes'!$F$10:$F$101,0)) -> 2781 | L102: =L$91+SUMPRODUCT(L$92:L101,$I$92:$I101) -> 2690 | M102: -91 | N102: 1.725603043 | R102: 1 | S102: 10 | T102: 0.4635 | U102: 0.4635 | V102: 2.842163355 | W102: 4.904445734 | Y102: 0 | Z102: 0

Sheet Diagnostics
D2: Project | E2: =project_name -> Example 2 for Freeway Balancing
D3: Scenario | E3: =scenario_name -> Year 2012 AM Peak
D5: Location Information | K5: Raw vs Balanced Comparison | Q5: Solver Diagnostics
C7: SORT | D7: Corridor | E7: Corridor & Direction | F7: Link ID | G7: Affects 2+ Corridors? | H7: # of Lanes | I7: Type | J7: Location | K7: Raw Source / Comments | L7: Raw | M7: Balanced FINAL | N7: Diff | O7: RNSE | P7: Comments | Q7: Solver Inputs | R7: Input Global Weight | S7: Input Global Weight Rank | T7: Solver Outputs | U7: Final vs Solver Outputs | V7: First Run Formula
C8: 1 | D8: NB I-39/90 | E8: NB I-39/90 | F8: 1000 | H8: 3 | I8: mainline | J8: Beltline I/C to Badger I/C | K8: =INDEX(Balancing!$J$11:$J$102,MATCH($F8,Balancing!$D$11:$D$102,0)) -> ATR | L8: =INDEX(Balancing!$K$11:$K$102,MATCH($F8,Balancing!$D$11:$D$102,0)) -> 3710 | M8: =INDEX(Balancing!$L$11:$L$102,MATCH($F8,Balancing!$D$11:$D$102,0)) -> 3610 | N8: =IF($L8>0,$M8-$L8,"") -> -100 | O8: =IF($L8>0,SQRT($N8^2/$L8),"") -> 1.641772758 | P8: =INDEX(Balancing!$O$11:$O$102,MATCH($F8,Balancing!$D$11:$D$102,0)) -> 0 | Q8: 3650 | R8: =INDEX(Balancing!$V$11:$V$102,MATCH($F8,Balancing!$D$11:$D$102,0)) -> 7.583190254 | S8: =INDEX(Balancing!$S$11:$S$102,MATCH($F8,Balancing!$D$11:$D$102,0)) -> 1 | T8: 3610 | U8: =M8-T8 -> 0 | V8: K11
C9: 2 | E9: NB I-39/90 | F9: 1010 | G9: Primary | H9: 1 | I9: off | J9: off to WB WIS 30 | K9: =INDEX(Balancing!$J$11:$J$102,MATCH($F9,Balancing!$D$11:$D$102,0)) -> Tube | L9: =INDEX(Balancing!$K$11:$K$102,MATCH($F9,Balancing!$D$11:$D$102,0)) -> 504 | M9: =INDEX(Balancing!$L$11:$L$102,MATCH($F9,Balancing!$D$11:$D$102,0)) -> 570 | N9: 66 | O9: 2.939873661 | P9: =INDEX(Balancing!$O$11:$O$102,MATCH($F9,Balancing!$D$11:$D$102,0)) -> 0 | Q9: 570 | R9: =INDEX(Balancing!$V$11:$V$102,MATCH($F9,Balancing!$D$11:$D$102,0)) -> 1.545253863 | S9: =INDEX(Balancing!$S$11:$S$102,MATCH($F9,Balancing!$D$11:$D$102,0)) -> 24 | T9: 570 | U9: 0 | V9: K12
C10: 3 | E10: NB I-39/90 | F10: 1020 | G10: Primary | H10: 1 | I10: off | J10: off to EB I-94 | K10: =INDEX(Balancing!$J$11:$J$102,MATCH($F10,Balancing!$D$11:$D$102,0)) -> Tube | L10: =INDEX(Balancing!$K$11:$K$102,MATCH($F10,Balancing!$D$11:$D$102,0)) -> 409 | M10: =INDEX(Balancing!$L$11:$L$102,MATCH($F10,Balancing!$D$11:$D$102,0)) -> 470 | N10: 61 | O10: 3.016255876 | P10: =INDEX(Balancing!$O$11:$O$102,MATCH($F10,Balancing!$D$11:$D$102,0)) -> 0 | Q10: 470 | R10: =INDEX(Balancing!$V$11:$V$102,MATCH($F10,Balancing!$D$11:$D$102,0)) -> 1.253985774 | S10: =INDEX(Balancing!$S$11:$S$102,MATCH($F10,Balancing!$D$11:$D$102,0)) -> 29 | T10: 470 | U10: 0 | V10: K13
C11: 4 | E11: NB I-39/90 | F11: 1030 | H11: 3 | I11: mainline. | J11: b/n ramps | K11: =INDEX(Balancing!$J$11:$J$102,MATCH($F11,Balancing!$D$11:$D$102,0)) ->  | L11: =INDEX(Balancing!$K$11:$K$102,MATCH($F11,Balancing!$D$11:$D$102,0)) -> 0 | M11: =INDEX(Balancing!$L$11:$L$102,MATCH($F11,Balancing!$D$11:$D$102,0)) -> 2570 | P11: =INDEX(Balancing!$O$11:$O$102,MATCH($F11,Balancing!$D$11:$D$102,0)) -> 0 | Q11: 2610 | R11: =INDEX(Balancing!$V$11:$V$102,MATCH($F11,Balancing!$D$11:$D$102,0)) -> 0 | S11: =INDEX(Balancing!$S$11:$S$102,MATCH($F11,Balancing!$D$11:$D$102,0)) -> 54 | T11: 2570 | U11: 0 | V11: L$11+SUMPRODUCT(L$12:L13,$I$12:$I13)
C12: 5 | E12: NB I-39/90 | F12: 1040 | G12: Primary | H12: 1 | I12: on | J12: on from EB WIS 30 | K12: =INDEX(Balancing!$J$11:$J$102,MATCH($F12,Balancing!$D$11:$D$102,0)) -> Tube | L12: =INDEX(Balancing!$K$11:$K$102,MATCH($F12,Balancing!$D$11:$D$102,0)) -> 441 | M12: =INDEX(Balancing!$L$11:$L$102,MATCH($F12,Balancing!$D$11:$D$102,0)) -> 380 | N12: -61 | O12: 2.904761905 | P12: =INDEX(Balancing!$O$11:$O$102,MATCH($F12,Balancing!$D$11:$D$102,0)) -> 0 | Q12: 380 | R12: =INDEX(Balancing!$V$11:$V$102,MATCH($F12,Balancing!$D$11:$D$102,0)) -> 1.35209713 | S12: =INDEX(Balancing!$S$11:$S$102,MATCH($F12,Balancing!$D$11:$D$102,0)) -> 28 | T12: 380 | U12: 0 | V12: K15
C13: 6 | E13: NB I-39/90 | F13: 1050 | G13: Primary | H13: 2 | I13: on | J13: on from WB I-94 | K13: =INDEX(Balancing!$J$11:$J$102,MATCH($F13,Balancing!$D$11:$D$102,0)) -> Tube | L13: =INDEX(Balancing!$K$11:$K$102,MATCH($F13,Balancing!$D$11:$D$102,0)) -> 787 | M13: =INDEX(Balancing!$L$11:$L$102,MATCH($F13,Balancing!$D$11:$D$102,0)) -> 700 | N13: -87 | O13: 3.101215075 | P13: =INDEX(Balancing!$O$11:$O$102,MATCH($F13,Balancing!$D$11:$D$102,0)) -> 0 | Q13: 700 | R13: =INDEX(Balancing!$V$11:$V$102,MATCH($F13,Balancing!$D$11:$D$102,0)) -> 1.206463086 | S13: =INDEX(Balancing!$S$11:$S$102,MATCH($F13,Balancing!$D$11:$D$102,0)) -> 30 | T13: 700 | U13: 0 | V13: K16
C14: 7 | E14: NB I-39/90 | F14: 1060 | H14: 4 | I14: mainline | J14: Badger to US 151 | K14: =INDEX(Balancing!$J$11:$J$102,MATCH($F14,Balancing!$D$11:$D$102,0)) ->  | L14: =INDEX(Balancing!$K$11:$K$102,MATCH($F14,Balancing!$D$11:$D$102,0)) -> 0 | M14: =INDEX(Balancing!$L$11:$L$102,MATCH($F14,Balancing!$D$11:$D$102,0)) -> 3650 | P14: =INDEX(Balancing!$O$11:$O$102,MATCH($F14,Balancing!$D$11:$D$102,0)) -> 0 | Q14: 3690 | R14: =INDEX(Balancing!$V$11:$V$102,MATCH($F14,Balancing!$D$11:$D$102,0)) -> 0 | S14: =INDEX(Balancing!$S$11:$S$102,MATCH($F14,Balancing!$D$11:$D$102,0)) -> 54 | T14: 3650 | U14: 0 | V14: L$11+SUMPRODUCT(L$12:L16,$I$12:$I16)
C15: 8 | E15: NB I-39/90 | F15: 1070 | H15: 2 | I15: CD | J15: off to US 151/High Crossing CD | K15: =INDEX(Balancing!$J$11:$J$102,MATCH($F15,Balancing!$D$11:$D$102,0)) -> V-SPOC | L15: =INDEX(Balancing!$K$11:$K$102,MATCH($F15,Balancing!$D$11:$D$102,0)) -> 1843 | M15: =INDEX(Balancing!$L$11:$L$102,MATCH($F15,Balancing!$D$11:$D$102,0)) -> 1970 | N15: 127 | O15: 2.958292097 | P15: =INDEX(Balancing!$O$11:$O$102,MATCH($F15,Balancing!$D$11:$D$102,0)) -> 0 | Q15: 1980 | R15: =INDEX(Balancing!$V$11:$V$102,MATCH($F15,Balancing!$D$11:$D$102,0)) -> 2.825300466 | S15: =INDEX(Balancing!$S$11:$S$102,MATCH($F15,Balancing!$D$11:$D$102,0)) -> 11 | T15: 1970 | U15: 0 | V15: SUM(L19:L20,L23)
C16: 9 | E16: NB I-39/90 | F16: 1080 | H16: 1 | I16: off | J16: CD: off to High Crossing | K16: =INDEX(Balancing!$J$11:$J$102,MATCH($F16,Balancing!$D$11:$D$102,0)) -> TM Count | L16: =INDEX(Balancing!$K$11:$K$102,MATCH($F16,Balancing!$D$11:$D$102,0)) -> 541 | M16: =INDEX(Balancing!$L$11:$L$102,MATCH($F16,Balancing!$D$11:$D$102,0)) -> 470 | N16: -71 | O16: 3.052528421 | P16: =INDEX(Balancing!$O$11:$O$102,MATCH($F16,Balancing!$D$11:$D$102,0)) -> 0 | Q16: 470 | R16: =INDEX(Balancing!$V$11:$V$102,MATCH($F16,Balancing!$D$11:$D$102,0)) -> 1.658695119 | S16: =INDEX(Balancing!$S$11:$S$102,MATCH($F16,Balancing!$D$11:$D$102,0)) -> 22 | T16: 470 | U16: 0 | V16: K19
C17: 10 | E17: NB I-39/90 | F17: 1090 | G17: Primary | H17: 1 | I17: off | J17: CD: off to NB US 151 | K17: =INDEX(Balancing!$J$11:$J$102,MATCH($F17,Balancing!$D$11:$D$102,0)) -> V-SPOC | L17: =INDEX(Balancing!$K$11:$K$102,MATCH($F17,Balancing!$D$11:$D$102,0)) -> 1469 | M17: =INDEX(Balancing!$L$11:$L$102,MATCH($F17,Balancing!$D$11:$D$102,0)) -> 1380 | N17: -89 | O17: 2.322090324 | P17: =INDEX(Balancing!$O$11:$O$102,MATCH($F17,Balancing!$D$11:$D$102,0)) -> 0 | Q17: 1400 | R17: =INDEX(Balancing!$V$11:$V$102,MATCH($F17,Balancing!$D$11:$D$102,0)) -> 4.503924454 | S17: =INDEX(Balancing!$S$11:$S$102,MATCH($F17,Balancing!$D$11:$D$102,0)) -> 4 | T17: 1380 | U17: 0 | V17: K20
C18: 11 | E18: NB I-39/90 | F18: 1100 | H18: 1 | I18: CD | J18: CD: b/n ramps | K18: =INDEX(Balancing!$J$11:$J$102,MATCH($F18,Balancing!$D$11:$D$102,0)) ->  | L18: =INDEX(Balancing!$K$11:$K$102,MATCH($F18,Balancing!$D$11:$D$102,0)) -> 0 | M18: =INDEX(Balancing!$L$11:$L$102,MATCH($F18,Balancing!$D$11:$D$102,0)) -> 120 | P18: =INDEX(Balancing!$O$11:$O$102,MATCH($F18,Balancing!$D$11:$D$102,0)) -> 0 | Q18: 110 | R18: =INDEX(Balancing!$V$11:$V$102,MATCH($F18,Balancing!$D$11:$D$102,0)) -> 0 | S18: =INDEX(Balancing!$S$11:$S$102,MATCH($F18,Balancing!$D$11:$D$102,0)) -> 54 | T18: 120 | U18: 0 | V18: L18-L19-L20
C19: 12 | E19: NB I-39/90 | F19: 1110 | G19: Primary | H19: 1 | I19: on | J19: CD: on from NB US 151 | K19: =INDEX(Balancing!$J$11:$J$102,MATCH($F19,Balancing!$D$11:$D$102,0)) -> V-SPOC | L19: =INDEX(Balancing!$K$11:$K$102,MATCH($F19,Balancing!$D$11:$D$102,0)) -> 102 | M19: =INDEX(Balancing!$L$11:$L$102,MATCH($F19,Balancing!$D$11:$D$102,0)) -> 70 | N19: -32 | O19: 3.168472138 | P19: =INDEX(Balancing!$O$11:$O$102,MATCH($F19,Balancing!$D$11:$D$102,0)) -> 0 | Q19: 70 | R19: =INDEX(Balancing!$V$11:$V$102,MATCH($F19,Balancing!$D$11:$D$102,0)) -> 0.6131959774 | S19: =INDEX(Balancing!$S$11:$S$102,MATCH($F19,Balancing!$D$11:$D$102,0)) -> 42 | T19: 70 | U19: 0 | V19: K22
C20: 13 | E20: NB I-39/90 | F20: 1120 | G20: Primary | H20: 1 | I20: off | J20: CD: off to SB US 151 | K20: =INDEX(Balancing!$J$11:$J$102,MATCH($F20,Balancing!$D$11:$D$102,0)) -> V-SPOC | L20: =INDEX(Balancing!$K$11:$K$102,MATCH($F20,Balancing!$D$11:$D$102,0)) -> 154 | M20: =INDEX(Balancing!$L$11:$L$102,MATCH($F20,Balancing!$D$11:$D$102,0)) -> 120 | N20: -34 | O20: 2.739798078 | P20: =INDEX(Balancing!$O$11:$O$102,MATCH($F20,Balancing!$D$11:$D$102,0)) -> 0 | Q20: 110 | R20: =INDEX(Balancing!$V$11:$V$102,MATCH($F20,Balancing!$D$11:$D$102,0)) -> 0.6131959774 | S20: =INDEX(Balancing!$S$11:$S$102,MATCH($F20,Balancing!$D$11:$D$102,0)) -> 42 | T20: 120 | U20: 0 | V20: K23
C21: 14 | E21: NB I-39/90 | F21: 1130 | H21: 1 | I21: CD | J21: CD: b/n ramps | K21: =INDEX(Balancing!$J$11:$J$102,MATCH($F21,Balancing!$D$11:$D$102,0)) ->  | L21: =INDEX(Balancing!$K$11:$K$102,MATCH($F21,Balancing!$D$11:$D$102,0)) -> 0 | M21: =INDEX(Balancing!$L$11:$L$102,MATCH($F21,Balancing!$D$11:$D$102,0)) -> 70 | P21: =INDEX(Balancing!$O$11:$O$102,MATCH($F21,Balancing!$D$11:$D$102,0)) -> 0 | Q21: 70 | R21: =INDEX(Balancing!$V$11:$V$102,MATCH($F21,Balancing!$D$11:$D$102,0)) -> 0 | S21: =INDEX(Balancing!$S$11:$S$102,MATCH($F21,Balancing!$D$11:$D$102,0)) -> 54 | T21: 70 | U21: 0 | V21: L21+L22-L23
C22: 15 | E22: NB I-39/90 | F22: 1140 | G22: Primary | H22: 1 | I22: on | J22: CD: on from SB US 151 | K22: =INDEX(Balancing!$J$11:$J$102,MATCH($F22,Balancing!$D$11:$D$102,0)) -> Tube | L22: =INDEX(Balancing!$K$11:$K$102,MATCH($F22,Balancing!$D$11:$D$102,0)) -> 171 | M22: =INDEX(Balancing!$L$11:$L$102,MATCH($F22,Balancing!$D$11:$D$102,0)) -> 130 | N22: -41 | O22: 3.135348363 | P22: =INDEX(Balancing!$O$11:$O$102,MATCH($F22,Balancing!$D$11:$D$102,0)) -> 0 | Q22: 130 | R22: =INDEX(Balancing!$V$11:$V$102,MATCH($F22,Balancing!$D$11:$D$102,0)) -> 0.6131959774 | S22: =INDEX(Balancing!$S$11:$S$102,MATCH($F22,Balancing!$D$11:$D$102,0)) -> 42 | T22: 130 | U22: 0 | V22: K25
C23: 16 | E23: NB I-39/90 | F23: 1150 | H23: 3 | I23: mainline. | J23: b/n CD exit & CD entrance | K23: =INDEX(Balancing!$J$11:$J$102,MATCH($F23,Balancing!$D$11:$D$102,0)) ->  | L23: =INDEX(Balancing!$K$11:$K$102,MATCH($F23,Balancing!$D$11:$D$102,0)) -> 0 | M23: =INDEX(Balancing!$L$11:$L$102,MATCH($F23,Balancing!$D$11:$D$102,0)) -> 1680 | P23: =INDEX(Balancing!$O$11:$O$102,MATCH($F23,Balancing!$D$11:$D$102,0)) -> 0 | Q23: 1710 | R23: =INDEX(Balancing!$V$11:$V$102,MATCH($F23,Balancing!$D$11:$D$102,0)) -> 0 | S23: =INDEX(Balancing!$S$11:$S$102,MATCH($F23,Balancing!$D$11:$D$102,0)) -> 54 | T23: 1680 | U23: 0 | V23: L17-L18
C24: 17 | E24: NB I-39/90 | F24: 1160 | H24: 1 | I24: CD | J24: on from CD | K24: =INDEX(Balancing!$J$11:$J$102,MATCH($F24,Balancing!$D$11:$D$102,0)) ->  | L24: =INDEX(Balancing!$K$11:$K$102,MATCH($F24,Balancing!$D$11:$D$102,0)) -> 0 | M24: =INDEX(Balancing!$L$11:$L$102,MATCH($F24,Balancing!$D$11:$D$102,0)) -> 200 | P24: =INDEX(Balancing!$O$11:$O$102,MATCH($F24,Balancing!$D$11:$D$102,0)) -> 0 | Q24: 200 | R24: =INDEX(Balancing!$V$11:$V$102,MATCH($F24,Balancing!$D$11:$D$102,0)) -> 0 | S24: =INDEX(Balancing!$S$11:$S$102,MATCH($F24,Balancing!$D$11:$D$102,0)) -> 54 | T24: 200 | U24: 0 | V24: SUM(L22,L25)
C25: 18 | E25: NB I-39/90 | F25: 1170 | H25: 3 | I25: mainline | J25: US 151 to US 51 | K25: =INDEX(Balancing!$J$11:$J$102,MATCH($F25,Balancing!$D$11:$D$102,0)) -> ATR | L25: =INDEX(Balancing!$K$11:$K$102,MATCH($F25,Balancing!$D$11:$D$102,0)) -> 1785 | M25: =INDEX(Balancing!$L$11:$L$102,MATCH($F25,Balancing!$D$11:$D$102,0)) -> 1880 | N25: 95 | O25: 2.248560075 | P25: =INDEX(Balancing!$O$11:$O$102,MATCH($F25,Balancing!$D$11:$D$102,0)) -> 0 | Q25: 1910 | R25: =INDEX(Balancing!$V$11:$V$102,MATCH($F25,Balancing!$D$11:$D$102,0)) -> 5.472774099 | S25: =INDEX(Balancing!$S$11:$S$102,MATCH($F25,Balancing!$D$11:$D$102,0)) -> 2 | T25: 1880 | U25: 0 | V25: L$11+SUMPRODUCT(L$12:L27,$I$12:$I27)
C26: 19 | E26: NB I-39/90 | F26: 1180 | H26: 1 | I26: off | J26: off to US 51 | K26: =INDEX(Balancing!$J$11:$J$102,MATCH($F26,Balancing!$D$11:$D$102,0)) -> V-SPOC | L26: =INDEX(Balancing!$K$11:$K$102,MATCH($F26,Balancing!$D$11:$D$102,0)) -> 297 | M26: =INDEX(Balancing!$L$11:$L$102,MATCH($F26,Balancing!$D$11:$D$102,0)) -> 300 | N26: 3 | O26: 0.174077656 | P26: =INDEX(Balancing!$O$11:$O$102,MATCH($F26,Balancing!$D$11:$D$102,0)) -> 0 | Q26: 300 | R26: =INDEX(Balancing!$V$11:$V$102,MATCH($F26,Balancing!$D$11:$D$102,0)) -> 0.9105960265 | S26: =INDEX(Balancing!$S$11:$S$102,MATCH($F26,Balancing!$D$11:$D$102,0)) -> 33 | T26: 300 | U26: 0 | V26: K29
C27: 20 | E27: NB I-39/90 | F27: 1190 | H27: 1 | I27: on | J27: on from NB US 51 | K27: =INDEX(Balancing!$J$11:$J$102,MATCH($F27,Balancing!$D$11:$D$102,0)) -> Tube | L27: =INDEX(Balancing!$K$11:$K$102,MATCH($F27,Balancing!$D$11:$D$102,0)) -> 108 | M27: =INDEX(Balancing!$L$11:$L$102,MATCH($F27,Balancing!$D$11:$D$102,0)) -> 110 | N27: 2 | O27: 0.1924500897 | P27: =INDEX(Balancing!$O$11:$O$102,MATCH($F27,Balancing!$D$11:$D$102,0)) -> 0 | Q27: 110 | R27: =INDEX(Balancing!$V$11:$V$102,MATCH($F27,Balancing!$D$11:$D$102,0)) -> 0.6131959774 | S27: =INDEX(Balancing!$S$11:$S$102,MATCH($F27,Balancing!$D$11:$D$102,0)) -> 42 | T27: 110 | U27: 0 | V27: K30
C28: 21 | E28: NB I-39/90 | F28: 1200 | H28: 1 | I28: on | J28: on from SB US 51 | K28: =INDEX(Balancing!$J$11:$J$102,MATCH($F28,Balancing!$D$11:$D$102,0)) -> Tube | L28: =INDEX(Balancing!$K$11:$K$102,MATCH($F28,Balancing!$D$11:$D$102,0)) -> 39 | M28: =INDEX(Balancing!$L$11:$L$102,MATCH($F28,Balancing!$D$11:$D$102,0)) -> 40 | N28: 1 | O28: 0.1601281538 | P28: =INDEX(Balancing!$O$11:$O$102,MATCH($F28,Balancing!$D$11:$D$102,0)) -> 0 | Q28: 40 | R28: =INDEX(Balancing!$V$11:$V$102,MATCH($F28,Balancing!$D$11:$D$102,0)) -> 0.6131959774 | S28: =INDEX(Balancing!$S$11:$S$102,MATCH($F28,Balancing!$D$11:$D$102,0)) -> 42 | T28: 40 | U28: 0 | V28: K31
C29: 22 | E29: NB I-39/90 | F29: 1210 | H29: 3 | I29: mainline | J29: US 51 to WIS 19 | K29: =INDEX(Balancing!$J$11:$J$102,MATCH($F29,Balancing!$D$11:$D$102,0)) ->  | L29: =INDEX(Balancing!$K$11:$K$102,MATCH($F29,Balancing!$D$11:$D$102,0)) -> 0 | M29: =INDEX(Balancing!$L$11:$L$102,MATCH($F29,Balancing!$D$11:$D$102,0)) -> 1730 | P29: =INDEX(Balancing!$O$11:$O$102,MATCH($F29,Balancing!$D$11:$D$102,0)) -> 0 | Q29: 1760 | R29: =INDEX(Balancing!$V$11:$V$102,MATCH($F29,Balancing!$D$11:$D$102,0)) -> 0 | S29: =INDEX(Balancing!$S$11:$S$102,MATCH($F29,Balancing!$D$11:$D$102,0)) -> 54 | T29: 1730 | U29: 0 | V29: L$11+SUMPRODUCT(L$12:L31,$I$12:$I31)
C30: 23 | D30: SB I-39/90 | E30: SB I-39/90 | F30: 2000 | H30: 3 | I30: mainline | J30: WIS 19 to US 51 | K30: =INDEX(Balancing!$J$11:$J$102,MATCH($F30,Balancing!$D$11:$D$102,0)) ->  | L30: =INDEX(Balancing!$K$11:$K$102,MATCH($F30,Balancing!$D$11:$D$102,0)) -> 0 | M30: =INDEX(Balancing!$L$11:$L$102,MATCH($F30,Balancing!$D$11:$D$102,0)) -> 2450 | P30: =INDEX(Balancing!$O$11:$O$102,MATCH($F30,Balancing!$D$11:$D$102,0)) -> 0 | Q30: 2450 | R30: =INDEX(Balancing!$V$11:$V$102,MATCH($F30,Balancing!$D$11:$D$102,0)) -> 0 | S30: =INDEX(Balancing!$S$11:$S$102,MATCH($F30,Balancing!$D$11:$D$102,0)) -> 54 | T30: 2450 | U30: 0 | V30: 2452
C31: 24 | E31: SB I-39/90 | F31: 2010 | H31: 1 | I31: off | J31: off to US 51 | K31: =INDEX(Balancing!$J$11:$J$102,MATCH($F31,Balancing!$D$11:$D$102,0)) -> Tube | L31: =INDEX(Balancing!$K$11:$K$102,MATCH($F31,Balancing!$D$11:$D$102,0)) -> 911 | M31: =INDEX(Balancing!$L$11:$L$102,MATCH($F31,Balancing!$D$11:$D$102,0)) -> 910 | N31: -1 | O31: 0.0331314781 | P31: =INDEX(Balancing!$O$11:$O$102,MATCH($F31,Balancing!$D$11:$D$102,0)) -> 0 | Q31: 910 | R31: =INDEX(Balancing!$V$11:$V$102,MATCH($F31,Balancing!$D$11:$D$102,0)) -> 2.793107677 | S31: =INDEX(Balancing!$S$11:$S$102,MATCH($F31,Balancing!$D$11:$D$102,0)) -> 13 | T31: 910 | U31: 0 | V31: K34
C32: 25 | E32: SB I-39/90 | F32: 2020 | H32: 1 | I32: on | J32: on from SB US 51 | K32: =INDEX(Balancing!$J$11:$J$102,MATCH($F32,Balancing!$D$11:$D$102,0)) -> Tube | L32: =INDEX(Balancing!$K$11:$K$102,MATCH($F32,Balancing!$D$11:$D$102,0)) -> 160 | M32: =INDEX(Balancing!$L$11:$L$102,MATCH($F32,Balancing!$D$11:$D$102,0)) -> 160 | N32: 0 | O32: 0 | P32: =INDEX(Balancing!$O$11:$O$102,MATCH($F32,Balancing!$D$11:$D$102,0)) -> 0 | Q32: 160 | R32: =INDEX(Balancing!$V$11:$V$102,MATCH($F32,Balancing!$D$11:$D$102,0)) -> 0.6131959774 | S32: =INDEX(Balancing!$S$11:$S$102,MATCH($F32,Balancing!$D$11:$D$102,0)) -> 42 | T32: 160 | U32: 0 | V32: K35
C33: 26 | E33: SB I-39/90 | F33: 2030 | H33: 1 | I33: on | J33: on from NB US 51 | K33: =INDEX(Balancing!$J$11:$J$102,MATCH($F33,Balancing!$D$11:$D$102,0)) -> Tube | L33: =INDEX(Balancing!$K$11:$K$102,MATCH($F33,Balancing!$D$11:$D$102,0)) -> 153 | M33: =INDEX(Balancing!$L$11:$L$102,MATCH($F33,Balancing!$D$11:$D$102,0)) -> 150 | N33: -3 | O33: 0.242535625 | P33: =INDEX(Balancing!$O$11:$O$102,MATCH($F33,Balancing!$D$11:$D$102,0)) -> 0 | Q33: 150 | R33: =INDEX(Balancing!$V$11:$V$102,MATCH($F33,Balancing!$D$11:$D$102,0)) -> 0.6131959774 | S33: =INDEX(Balancing!$S$11:$S$102,MATCH($F33,Balancing!$D$11:$D$102,0)) -> 42 | T33: 150 | U33: 0 | V33: K36
C34: 27 | E34: SB I-39/90 | F34: 2040 | H34: 3 | I34: mainline | J34: US 51 to US 151 | K34: =INDEX(Balancing!$J$11:$J$102,MATCH($F34,Balancing!$D$11:$D$102,0)) -> ATR | L34: =INDEX(Balancing!$K$11:$K$102,MATCH($F34,Balancing!$D$11:$D$102,0)) -> 1854 | M34: =INDEX(Balancing!$L$11:$L$102,MATCH($F34,Balancing!$D$11:$D$102,0)) -> 1850 | N34: -4 | O34: 0.09289773524 | P34: =INDEX(Balancing!$O$11:$O$102,MATCH($F34,Balancing!$D$11:$D$102,0)) -> 0 | Q34: 1850 | R34: =INDEX(Balancing!$V$11:$V$102,MATCH($F34,Balancing!$D$11:$D$102,0)) -> 1.89477557 | S34: =INDEX(Balancing!$S$11:$S$102,MATCH($F34,Balancing!$D$11:$D$102,0)) -> 20 | T34: 1850 | U34: 0 | V34: $L$33+SUMPRODUCT($L$34:L36,$I$34:I36)
C35: 28 | E35: SB I-39/90 | F35: 2050 | H35: 1 | I35: CD | J35: off to US 151 CD | K35: =INDEX(Balancing!$J$11:$J$102,MATCH($F35,Balancing!$D$11:$D$102,0)) ->  | L35: =INDEX(Balancing!$K$11:$K$102,MATCH($F35,Balancing!$D$11:$D$102,0)) -> 0 | M35: =INDEX(Balancing!$L$11:$L$102,MATCH($F35,Balancing!$D$11:$D$102,0)) -> 400 | P35: =INDEX(Balancing!$O$11:$O$102,MATCH($F35,Balancing!$D$11:$D$102,0)) -> 0 | Q35: 400 | R35: =INDEX(Balancing!$V$11:$V$102,MATCH($F35,Balancing!$D$11:$D$102,0)) -> 0 | S35: =INDEX(Balancing!$S$11:$S$102,MATCH($F35,Balancing!$D$11:$D$102,0)) -> 54 | T35: 400 | U35: 0 | V35: SUM(L39,L42)
C36: 29 | E36: SB I-39/90 | F36: 2060 | G36: Primary | H36: 1 | I36: off | J36: CD: off to SB US 151 | K36: =INDEX(Balancing!$J$11:$J$102,MATCH($F36,Balancing!$D$11:$D$102,0)) -> V-SPOC | L36: =INDEX(Balancing!$K$11:$K$102,MATCH($F36,Balancing!$D$11:$D$102,0)) -> 145 | M36: =INDEX(Balancing!$L$11:$L$102,MATCH($F36,Balancing!$D$11:$D$102,0)) -> 140 | N36: -5 | O36: 0.4152273993 | P36: =INDEX(Balancing!$O$11:$O$102,MATCH($F36,Balancing!$D$11:$D$102,0)) -> 0 | Q36: 140 | R36: =INDEX(Balancing!$V$11:$V$102,MATCH($F36,Balancing!$D$11:$D$102,0)) -> 0.6131959774 | S36: =INDEX(Balancing!$S$11:$S$102,MATCH($F36,Balancing!$D$11:$D$102,0)) -> 42 | T36: 140 | U36: 0 | V36: K39
C37: 30 | E37: SB I-39/90 | F37: 2070 | H37: 1 | I37: CD | J37: CD: b/n ramps | K37: =INDEX(Balancing!$J$11:$J$102,MATCH($F37,Balancing!$D$11:$D$102,0)) ->  | L37: =INDEX(Balancing!$K$11:$K$102,MATCH($F37,Balancing!$D$11:$D$102,0)) -> 0 | M37: =INDEX(Balancing!$L$11:$L$102,MATCH($F37,Balancing!$D$11:$D$102,0)) -> 260 | P37: =INDEX(Balancing!$O$11:$O$102,MATCH($F37,Balancing!$D$11:$D$102,0)) -> 0 | Q37: 260 | R37: =INDEX(Balancing!$V$11:$V$102,MATCH($F37,Balancing!$D$11:$D$102,0)) -> 0 | S37: =INDEX(Balancing!$S$11:$S$102,MATCH($F37,Balancing!$D$11:$D$102,0)) -> 54 | T37: 260 | U37: 0 | V37: L38-L39
C38: 31 | E38: SB I-39/90 | F38: 2080 | G38: Primary | H38: 1 | I38: on | J38: CD: on from SB US 151 | K38: =INDEX(Balancing!$J$11:$J$102,MATCH($F38,Balancing!$D$11:$D$102,0)) -> V-SPOC | L38: =INDEX(Balancing!$K$11:$K$102,MATCH($F38,Balancing!$D$11:$D$102,0)) -> 1693 | M38: =INDEX(Balancing!$L$11:$L$102,MATCH($F38,Balancing!$D$11:$D$102,0)) -> 1690 | N38: -3 | O38: 0.07291095314 | P38: =INDEX(Balancing!$O$11:$O$102,MATCH($F38,Balancing!$D$11:$D$102,0)) -> 0 | Q38: 1690 | R38: =INDEX(Balancing!$V$11:$V$102,MATCH($F38,Balancing!$D$11:$D$102,0)) -> 5.190703949 | S38: =INDEX(Balancing!$S$11:$S$102,MATCH($F38,Balancing!$D$11:$D$102,0)) -> 3 | T38: 1690 | U38: 0 | V38: K41
C39: 32 | E39: SB I-39/90 | F39: 2090 | G39: Primary | H39: 1 | I39: off | J39: CD: off to NB US 151 | K39: =INDEX(Balancing!$J$11:$J$102,MATCH($F39,Balancing!$D$11:$D$102,0)) -> V-SPOC | L39: =INDEX(Balancing!$K$11:$K$102,MATCH($F39,Balancing!$D$11:$D$102,0)) -> 233 | M39: =INDEX(Balancing!$L$11:$L$102,MATCH($F39,Balancing!$D$11:$D$102,0)) -> 260 | N39: 27 | O39: 1.768828812 | P39: =INDEX(Balancing!$O$11:$O$102,MATCH($F39,Balancing!$D$11:$D$102,0)) -> 0 | Q39: 260 | R39: =INDEX(Balancing!$V$11:$V$102,MATCH($F39,Balancing!$D$11:$D$102,0)) -> 0.7143733137 | S39: =INDEX(Balancing!$S$11:$S$102,MATCH($F39,Balancing!$D$11:$D$102,0)) -> 38 | T39: 260 | U39: 0 | V39: K42
C40: 33 | E40: SB I-39/90 | F40: 2100 | H40: 1 | I40: CD | J40: CD: b/n ramps | K40: =INDEX(Balancing!$J$11:$J$102,MATCH($F40,Balancing!$D$11:$D$102,0)) ->  | L40: =INDEX(Balancing!$K$11:$K$102,MATCH($F40,Balancing!$D$11:$D$102,0)) -> 0 | M40: =INDEX(Balancing!$L$11:$L$102,MATCH($F40,Balancing!$D$11:$D$102,0)) -> 1690 | N40: =IF($L40>0,$M40-$L40,"") ->  | O40: =IF($L40>0,SQRT($N40^2/$L40),"") ->  | P40: =INDEX(Balancing!$O$11:$O$102,MATCH($F40,Balancing!$D$11:$D$102,0)) -> 0 | Q40: 1690 | R40: =INDEX(Balancing!$V$11:$V$102,MATCH($F40,Balancing!$D$11:$D$102,0)) -> 0 | S40: =INDEX(Balancing!$S$11:$S$102,MATCH($F40,Balancing!$D$11:$D$102,0)) -> 54 | T40: 1690 | U40: =M40-T40 -> 0 | V40: L40+L41-L42
C41: 34 | E41: SB I-39/90 | F41: 2110 | G41: Primary | H41: 1 | I41: on | J41: CD: on from NB US 151 | K41: =INDEX(Balancing!$J$11:$J$102,MATCH($F41,Balancing!$D$11:$D$102,0)) -> Tube | L41: =INDEX(Balancing!$K$11:$K$102,MATCH($F41,Balancing!$D$11:$D$102,0)) -> 229 | M41: =INDEX(Balancing!$L$11:$L$102,MATCH($F41,Balancing!$D$11:$D$102,0)) -> 210 | N41: -19 | O41: 1.255555341 | P41: =INDEX(Balancing!$O$11:$O$102,MATCH($F41,Balancing!$D$11:$D$102,0)) -> 0 | Q41: 210 | R41: =INDEX(Balancing!$V$11:$V$102,MATCH($F41,Balancing!$D$11:$D$102,0)) -> 0.7021093942 | S41: =INDEX(Balancing!$S$11:$S$102,MATCH($F41,Balancing!$D$11:$D$102,0)) -> 39 | T41: 210 | U41: 0 | V41: K44
C42: 35 | E42: SB I-39/90 | F42: 2120 | H42: 3 | I42: mainline. | J42: b/n CD exit & CD entrance | K42: =INDEX(Balancing!$J$11:$J$102,MATCH($F42,Balancing!$D$11:$D$102,0)) ->  | L42: =INDEX(Balancing!$K$11:$K$102,MATCH($F42,Balancing!$D$11:$D$102,0)) -> 0 | M42: =INDEX(Balancing!$L$11:$L$102,MATCH($F42,Balancing!$D$11:$D$102,0)) -> 1450 | P42: =INDEX(Balancing!$O$11:$O$102,MATCH($F42,Balancing!$D$11:$D$102,0)) -> 0 | Q42: 1450 | R42: =INDEX(Balancing!$V$11:$V$102,MATCH($F42,Balancing!$D$11:$D$102,0)) -> 0 | S42: =INDEX(Balancing!$S$11:$S$102,MATCH($F42,Balancing!$D$11:$D$102,0)) -> 54 | T42: 1450 | U42: 0 | V42: L37-L38
C43: 36 | E43: SB I-39/90 | F43: 2130 | H43: 1 | I43: CD | J43: on from CD | K43: =INDEX(Balancing!$J$11:$J$102,MATCH($F43,Balancing!$D$11:$D$102,0)) ->  | L43: =INDEX(Balancing!$K$11:$K$102,MATCH($F43,Balancing!$D$11:$D$102,0)) -> 0 | M43: =INDEX(Balancing!$L$11:$L$102,MATCH($F43,Balancing!$D$11:$D$102,0)) -> 1900 | P43: =INDEX(Balancing!$O$11:$O$102,MATCH($F43,Balancing!$D$11:$D$102,0)) -> 0 | Q43: 1900 | R43: =INDEX(Balancing!$V$11:$V$102,MATCH($F43,Balancing!$D$11:$D$102,0)) -> 0 | S43: =INDEX(Balancing!$S$11:$S$102,MATCH($F43,Balancing!$D$11:$D$102,0)) -> 54 | T43: 1900 | U43: 0 | V43: SUM(L41,L44)
C44: 37 | E44: SB I-39/90 | F44: 2140 | H44: 1 | I44: on | J44: on from High Crossing | K44: =INDEX(Balancing!$J$11:$J$102,MATCH($F44,Balancing!$D$11:$D$102,0)) -> Tube | L44: =INDEX(Balancing!$K$11:$K$102,MATCH($F44,Balancing!$D$11:$D$102,0)) -> 250 | M44: =INDEX(Balancing!$L$11:$L$102,MATCH($F44,Balancing!$D$11:$D$102,0)) -> 250 | N44: 0 | O44: 0 | P44: =INDEX(Balancing!$O$11:$O$102,MATCH($F44,Balancing!$D$11:$D$102,0)) -> 0 | Q44: 250 | R44: =INDEX(Balancing!$V$11:$V$102,MATCH($F44,Balancing!$D$11:$D$102,0)) -> 0.7664949718 | S44: =INDEX(Balancing!$S$11:$S$102,MATCH($F44,Balancing!$D$11:$D$102,0)) -> 37 | T44: 250 | U44: 0 | V44: K47
C45: 38 | E45: SB I-39/90 | F45: 2150 | H45: 4 | I45: mainline | J45: US 151 to Badger | K45: =INDEX(Balancing!$J$11:$J$102,MATCH($F45,Balancing!$D$11:$D$102,0)) -> V-SPOC | L45: =INDEX(Balancing!$K$11:$K$102,MATCH($F45,Balancing!$D$11:$D$102,0)) -> 3564 | M45: =INDEX(Balancing!$L$11:$L$102,MATCH($F45,Balancing!$D$11:$D$102,0)) -> 3600 | N45: 36 | O45: 0.6030226892 | P45: =INDEX(Balancing!$O$11:$O$102,MATCH($F45,Balancing!$D$11:$D$102,0)) -> 0 | Q45: 3600 | R45: =INDEX(Balancing!$V$11:$V$102,MATCH($F45,Balancing!$D$11:$D$102,0)) -> 2.731788079 | S45: =INDEX(Balancing!$S$11:$S$102,MATCH($F45,Balancing!$D$11:$D$102,0)) -> 15 | T45: 3600 | U45: 0 | V45: L$33+SUMPRODUCT(L$34:L47,$I$34:$I47)
C46: 39 | E46: SB I-39/90 | F46: 2160 | G46: Primary | H46: 2 | I46: off | J46: off to EB I-94 | K46: =INDEX(Balancing!$J$11:$J$102,MATCH($F46,Balancing!$D$11:$D$102,0)) -> Tube | L46: =INDEX(Balancing!$K$11:$K$102,MATCH($F46,Balancing!$D$11:$D$102,0)) -> 442 | M46: =INDEX(Balancing!$L$11:$L$102,MATCH($F46,Balancing!$D$11:$D$102,0)) -> 380 | N46: -62 | O46: 2.949039264 | P46: =INDEX(Balancing!$O$11:$O$102,MATCH($F46,Balancing!$D$11:$D$102,0)) -> 0 | Q46: 380 | R46: =INDEX(Balancing!$V$11:$V$102,MATCH($F46,Balancing!$D$11:$D$102,0)) -> 0.6775815551 | S46: =INDEX(Balancing!$S$11:$S$102,MATCH($F46,Balancing!$D$11:$D$102,0)) -> 40 | T46: 380 | U46: 0 | V46: K49
C47: 40 | E47: SB I-39/90 | F47: 2170 | G47: Primary | H47: 1 | I47: off | J47: off to WB WIS 30 | K47: =INDEX(Balancing!$J$11:$J$102,MATCH($F47,Balancing!$D$11:$D$102,0)) -> Tube | L47: =INDEX(Balancing!$K$11:$K$102,MATCH($F47,Balancing!$D$11:$D$102,0)) -> 844 | M47: =INDEX(Balancing!$L$11:$L$102,MATCH($F47,Balancing!$D$11:$D$102,0)) -> 840 | N47: -4 | O47: 0.1376856782 | P47: =INDEX(Balancing!$O$11:$O$102,MATCH($F47,Balancing!$D$11:$D$102,0)) -> 0 | Q47: 850 | R47: =INDEX(Balancing!$V$11:$V$102,MATCH($F47,Balancing!$D$11:$D$102,0)) -> 2.587687025 | S47: =INDEX(Balancing!$S$11:$S$102,MATCH($F47,Balancing!$D$11:$D$102,0)) -> 16 | T47: 840 | U47: 0 | V47: K50
C48: 41 | E48: SB I-39/90 | F48: 2180 | H48: 3 | I48: mainline. | J48: b/n ramps | K48: =INDEX(Balancing!$J$11:$J$102,MATCH($F48,Balancing!$D$11:$D$102,0)) ->  | L48: =INDEX(Balancing!$K$11:$K$102,MATCH($F48,Balancing!$D$11:$D$102,0)) -> 0 | M48: =INDEX(Balancing!$L$11:$L$102,MATCH($F48,Balancing!$D$11:$D$102,0)) -> 2380 | P48: =INDEX(Balancing!$O$11:$O$102,MATCH($F48,Balancing!$D$11:$D$102,0)) -> 0 | Q48: 2370 | R48: =INDEX(Balancing!$V$11:$V$102,MATCH($F48,Balancing!$D$11:$D$102,0)) -> 0 | S48: =INDEX(Balancing!$S$11:$S$102,MATCH($F48,Balancing!$D$11:$D$102,0)) -> 54 | T48: 2380 | U48: 0 | V48: L$33+SUMPRODUCT(L$34:L50,$I$34:$I50)
C49: 42 | E49: SB I-39/90 | F49: 2190 | G49: Primary | H49: 1 | I49: on | J49: on from WB I-94 | K49: =INDEX(Balancing!$J$11:$J$102,MATCH($F49,Balancing!$D$11:$D$102,0)) -> Tube | L49: =INDEX(Balancing!$K$11:$K$102,MATCH($F49,Balancing!$D$11:$D$102,0)) -> 912 | M49: =INDEX(Balancing!$L$11:$L$102,MATCH($F49,Balancing!$D$11:$D$102,0)) -> 910 | N49: -2 | O49: 0.06622661785 | P49: =INDEX(Balancing!$O$11:$O$102,MATCH($F49,Balancing!$D$11:$D$102,0)) -> 0 | Q49: 910 | R49: =INDEX(Balancing!$V$11:$V$102,MATCH($F49,Balancing!$D$11:$D$102,0)) -> 2.796173657 | S49: =INDEX(Balancing!$S$11:$S$102,MATCH($F49,Balancing!$D$11:$D$102,0)) -> 12 | T49: 910 | U49: 0 | V49: K52
C50: 43 | E50: SB I-39/90 | F50: 2200 | G50: Primary | H50: 1 | I50: on | J50: on from EB WIS 30 | K50: =INDEX(Balancing!$J$11:$J$102,MATCH($F50,Balancing!$D$11:$D$102,0)) -> Tube | L50: =INDEX(Balancing!$K$11:$K$102,MATCH($F50,Balancing!$D$11:$D$102,0)) -> 206 | M50: =INDEX(Balancing!$L$11:$L$102,MATCH($F50,Balancing!$D$11:$D$102,0)) -> 240 | N50: 34 | O50: 2.368892249 | P50: =INDEX(Balancing!$O$11:$O$102,MATCH($F50,Balancing!$D$11:$D$102,0)) -> 0 | Q50: 240 | R50: =INDEX(Balancing!$V$11:$V$102,MATCH($F50,Balancing!$D$11:$D$102,0)) -> 0.6315918568 | S50: =INDEX(Balancing!$S$11:$S$102,MATCH($F50,Balancing!$D$11:$D$102,0)) -> 41 | T50: 240 | U50: 0 | V50: K53
C51: 44 | E51: SB I-39/90 | F51: 2210 | H51: 3 | I51: mainline | J51: Badger I/C to Beltline I/C | K51: =INDEX(Balancing!$J$11:$J$102,MATCH($F51,Balancing!$D$11:$D$102,0)) -> ATR | L51: =INDEX(Balancing!$K$11:$K$102,MATCH($F51,Balancing!$D$11:$D$102,0)) -> 3536 | M51: =INDEX(Balancing!$L$11:$L$102,MATCH($F51,Balancing!$D$11:$D$102,0)) -> 3530 | N51: -6 | O51: 0.1009009191 | P51: =INDEX(Balancing!$O$11:$O$102,MATCH($F51,Balancing!$D$11:$D$102,0)) -> 0 | Q51: 3520 | R51: =INDEX(Balancing!$V$11:$V$102,MATCH($F51,Balancing!$D$11:$D$102,0)) -> 3.613768294 | S51: =INDEX(Balancing!$S$11:$S$102,MATCH($F51,Balancing!$D$11:$D$102,0)) -> 7 | T51: 3530 | U51: 0 | V51: L$33+SUMPRODUCT(L$34:L53,$I$34:$I53)
C52: 45 | D52: NB US 151 | E52: NB US 151 | F52: 3000 | H52: 3 | I52: mainline | J52: Frontage Rd to I-39/90/94 | K52: =INDEX(Balancing!$J$11:$J$102,MATCH($F52,Balancing!$D$11:$D$102,0)) -> TM Count | L52: =INDEX(Balancing!$K$11:$K$102,MATCH($F52,Balancing!$D$11:$D$102,0)) -> 753 | M52: =INDEX(Balancing!$L$11:$L$102,MATCH($F52,Balancing!$D$11:$D$102,0)) -> 820 | N52: 67 | O52: 2.441615732 | P52: =INDEX(Balancing!$O$11:$O$102,MATCH($F52,Balancing!$D$11:$D$102,0)) -> 0 | Q52: 800 | R52: =INDEX(Balancing!$V$11:$V$102,MATCH($F52,Balancing!$D$11:$D$102,0)) -> 0.7695609517 | S52: =INDEX(Balancing!$S$11:$S$102,MATCH($F52,Balancing!$D$11:$D$102,0)) -> 36 | T52: 820 | U52: 0 | V52: K55
C53: 46 | E53: NB US 151 | F53: 2110 | G53: Secondary | H53: 1 | I53: off | J53: off to SB I-39/90/94 | K53: =INDEX(Balancing!$J$11:$J$102,MATCH($F53,Balancing!$D$11:$D$102,0)) -> Tube | L53: =INDEX(Balancing!$K$11:$K$102,MATCH($F53,Balancing!$D$11:$D$102,0)) -> 229 | M53: =INDEX(Balancing!$L$11:$L$102,MATCH($F53,Balancing!$D$11:$D$102,0)) -> 210 | N53: -19 | O53: 1.255555341 | P53: =INDEX(Balancing!$O$11:$O$102,MATCH($F53,Balancing!$D$11:$D$102,0)) -> 0 | Q53: 210 | R53: =INDEX(Balancing!$V$11:$V$102,MATCH($F53,Balancing!$D$11:$D$102,0)) -> 0.7021093942 | S53: =INDEX(Balancing!$S$11:$S$102,MATCH($F53,Balancing!$D$11:$D$102,0)) -> 39 | T53: 210 | U53: 0 | V53: L44
C54: 47 | E54: NB US 151 | F54: 2090 | G54: Secondary | H54: 1 | I54: on | J54: on from SB I-39/90/94 | K54: =INDEX(Balancing!$J$11:$J$102,MATCH($F54,Balancing!$D$11:$D$102,0)) -> V-SPOC | L54: =INDEX(Balancing!$K$11:$K$102,MATCH($F54,Balancing!$D$11:$D$102,0)) -> 233 | M54: =INDEX(Balancing!$L$11:$L$102,MATCH($F54,Balancing!$D$11:$D$102,0)) -> 260 | N54: 27 | O54: 1.768828812 | P54: =INDEX(Balancing!$O$11:$O$102,MATCH($F54,Balancing!$D$11:$D$102,0)) -> 0 | Q54: 260 | R54: =INDEX(Balancing!$V$11:$V$102,MATCH($F54,Balancing!$D$11:$D$102,0)) -> 0.7143733137 | S54: =INDEX(Balancing!$S$11:$S$102,MATCH($F54,Balancing!$D$11:$D$102,0)) -> 38 | T54: 260 | U54: 0 | V54: L42
C55: 48 | E55: NB US 151 | F55: 1110 | G55: Secondary | H55: 1 | I55: off | J55: off to NB I-39/90/94 | K55: =INDEX(Balancing!$J$11:$J$102,MATCH($F55,Balancing!$D$11:$D$102,0)) -> V-SPOC | L55: =INDEX(Balancing!$K$11:$K$102,MATCH($F55,Balancing!$D$11:$D$102,0)) -> 102 | M55: =INDEX(Balancing!$L$11:$L$102,MATCH($F55,Balancing!$D$11:$D$102,0)) -> 70 | N55: -32 | O55: 3.168472138 | P55: =INDEX(Balancing!$O$11:$O$102,MATCH($F55,Balancing!$D$11:$D$102,0)) -> 0 | Q55: 70 | R55: =INDEX(Balancing!$V$11:$V$102,MATCH($F55,Balancing!$D$11:$D$102,0)) -> 0.6131959774 | S55: =INDEX(Balancing!$S$11:$S$102,MATCH($F55,Balancing!$D$11:$D$102,0)) -> 42 | T55: 70 | U55: 0 | V55: L22
C56: 49 | E56: NB US 151 | F56: 1090 | G56: Secondary | H56: 1 | I56: on | J56: on from NB I-39/90/94 | K56: =INDEX(Balancing!$J$11:$J$102,MATCH($F56,Balancing!$D$11:$D$102,0)) -> V-SPOC | L56: =INDEX(Balancing!$K$11:$K$102,MATCH($F56,Balancing!$D$11:$D$102,0)) -> 1469 | M56: =INDEX(Balancing!$L$11:$L$102,MATCH($F56,Balancing!$D$11:$D$102,0)) -> 1380 | N56: -89 | O56: 2.322090324 | P56: =INDEX(Balancing!$O$11:$O$102,MATCH($F56,Balancing!$D$11:$D$102,0)) -> 0 | Q56: 1400 | R56: =INDEX(Balancing!$V$11:$V$102,MATCH($F56,Balancing!$D$11:$D$102,0)) -> 4.503924454 | S56: =INDEX(Balancing!$S$11:$S$102,MATCH($F56,Balancing!$D$11:$D$102,0)) -> 4 | T56: 1380 | U56: 0 | V56: L20
C57: 50 | E57: NB US 151 | F57: 3050 | H57: 3 | I57: mainline | J57: I-39/90/94 to American Pkwy | K57: =INDEX(Balancing!$J$11:$J$102,MATCH($F57,Balancing!$D$11:$D$102,0)) -> Tube | L57: =INDEX(Balancing!$K$11:$K$102,MATCH($F57,Balancing!$D$11:$D$102,0)) -> 2177 | M57: =INDEX(Balancing!$L$11:$L$102,MATCH($F57,Balancing!$D$11:$D$102,0)) -> 2180 | N57: 3 | O57: 0.06429719695 | P57: =INDEX(Balancing!$O$11:$O$102,MATCH($F57,Balancing!$D$11:$D$102,0)) -> 0 | Q57: 2180 | R57: =INDEX(Balancing!$V$11:$V$102,MATCH($F57,Balancing!$D$11:$D$102,0)) -> 2.224879405 | S57: =INDEX(Balancing!$S$11:$S$102,MATCH($F57,Balancing!$D$11:$D$102,0)) -> 18 | T57: 2180 | U57: 0 | V57: L$55+SUMPRODUCT(L$56:L59,$I$56:$I59)
C58: 51 | E58: NB US 151 | F58: 3060 | H58: 1 | I58: off | J58: off to EB American Pkwy | K58: =INDEX(Balancing!$J$11:$J$102,MATCH($F58,Balancing!$D$11:$D$102,0)) -> Tube | L58: =INDEX(Balancing!$K$11:$K$102,MATCH($F58,Balancing!$D$11:$D$102,0)) -> 155 | M58: =INDEX(Balancing!$L$11:$L$102,MATCH($F58,Balancing!$D$11:$D$102,0)) -> 130 | N58: -25 | O58: 2.008048322 | P58: =INDEX(Balancing!$O$11:$O$102,MATCH($F58,Balancing!$D$11:$D$102,0)) -> 0 | Q58: 130 | R58: =INDEX(Balancing!$V$11:$V$102,MATCH($F58,Balancing!$D$11:$D$102,0)) -> 0.6131959774 | S58: =INDEX(Balancing!$S$11:$S$102,MATCH($F58,Balancing!$D$11:$D$102,0)) -> 42 | T58: 130 | U58: 0 | V58: K61
C59: 52 | E59: NB US 151 | F59: 3070 | H59: 1 | I59: off | J59: off to WB American Pkwy | K59: =INDEX(Balancing!$J$11:$J$102,MATCH($F59,Balancing!$D$11:$D$102,0)) -> Tube | L59: =INDEX(Balancing!$K$11:$K$102,MATCH($F59,Balancing!$D$11:$D$102,0)) -> 910 | M59: =INDEX(Balancing!$L$11:$L$102,MATCH($F59,Balancing!$D$11:$D$102,0)) -> 910 | N59: 0 | O59: 0 | P59: =INDEX(Balancing!$O$11:$O$102,MATCH($F59,Balancing!$D$11:$D$102,0)) -> 0 | Q59: 910 | R59: =INDEX(Balancing!$V$11:$V$102,MATCH($F59,Balancing!$D$11:$D$102,0)) -> 2.790041697 | S59: =INDEX(Balancing!$S$11:$S$102,MATCH($F59,Balancing!$D$11:$D$102,0)) -> 14 | T59: 910 | U59: 0 | V59: K62
C60: 53 | E60: NB US 151 | F60: 3080 | H60: 3 | I60: mainline. | J60: b/n ramps | K60: =INDEX(Balancing!$J$11:$J$102,MATCH($F60,Balancing!$D$11:$D$102,0)) ->  | L60: =INDEX(Balancing!$K$11:$K$102,MATCH($F60,Balancing!$D$11:$D$102,0)) -> 0 | M60: =INDEX(Balancing!$L$11:$L$102,MATCH($F60,Balancing!$D$11:$D$102,0)) -> 1140 | P60: =INDEX(Balancing!$O$11:$O$102,MATCH($F60,Balancing!$D$11:$D$102,0)) -> 0 | Q60: 1140 | R60: =INDEX(Balancing!$V$11:$V$102,MATCH($F60,Balancing!$D$11:$D$102,0)) -> 0 | S60: =INDEX(Balancing!$S$11:$S$102,MATCH($F60,Balancing!$D$11:$D$102,0)) -> 54 | T60: 1140 | U60: 0 | V60: L$55+SUMPRODUCT(L$56:L62,$I$56:$I62)
C61: 54 | E61: NB US 151 | F61: 3090 | H61: 1 | I61: on | J61: NB on from American Pkwy | K61: =INDEX(Balancing!$J$11:$J$102,MATCH($F61,Balancing!$D$11:$D$102,0)) -> Tube | L61: =INDEX(Balancing!$K$11:$K$102,MATCH($F61,Balancing!$D$11:$D$102,0)) -> 129 | M61: =INDEX(Balancing!$L$11:$L$102,MATCH($F61,Balancing!$D$11:$D$102,0)) -> 150 | N61: 21 | O61: 1.848946903 | P61: =INDEX(Balancing!$O$11:$O$102,MATCH($F61,Balancing!$D$11:$D$102,0)) -> 0 | Q61: 150 | R61: =INDEX(Balancing!$V$11:$V$102,MATCH($F61,Balancing!$D$11:$D$102,0)) -> 0.6131959774 | S61: =INDEX(Balancing!$S$11:$S$102,MATCH($F61,Balancing!$D$11:$D$102,0)) -> 42 | T61: 150 | U61: 0 | V61: K64
C62: 55 | E62: NB US 151 | F62: 3100 | H62: 3 | I62: mainline | J62: American Pkwy to Reiner Rd | K62: =INDEX(Balancing!$J$11:$J$102,MATCH($F62,Balancing!$D$11:$D$102,0)) -> ATR | L62: =INDEX(Balancing!$K$11:$K$102,MATCH($F62,Balancing!$D$11:$D$102,0)) -> 1354 | M62: =INDEX(Balancing!$L$11:$L$102,MATCH($F62,Balancing!$D$11:$D$102,0)) -> 1290 | N62: -64 | O62: 1.739284561 | P62: =INDEX(Balancing!$O$11:$O$102,MATCH($F62,Balancing!$D$11:$D$102,0)) -> 0 | Q62: 1290 | R62: =INDEX(Balancing!$V$11:$V$102,MATCH($F62,Balancing!$D$11:$D$102,0)) -> 1.383778922 | S62: =INDEX(Balancing!$S$11:$S$102,MATCH($F62,Balancing!$D$11:$D$102,0)) -> 27 | T62: 1290 | U62: 0 | V62: L$55+SUMPRODUCT(L$56:L64,$I$56:$I64)
C63: 56 | D63: SB US 151 | E63: SB US 151 | F63: 4000 | H63: 3 | I63: mainline | J63: Reiner Rd to American Pkwy | K63: =INDEX(Balancing!$J$11:$J$102,MATCH($F63,Balancing!$D$11:$D$102,0)) -> ATR | L63: =INDEX(Balancing!$K$11:$K$102,MATCH($F63,Balancing!$D$11:$D$102,0)) -> 3622 | M63: =INDEX(Balancing!$L$11:$L$102,MATCH($F63,Balancing!$D$11:$D$102,0)) -> 3550 | N63: -72 | O63: 1.196350054 | P63: =INDEX(Balancing!$O$11:$O$102,MATCH($F63,Balancing!$D$11:$D$102,0)) -> 0 | Q63: 3560 | R63: =INDEX(Balancing!$V$11:$V$102,MATCH($F63,Balancing!$D$11:$D$102,0)) -> 3.701659717 | S63: =INDEX(Balancing!$S$11:$S$102,MATCH($F63,Balancing!$D$11:$D$102,0)) -> 6 | T63: 3550 | U63: 0 | V63: K66
C64: 57 | E64: SB US 151 | F64: 4010 | H64: 1 | I64: CD | J64: off to American Pkwy/High Crossing | K64: =INDEX(Balancing!$J$11:$J$102,MATCH($F64,Balancing!$D$11:$D$102,0)) ->  | L64: =INDEX(Balancing!$K$11:$K$102,MATCH($F64,Balancing!$D$11:$D$102,0)) -> 0 | M64: =INDEX(Balancing!$L$11:$L$102,MATCH($F64,Balancing!$D$11:$D$102,0)) -> 510 | P64: =INDEX(Balancing!$O$11:$O$102,MATCH($F64,Balancing!$D$11:$D$102,0)) -> 0 | Q64: 510 | R64: =INDEX(Balancing!$V$11:$V$102,MATCH($F64,Balancing!$D$11:$D$102,0)) -> 0 | S64: =INDEX(Balancing!$S$11:$S$102,MATCH($F64,Balancing!$D$11:$D$102,0)) -> 54 | T64: 510 | U64: 0 | V64: SUM(L68:L69)
C65: 58 | E65: SB US 151 | F65: 4020 | H65: 1 | I65: off | J65: off to WB American Pkwy | K65: =INDEX(Balancing!$J$11:$J$102,MATCH($F65,Balancing!$D$11:$D$102,0)) -> Tube | L65: =INDEX(Balancing!$K$11:$K$102,MATCH($F65,Balancing!$D$11:$D$102,0)) -> 271 | M65: =INDEX(Balancing!$L$11:$L$102,MATCH($F65,Balancing!$D$11:$D$102,0)) -> 320 | N65: 49 | O65: 2.976538022 | P65: =INDEX(Balancing!$O$11:$O$102,MATCH($F65,Balancing!$D$11:$D$102,0)) -> 0 | Q65: 320 | R65: =INDEX(Balancing!$V$11:$V$102,MATCH($F65,Balancing!$D$11:$D$102,0)) -> 0.8308805494 | S65: =INDEX(Balancing!$S$11:$S$102,MATCH($F65,Balancing!$D$11:$D$102,0)) -> 34 | T65: 320 | U65: 0 | V65: K68
C66: 59 | E66: SB US 151 | F66: 4030 | H66: 1 | I66: off | J66: off to High Crossing | K66: =INDEX(Balancing!$J$11:$J$102,MATCH($F66,Balancing!$D$11:$D$102,0)) -> Tube | L66: =INDEX(Balancing!$K$11:$K$102,MATCH($F66,Balancing!$D$11:$D$102,0)) -> 153 | M66: =INDEX(Balancing!$L$11:$L$102,MATCH($F66,Balancing!$D$11:$D$102,0)) -> 190 | N66: 37 | O66: 2.991272709 | P66: =INDEX(Balancing!$O$11:$O$102,MATCH($F66,Balancing!$D$11:$D$102,0)) -> 0 | Q66: 190 | R66: =INDEX(Balancing!$V$11:$V$102,MATCH($F66,Balancing!$D$11:$D$102,0)) -> 0.6131959774 | S66: =INDEX(Balancing!$S$11:$S$102,MATCH($F66,Balancing!$D$11:$D$102,0)) -> 42 | T66: 190 | U66: 0 | V66: K69
C67: 60 | E67: SB US 151 | F67: 4040 | H67: 1 | I67: on | J67: on from High Crossing | K67: =INDEX(Balancing!$J$11:$J$102,MATCH($F67,Balancing!$D$11:$D$102,0)) -> Tube | L67: =INDEX(Balancing!$K$11:$K$102,MATCH($F67,Balancing!$D$11:$D$102,0)) -> 104 | M67: =INDEX(Balancing!$L$11:$L$102,MATCH($F67,Balancing!$D$11:$D$102,0)) -> 70 | N67: -34 | O67: 3.333974297 | P67: =INDEX(Balancing!$O$11:$O$102,MATCH($F67,Balancing!$D$11:$D$102,0)) -> 0 | Q67: 70 | R67: =INDEX(Balancing!$V$11:$V$102,MATCH($F67,Balancing!$D$11:$D$102,0)) -> 0.6131959774 | S67: =INDEX(Balancing!$S$11:$S$102,MATCH($F67,Balancing!$D$11:$D$102,0)) -> 42 | T67: 70 | U67: 0 | V67: K70
C68: 61 | E68: SB US 151 | F68: 4050 | H68: 3 | I68: mainline. | J68: b/n ramps | K68: =INDEX(Balancing!$J$11:$J$102,MATCH($F68,Balancing!$D$11:$D$102,0)) ->  | L68: =INDEX(Balancing!$K$11:$K$102,MATCH($F68,Balancing!$D$11:$D$102,0)) -> 0 | M68: =INDEX(Balancing!$L$11:$L$102,MATCH($F68,Balancing!$D$11:$D$102,0)) -> 3110 | P68: =INDEX(Balancing!$O$11:$O$102,MATCH($F68,Balancing!$D$11:$D$102,0)) -> 0 | Q68: 3120 | R68: =INDEX(Balancing!$V$11:$V$102,MATCH($F68,Balancing!$D$11:$D$102,0)) -> 0 | S68: =INDEX(Balancing!$S$11:$S$102,MATCH($F68,Balancing!$D$11:$D$102,0)) -> 54 | T68: 3110 | U68: 0 | V68: L$66+SUMPRODUCT(L$67:L70,$I$67:$I70)
C69: 62 | E69: SB US 151 | F69: 4060 | H69: 1 | I69: on | J69: on from EB American Pkwy | K69: =INDEX(Balancing!$J$11:$J$102,MATCH($F69,Balancing!$D$11:$D$102,0)) -> Tube | L69: =INDEX(Balancing!$K$11:$K$102,MATCH($F69,Balancing!$D$11:$D$102,0)) -> 349 | M69: =INDEX(Balancing!$L$11:$L$102,MATCH($F69,Balancing!$D$11:$D$102,0)) -> 290 | N69: -59 | O69: 3.158197593 | P69: =INDEX(Balancing!$O$11:$O$102,MATCH($F69,Balancing!$D$11:$D$102,0)) -> 0 | Q69: 290 | R69: =INDEX(Balancing!$V$11:$V$102,MATCH($F69,Balancing!$D$11:$D$102,0)) -> 1.070026981 | S69: =INDEX(Balancing!$S$11:$S$102,MATCH($F69,Balancing!$D$11:$D$102,0)) -> 31 | T69: 290 | U69: 0 | V69: K72
C70: 63 | E70: SB US 151 | F70: 4070 | H70: 3 | I70: mainline | J70: American Pkwy to I-39/90/94 | K70: =INDEX(Balancing!$J$11:$J$102,MATCH($F70,Balancing!$D$11:$D$102,0)) -> Tube | L70: =INDEX(Balancing!$K$11:$K$102,MATCH($F70,Balancing!$D$11:$D$102,0)) -> 3382 | M70: =INDEX(Balancing!$L$11:$L$102,MATCH($F70,Balancing!$D$11:$D$102,0)) -> 3400 | N70: 18 | O70: 0.3095178525 | P70: =INDEX(Balancing!$O$11:$O$102,MATCH($F70,Balancing!$D$11:$D$102,0)) -> 0 | Q70: 3410 | R70: =INDEX(Balancing!$V$11:$V$102,MATCH($F70,Balancing!$D$11:$D$102,0)) -> 3.456381326 | S70: =INDEX(Balancing!$S$11:$S$102,MATCH($F70,Balancing!$D$11:$D$102,0)) -> 8 | T70: 3400 | U70: 0 | V70: L$66+SUMPRODUCT(L$67:L72,$I$67:$I72)
C71: 64 | E71: SB US 151 | F71: 1140 | G71: Secondary | H71: 1 | I71: off | J71: off to NB I-39/90/94 | K71: =INDEX(Balancing!$J$11:$J$102,MATCH($F71,Balancing!$D$11:$D$102,0)) -> Tube | L71: =INDEX(Balancing!$K$11:$K$102,MATCH($F71,Balancing!$D$11:$D$102,0)) -> 171 | M71: =INDEX(Balancing!$L$11:$L$102,MATCH($F71,Balancing!$D$11:$D$102,0)) -> 130 | N71: -41 | O71: 3.135348363 | P71: =INDEX(Balancing!$O$11:$O$102,MATCH($F71,Balancing!$D$11:$D$102,0)) -> 0 | Q71: 130 | R71: =INDEX(Balancing!$V$11:$V$102,MATCH($F71,Balancing!$D$11:$D$102,0)) -> 0.6131959774 | S71: =INDEX(Balancing!$S$11:$S$102,MATCH($F71,Balancing!$D$11:$D$102,0)) -> 42 | T71: 130 | U71: 0 | V71: L25
C72: 65 | E72: SB US 151 | F72: 1120 | G72: Secondary | H72: 1 | I72: on | J72: on from NB I-39/90/94 | K72: =INDEX(Balancing!$J$11:$J$102,MATCH($F72,Balancing!$D$11:$D$102,0)) -> V-SPOC | L72: =INDEX(Balancing!$K$11:$K$102,MATCH($F72,Balancing!$D$11:$D$102,0)) -> 154 | M72: =INDEX(Balancing!$L$11:$L$102,MATCH($F72,Balancing!$D$11:$D$102,0)) -> 120 | N72: =IF($L72>0,$M72-$L72,"") -> -34 | O72: =IF($L72>0,SQRT($N72^2/$L72),"") -> 2.739798078 | P72: =INDEX(Balancing!$O$11:$O$102,MATCH($F72,Balancing!$D$11:$D$102,0)) -> 0 | Q72: 110 | R72: =INDEX(Balancing!$V$11:$V$102,MATCH($F72,Balancing!$D$11:$D$102,0)) -> 0.6131959774 | S72: =INDEX(Balancing!$S$11:$S$102,MATCH($F72,Balancing!$D$11:$D$102,0)) -> 42 | T72: 120 | U72: =M72-T72 -> 0 | V72: L23
C73: 66 | E73: SB US 151 | F73: 2080 | G73: Secondary | H73: 1 | I73: off | J73: off to SB I-39/90/94 | K73: =INDEX(Balancing!$J$11:$J$102,MATCH($F73,Balancing!$D$11:$D$102,0)) -> V-SPOC | L73: =INDEX(Balancing!$K$11:$K$102,MATCH($F73,Balancing!$D$11:$D$102,0)) -> 1693 | M73: =INDEX(Balancing!$L$11:$L$102,MATCH($F73,Balancing!$D$11:$D$102,0)) -> 1690 | N73: -3 | O73: 0.07291095314 | P73: =INDEX(Balancing!$O$11:$O$102,MATCH($F73,Balancing!$D$11:$D$102,0)) -> 0 | Q73: 1690 | R73: =INDEX(Balancing!$V$11:$V$102,MATCH($F73,Balancing!$D$11:$D$102,0)) -> 5.190703949 | S73: =INDEX(Balancing!$S$11:$S$102,MATCH($F73,Balancing!$D$11:$D$102,0)) -> 3 | T73: 1690 | U73: 0 | V73: L41
C74: 67 | E74: SB US 151 | F74: 2060 | G74: Secondary | H74: 1 | I74: on | J74: on from SB I-39/90/94 | K74: =INDEX(Balancing!$J$11:$J$102,MATCH($F74,Balancing!$D$11:$D$102,0)) -> V-SPOC | L74: =INDEX(Balancing!$K$11:$K$102,MATCH($F74,Balancing!$D$11:$D$102,0)) -> 145 | M74: =INDEX(Balancing!$L$11:$L$102,MATCH($F74,Balancing!$D$11:$D$102,0)) -> 140 | N74: -5 | O74: 0.4152273993 | P74: =INDEX(Balancing!$O$11:$O$102,MATCH($F74,Balancing!$D$11:$D$102,0)) -> 0 | Q74: 140 | R74: =INDEX(Balancing!$V$11:$V$102,MATCH($F74,Balancing!$D$11:$D$102,0)) -> 0.6131959774 | S74: =INDEX(Balancing!$S$11:$S$102,MATCH($F74,Balancing!$D$11:$D$102,0)) -> 42 | T74: 140 | U74: 0 | V74: L39
C75: 68 | E75: SB US 151 | F75: 4120 | H75: 3 | I75: mainline | J75: I-39/90/94 to Frontage Rd | K75: =INDEX(Balancing!$J$11:$J$102,MATCH($F75,Balancing!$D$11:$D$102,0)) -> TM Count | L75: =INDEX(Balancing!$K$11:$K$102,MATCH($F75,Balancing!$D$11:$D$102,0)) -> 1835 | M75: =INDEX(Balancing!$L$11:$L$102,MATCH($F75,Balancing!$D$11:$D$102,0)) -> 1840 | N75: 5 | O75: 0.1167217983 | P75: =INDEX(Balancing!$O$11:$O$102,MATCH($F75,Balancing!$D$11:$D$102,0)) -> 0 | Q75: 1840 | R75: =INDEX(Balancing!$V$11:$V$102,MATCH($F75,Balancing!$D$11:$D$102,0)) -> 1.875357698 | S75: =INDEX(Balancing!$S$11:$S$102,MATCH($F75,Balancing!$D$11:$D$102,0)) -> 21 | T75: 1840 | U75: 0 | V75: L$66+SUMPRODUCT(L$67:L77,$I$67:$I77)
C76: 69 | D76: EB WIS 30 | E76: EB WIS 30 | F76: 5000 | H76: 3 | I76: mainline | J76: Fair Oaks to US 51 | K76: =INDEX(Balancing!$J$11:$J$102,MATCH($F76,Balancing!$D$11:$D$102,0)) -> Tube | L76: =INDEX(Balancing!$K$11:$K$102,MATCH($F76,Balancing!$D$11:$D$102,0)) -> 1377 | M76: =INDEX(Balancing!$L$11:$L$102,MATCH($F76,Balancing!$D$11:$D$102,0)) -> 1380 | N76: 3 | O76: 0.08084520835 | P76: =INDEX(Balancing!$O$11:$O$102,MATCH($F76,Balancing!$D$11:$D$102,0)) -> 0 | Q76: 1380 | R76: =INDEX(Balancing!$V$11:$V$102,MATCH($F76,Balancing!$D$11:$D$102,0)) -> 1.407284768 | S76: =INDEX(Balancing!$S$11:$S$102,MATCH($F76,Balancing!$D$11:$D$102,0)) -> 26 | T76: 1380 | U76: 0 | V76: K79
C77: 70 | E77: EB WIS 30 | F77: 5010 | H77: 1 | I77: off | J77: off to US 51 | K77: =INDEX(Balancing!$J$11:$J$102,MATCH($F77,Balancing!$D$11:$D$102,0)) -> V-SPOC | L77: =INDEX(Balancing!$K$11:$K$102,MATCH($F77,Balancing!$D$11:$D$102,0)) -> 649 | M77: =INDEX(Balancing!$L$11:$L$102,MATCH($F77,Balancing!$D$11:$D$102,0)) -> 650 | N77: 1 | O77: 0.0392534336 | P77: =INDEX(Balancing!$O$11:$O$102,MATCH($F77,Balancing!$D$11:$D$102,0)) -> 0 | Q77: 650 | R77: =INDEX(Balancing!$V$11:$V$102,MATCH($F77,Balancing!$D$11:$D$102,0)) -> 1.989820947 | S77: =INDEX(Balancing!$S$11:$S$102,MATCH($F77,Balancing!$D$11:$D$102,0)) -> 19 | T77: 650 | U77: 0 | V77: K80
C78: 71 | E78: EB WIS 30 | F78: 5020 | H78: 1 | I78: on | J78: on from US 51 | K78: =INDEX(Balancing!$J$11:$J$102,MATCH($F78,Balancing!$D$11:$D$102,0)) -> V-SPOC | L78: =INDEX(Balancing!$K$11:$K$102,MATCH($F78,Balancing!$D$11:$D$102,0)) -> 503 | M78: =INDEX(Balancing!$L$11:$L$102,MATCH($F78,Balancing!$D$11:$D$102,0)) -> 500 | N78: -3 | O78: 0.1337633886 | P78: =INDEX(Balancing!$O$11:$O$102,MATCH($F78,Balancing!$D$11:$D$102,0)) -> 0 | Q78: 500 | R78: =INDEX(Balancing!$V$11:$V$102,MATCH($F78,Balancing!$D$11:$D$102,0)) -> 1.542187883 | S78: =INDEX(Balancing!$S$11:$S$102,MATCH($F78,Balancing!$D$11:$D$102,0)) -> 25 | T78: 500 | U78: 0 | V78: K81
C79: 72 | E79: EB WIS 30 | F79: 5030 | H79: 3 | I79: mainline | J79: US 51 to Thompson Dr | K79: =INDEX(Balancing!$J$11:$J$102,MATCH($F79,Balancing!$D$11:$D$102,0)) ->  | L79: =INDEX(Balancing!$K$11:$K$102,MATCH($F79,Balancing!$D$11:$D$102,0)) -> 0 | M79: =INDEX(Balancing!$L$11:$L$102,MATCH($F79,Balancing!$D$11:$D$102,0)) -> 1230 | P79: =INDEX(Balancing!$O$11:$O$102,MATCH($F79,Balancing!$D$11:$D$102,0)) -> 0 | Q79: 1230 | R79: =INDEX(Balancing!$V$11:$V$102,MATCH($F79,Balancing!$D$11:$D$102,0)) -> 0 | S79: =INDEX(Balancing!$S$11:$S$102,MATCH($F79,Balancing!$D$11:$D$102,0)) -> 54 | T79: 1230 | U79: 0 | V79: L$79+SUMPRODUCT(L$80:L81,$I$80:$I81)
C80: 73 | E80: EB WIS 30 | F80: 5040 | H80: 1 | I80: off | J80: off to Thompson Dr | K80: =INDEX(Balancing!$J$11:$J$102,MATCH($F80,Balancing!$D$11:$D$102,0)) -> TM Count | L80: =INDEX(Balancing!$K$11:$K$102,MATCH($F80,Balancing!$D$11:$D$102,0)) -> 271 | M80: =INDEX(Balancing!$L$11:$L$102,MATCH($F80,Balancing!$D$11:$D$102,0)) -> 270 | N80: -1 | O80: 0.06074567392 | P80: =INDEX(Balancing!$O$11:$O$102,MATCH($F80,Balancing!$D$11:$D$102,0)) -> 0 | Q80: 270 | R80: =INDEX(Balancing!$V$11:$V$102,MATCH($F80,Balancing!$D$11:$D$102,0)) -> 0.8308805494 | S80: =INDEX(Balancing!$S$11:$S$102,MATCH($F80,Balancing!$D$11:$D$102,0)) -> 34 | T80: 270 | U80: 0 | V80: K83
C81: 74 | E81: EB WIS 30 | F81: 5050 | H81: 2 | I81: mainline | J81: Thompson Dr to I-39/90 | K81: =INDEX(Balancing!$J$11:$J$102,MATCH($F81,Balancing!$D$11:$D$102,0)) ->  | L81: =INDEX(Balancing!$K$11:$K$102,MATCH($F81,Balancing!$D$11:$D$102,0)) -> 0 | M81: =INDEX(Balancing!$L$11:$L$102,MATCH($F81,Balancing!$D$11:$D$102,0)) -> 960 | P81: =INDEX(Balancing!$O$11:$O$102,MATCH($F81,Balancing!$D$11:$D$102,0)) -> 0 | Q81: 960 | R81: =INDEX(Balancing!$V$11:$V$102,MATCH($F81,Balancing!$D$11:$D$102,0)) -> 0 | S81: =INDEX(Balancing!$S$11:$S$102,MATCH($F81,Balancing!$D$11:$D$102,0)) -> 54 | T81: 960 | U81: 0 | V81: L$79+SUMPRODUCT(L$80:L83,$I$80:$I83)
C82: 75 | E82: EB WIS 30 | F82: 2200 | G82: Secondary | H82: 1 | I82: off | J82: off to SB I-39/90 | K82: =INDEX(Balancing!$J$11:$J$102,MATCH($F82,Balancing!$D$11:$D$102,0)) -> Tube | L82: =INDEX(Balancing!$K$11:$K$102,MATCH($F82,Balancing!$D$11:$D$102,0)) -> 206 | M82: =INDEX(Balancing!$L$11:$L$102,MATCH($F82,Balancing!$D$11:$D$102,0)) -> 240 | N82: 34 | O82: 2.368892249 | P82: =INDEX(Balancing!$O$11:$O$102,MATCH($F82,Balancing!$D$11:$D$102,0)) -> 0 | Q82: 240 | R82: =INDEX(Balancing!$V$11:$V$102,MATCH($F82,Balancing!$D$11:$D$102,0)) -> 0.6315918568 | S82: =INDEX(Balancing!$S$11:$S$102,MATCH($F82,Balancing!$D$11:$D$102,0)) -> 41 | T82: 240 | U82: 0 | V82: L53
C83: 76 | E83: EB WIS 30 | F83: 1040 | G83: Secondary | H83: 1 | I83: off | J83: off to NB I-39/90 | K83: =INDEX(Balancing!$J$11:$J$102,MATCH($F83,Balancing!$D$11:$D$102,0)) -> Tube | L83: =INDEX(Balancing!$K$11:$K$102,MATCH($F83,Balancing!$D$11:$D$102,0)) -> 441 | M83: =INDEX(Balancing!$L$11:$L$102,MATCH($F83,Balancing!$D$11:$D$102,0)) -> 380 | N83: -61 | O83: 2.904761905 | P83: =INDEX(Balancing!$O$11:$O$102,MATCH($F83,Balancing!$D$11:$D$102,0)) -> 0 | Q83: 380 | R83: =INDEX(Balancing!$V$11:$V$102,MATCH($F83,Balancing!$D$11:$D$102,0)) -> 1.35209713 | S83: =INDEX(Balancing!$S$11:$S$102,MATCH($F83,Balancing!$D$11:$D$102,0)) -> 28 | T83: 380 | U83: 0 | V83: L15
C84: 77 | E84: EB WIS 30 | F84: 5080 | H84: 2 | I84: mainline | J84: EB WIS 30 to EB I-94 | K84: =INDEX(Balancing!$J$11:$J$102,MATCH($F84,Balancing!$D$11:$D$102,0)) ->  | L84: =INDEX(Balancing!$K$11:$K$102,MATCH($F84,Balancing!$D$11:$D$102,0)) -> 0 | M84: =INDEX(Balancing!$L$11:$L$102,MATCH($F84,Balancing!$D$11:$D$102,0)) -> 340 | P84: =INDEX(Balancing!$O$11:$O$102,MATCH($F84,Balancing!$D$11:$D$102,0)) -> 0 | Q84: 340 | R84: =INDEX(Balancing!$V$11:$V$102,MATCH($F84,Balancing!$D$11:$D$102,0)) -> 0 | S84: =INDEX(Balancing!$S$11:$S$102,MATCH($F84,Balancing!$D$11:$D$102,0)) -> 54 | T84: 340 | U84: 0 | V84: L$79+SUMPRODUCT(L$80:L86,$I$80:$I86)
C85: 78 | E85: EB WIS 30 | F85: 1020 | G85: Secondary | H85: 1 | I85: on | J85: on from NB I-39/90 | K85: =INDEX(Balancing!$J$11:$J$102,MATCH($F85,Balancing!$D$11:$D$102,0)) -> Tube | L85: =INDEX(Balancing!$K$11:$K$102,MATCH($F85,Balancing!$D$11:$D$102,0)) -> 409 | M85: =INDEX(Balancing!$L$11:$L$102,MATCH($F85,Balancing!$D$11:$D$102,0)) -> 470 | N85: 61 | O85: 3.016255876 | P85: =INDEX(Balancing!$O$11:$O$102,MATCH($F85,Balancing!$D$11:$D$102,0)) -> 0 | Q85: 470 | R85: =INDEX(Balancing!$V$11:$V$102,MATCH($F85,Balancing!$D$11:$D$102,0)) -> 1.253985774 | S85: =INDEX(Balancing!$S$11:$S$102,MATCH($F85,Balancing!$D$11:$D$102,0)) -> 29 | T85: 470 | U85: 0 | V85: L13
C86: 79 | E86: EB WIS 30 | F86: 2160 | G86: Secondary | H86: 2 | I86: on | J86: on from SB I-39/90/94 | K86: =INDEX(Balancing!$J$11:$J$102,MATCH($F86,Balancing!$D$11:$D$102,0)) -> Tube | L86: =INDEX(Balancing!$K$11:$K$102,MATCH($F86,Balancing!$D$11:$D$102,0)) -> 442 | M86: =INDEX(Balancing!$L$11:$L$102,MATCH($F86,Balancing!$D$11:$D$102,0)) -> 380 | N86: -62 | O86: 2.949039264 | P86: =INDEX(Balancing!$O$11:$O$102,MATCH($F86,Balancing!$D$11:$D$102,0)) -> 0 | Q86: 380 | R86: =INDEX(Balancing!$V$11:$V$102,MATCH($F86,Balancing!$D$11:$D$102,0)) -> 0.6775815551 | S86: =INDEX(Balancing!$S$11:$S$102,MATCH($F86,Balancing!$D$11:$D$102,0)) -> 40 | T86: 380 | U86: 0 | V86: L49
C87: 80 | D87: EB I-94 | E87: EB I-94 | F87: 5110 | H87: 3 | I87: mainline | J87: Badger to County N | K87: =INDEX(Balancing!$J$11:$J$102,MATCH($F87,Balancing!$D$11:$D$102,0)) -> V-SPOC | L87: =INDEX(Balancing!$K$11:$K$102,MATCH($F87,Balancing!$D$11:$D$102,0)) -> 1014 | M87: =INDEX(Balancing!$L$11:$L$102,MATCH($F87,Balancing!$D$11:$D$102,0)) -> 1010 | N87: -4 | O87: 0.1256148586 | P87: =INDEX(Balancing!$O$11:$O$102,MATCH($F87,Balancing!$D$11:$D$102,0)) -> 0 | Q87: 1010 | R87: =INDEX(Balancing!$V$11:$V$102,MATCH($F87,Balancing!$D$11:$D$102,0)) -> 1.036301202 | S87: =INDEX(Balancing!$S$11:$S$102,MATCH($F87,Balancing!$D$11:$D$102,0)) -> 32 | T87: 1010 | U87: 0 | V87: K90
C88: 81 | D88: WB I-94 | E88: WB I-94 | F88: 6000 | H88: 3 | I88: mainline | J88: County N to Badger | K88: =INDEX(Balancing!$J$11:$J$102,MATCH($F88,Balancing!$D$11:$D$102,0)) -> V-SPOC | L88: =INDEX(Balancing!$K$11:$K$102,MATCH($F88,Balancing!$D$11:$D$102,0)) -> 2444 | M88: =INDEX(Balancing!$L$11:$L$102,MATCH($F88,Balancing!$D$11:$D$102,0)) -> 2550 | N88: 106 | O88: 2.144150494 | P88: =INDEX(Balancing!$O$11:$O$102,MATCH($F88,Balancing!$D$11:$D$102,0)) -> 0 | Q88: 2530 | R88: =INDEX(Balancing!$V$11:$V$102,MATCH($F88,Balancing!$D$11:$D$102,0)) -> 2.497751615 | S88: =INDEX(Balancing!$S$11:$S$102,MATCH($F88,Balancing!$D$11:$D$102,0)) -> 17 | T88: 2550 | U88: 0 | V88: K91
C89: 82 | E89: WB I-94 | F89: 1050 | G89: Secondary | H89: 2 | I89: off | J89: off to NB I-39/90 | K89: =INDEX(Balancing!$J$11:$J$102,MATCH($F89,Balancing!$D$11:$D$102,0)) -> Tube | L89: =INDEX(Balancing!$K$11:$K$102,MATCH($F89,Balancing!$D$11:$D$102,0)) -> 787 | M89: =INDEX(Balancing!$L$11:$L$102,MATCH($F89,Balancing!$D$11:$D$102,0)) -> 700 | N89: -87 | O89: 3.101215075 | P89: =INDEX(Balancing!$O$11:$O$102,MATCH($F89,Balancing!$D$11:$D$102,0)) -> 0 | Q89: 700 | R89: =INDEX(Balancing!$V$11:$V$102,MATCH($F89,Balancing!$D$11:$D$102,0)) -> 1.206463086 | S89: =INDEX(Balancing!$S$11:$S$102,MATCH($F89,Balancing!$D$11:$D$102,0)) -> 30 | T89: 700 | U89: 0 | V89: L16
C90: 83 | E90: WB I-94 | F90: 2190 | G90: Secondary | H90: 1 | I90: off | J90: off to SB I-39/90 | K90: =INDEX(Balancing!$J$11:$J$102,MATCH($F90,Balancing!$D$11:$D$102,0)) -> Tube | L90: =INDEX(Balancing!$K$11:$K$102,MATCH($F90,Balancing!$D$11:$D$102,0)) -> 912 | M90: =INDEX(Balancing!$L$11:$L$102,MATCH($F90,Balancing!$D$11:$D$102,0)) -> 910 | N90: -2 | O90: 0.06622661785 | P90: =INDEX(Balancing!$O$11:$O$102,MATCH($F90,Balancing!$D$11:$D$102,0)) -> 0 | Q90: 910 | R90: =INDEX(Balancing!$V$11:$V$102,MATCH($F90,Balancing!$D$11:$D$102,0)) -> 2.796173657 | S90: =INDEX(Balancing!$S$11:$S$102,MATCH($F90,Balancing!$D$11:$D$102,0)) -> 12 | T90: 910 | U90: 0 | V90: L52
C91: 84 | D91: WB WIS 30 | E91: WB WIS 30 | F91: 6030 | H91: 2 | I91: mainline | J91: EB I-94 to EB WIS 30 | K91: =INDEX(Balancing!$J$11:$J$102,MATCH($F91,Balancing!$D$11:$D$102,0)) ->  | L91: =INDEX(Balancing!$K$11:$K$102,MATCH($F91,Balancing!$D$11:$D$102,0)) -> 0 | M91: =INDEX(Balancing!$L$11:$L$102,MATCH($F91,Balancing!$D$11:$D$102,0)) -> 0 | P91: =INDEX(Balancing!$O$11:$O$102,MATCH($F91,Balancing!$D$11:$D$102,0)) -> 0 | Q91: 0 | R91: =INDEX(Balancing!$V$11:$V$102,MATCH($F91,Balancing!$D$11:$D$102,0)) -> 0 | S91: =INDEX(Balancing!$S$11:$S$102,MATCH($F91,Balancing!$D$11:$D$102,0)) -> 54 | T91: 0 | U91: 0 | V91: K94
C92: 85 | E92: WB WIS 30 | F92: 2170 | G92: Secondary | H92: 1 | I92: on | J92: on from SB I-39/90/94 | K92: =INDEX(Balancing!$J$11:$J$102,MATCH($F92,Balancing!$D$11:$D$102,0)) -> Tube | L92: =INDEX(Balancing!$K$11:$K$102,MATCH($F92,Balancing!$D$11:$D$102,0)) -> 844 | M92: =INDEX(Balancing!$L$11:$L$102,MATCH($F92,Balancing!$D$11:$D$102,0)) -> 840 | N92: -4 | O92: 0.1376856782 | P92: =INDEX(Balancing!$O$11:$O$102,MATCH($F92,Balancing!$D$11:$D$102,0)) -> 0 | Q92: 850 | R92: =INDEX(Balancing!$V$11:$V$102,MATCH($F92,Balancing!$D$11:$D$102,0)) -> 2.587687025 | S92: =INDEX(Balancing!$S$11:$S$102,MATCH($F92,Balancing!$D$11:$D$102,0)) -> 16 | T92: 840 | U92: 0 | V92: L50
C93: 86 | E93: WB WIS 30 | F93: 1010 | G93: Secondary | H93: 1 | I93: on | J93: on from NB I-39/90 | K93: =INDEX(Balancing!$J$11:$J$102,MATCH($F93,Balancing!$D$11:$D$102,0)) -> Tube | L93: =INDEX(Balancing!$K$11:$K$102,MATCH($F93,Balancing!$D$11:$D$102,0)) -> 504 | M93: =INDEX(Balancing!$L$11:$L$102,MATCH($F93,Balancing!$D$11:$D$102,0)) -> 570 | N93: 66 | O93: 2.939873661 | P93: =INDEX(Balancing!$O$11:$O$102,MATCH($F93,Balancing!$D$11:$D$102,0)) -> 0 | Q93: 570 | R93: =INDEX(Balancing!$V$11:$V$102,MATCH($F93,Balancing!$D$11:$D$102,0)) -> 1.545253863 | S93: =INDEX(Balancing!$S$11:$S$102,MATCH($F93,Balancing!$D$11:$D$102,0)) -> 24 | T93: 570 | U93: 0 | V93: L12
C94: 87 | E94: WB WIS 30 | F94: 6060 | H94: 2 | I94: mainline | J94: Badger to Thompson Dr | K94: =INDEX(Balancing!$J$11:$J$102,MATCH($F94,Balancing!$D$11:$D$102,0)) ->  | L94: =INDEX(Balancing!$K$11:$K$102,MATCH($F94,Balancing!$D$11:$D$102,0)) -> 0 | M94: =INDEX(Balancing!$L$11:$L$102,MATCH($F94,Balancing!$D$11:$D$102,0)) -> 2350 | P94: =INDEX(Balancing!$O$11:$O$102,MATCH($F94,Balancing!$D$11:$D$102,0)) -> 0 | Q94: 2340 | R94: =INDEX(Balancing!$V$11:$V$102,MATCH($F94,Balancing!$D$11:$D$102,0)) -> 0 | S94: =INDEX(Balancing!$S$11:$S$102,MATCH($F94,Balancing!$D$11:$D$102,0)) -> 54 | T94: 2350 | U94: 0 | V94: L$91+SUMPRODUCT(L$92:L96,$I$92:$I96)
C95: 88 | E95: WB WIS 30 | F95: 6070 | H95: 1 | I95: on | J95: on from Thompson Dr | K95: =INDEX(Balancing!$J$11:$J$102,MATCH($F95,Balancing!$D$11:$D$102,0)) -> TM Count | L95: =INDEX(Balancing!$K$11:$K$102,MATCH($F95,Balancing!$D$11:$D$102,0)) -> 1097 | M95: =INDEX(Balancing!$L$11:$L$102,MATCH($F95,Balancing!$D$11:$D$102,0)) -> 1110 | N95: 13 | O95: 0.3925003411 | P95: =INDEX(Balancing!$O$11:$O$102,MATCH($F95,Balancing!$D$11:$D$102,0)) -> 0 | Q95: 1110 | R95: =INDEX(Balancing!$V$11:$V$102,MATCH($F95,Balancing!$D$11:$D$102,0)) -> 3.363379936 | S95: =INDEX(Balancing!$S$11:$S$102,MATCH($F95,Balancing!$D$11:$D$102,0)) -> 9 | T95: 1110 | U95: 0 | V95: K98
C96: 89 | E96: WB WIS 30 | F96: 6080 | H96: 3 | I96: mainline | J96: Thompson Dr to US 51 | K96: =INDEX(Balancing!$J$11:$J$102,MATCH($F96,Balancing!$D$11:$D$102,0)) ->  | L96: =INDEX(Balancing!$K$11:$K$102,MATCH($F96,Balancing!$D$11:$D$102,0)) -> 0 | M96: =INDEX(Balancing!$L$11:$L$102,MATCH($F96,Balancing!$D$11:$D$102,0)) -> 3460 | P96: =INDEX(Balancing!$O$11:$O$102,MATCH($F96,Balancing!$D$11:$D$102,0)) -> 0 | Q96: 3450 | R96: =INDEX(Balancing!$V$11:$V$102,MATCH($F96,Balancing!$D$11:$D$102,0)) -> 0 | S96: =INDEX(Balancing!$S$11:$S$102,MATCH($F96,Balancing!$D$11:$D$102,0)) -> 54 | T96: 3460 | U96: 0 | V96: L$91+SUMPRODUCT(L$92:L98,$I$92:$I98)
C97: 90 | E97: WB WIS 30 | F97: 6090 | H97: 1 | I97: off | J97: off to US 51 | K97: =INDEX(Balancing!$J$11:$J$102,MATCH($F97,Balancing!$D$11:$D$102,0)) -> V-SPOC | L97: =INDEX(Balancing!$K$11:$K$102,MATCH($F97,Balancing!$D$11:$D$102,0)) -> 1325 | M97: =INDEX(Balancing!$L$11:$L$102,MATCH($F97,Balancing!$D$11:$D$102,0)) -> 1320 | N97: -5 | O97: 0.1373605639 | P97: =INDEX(Balancing!$O$11:$O$102,MATCH($F97,Balancing!$D$11:$D$102,0)) -> 0 | Q97: 1320 | R97: =INDEX(Balancing!$V$11:$V$102,MATCH($F97,Balancing!$D$11:$D$102,0)) -> 4.062423351 | S97: =INDEX(Balancing!$S$11:$S$102,MATCH($F97,Balancing!$D$11:$D$102,0)) -> 5 | T97: 1320 | U97: 0 | V97: K100
C98: 91 | E98: WB WIS 30 | F98: 6100 | H98: 1 | I98: on | J98: on from US 51 | K98: =INDEX(Balancing!$J$11:$J$102,MATCH($F98,Balancing!$D$11:$D$102,0)) -> V-SPOC | L98: =INDEX(Balancing!$K$11:$K$102,MATCH($F98,Balancing!$D$11:$D$102,0)) -> 507 | M98: =INDEX(Balancing!$L$11:$L$102,MATCH($F98,Balancing!$D$11:$D$102,0)) -> 550 | N98: 43 | O98: 1.909697044 | P98: =INDEX(Balancing!$O$11:$O$102,MATCH($F98,Balancing!$D$11:$D$102,0)) -> 0 | Q98: 550 | R98: =INDEX(Balancing!$V$11:$V$102,MATCH($F98,Balancing!$D$11:$D$102,0)) -> 1.554451803 | S98: =INDEX(Balancing!$S$11:$S$102,MATCH($F98,Balancing!$D$11:$D$102,0)) -> 23 | T98: 550 | U98: 0 | V98: K101
C99: 92 | E99: WB WIS 30 | F99: 6110 | H99: 3 | I99: mainline | J99: US 51 to Fair Oaks | K99: =INDEX(Balancing!$J$11:$J$102,MATCH($F99,Balancing!$D$11:$D$102,0)) -> Tube | L99: =INDEX(Balancing!$K$11:$K$102,MATCH($F99,Balancing!$D$11:$D$102,0)) -> 2781 | M99: =INDEX(Balancing!$L$11:$L$102,MATCH($F99,Balancing!$D$11:$D$102,0)) -> 2690 | N99: -91 | O99: 1.725603043 | P99: =INDEX(Balancing!$O$11:$O$102,MATCH($F99,Balancing!$D$11:$D$102,0)) -> 0 | Q99: 2680 | R99: =INDEX(Balancing!$V$11:$V$102,MATCH($F99,Balancing!$D$11:$D$102,0)) -> 2.842163355 | S99: =INDEX(Balancing!$S$11:$S$102,MATCH($F99,Balancing!$D$11:$D$102,0)) -> 10 | T99: 2690 | U99: 0 | V99: L$91+SUMPRODUCT(L$92:L101,$I$92:$I101)

Sheet Export To Intersection Balancer
E2: Project | F2: =project_name -> Example 2 for Freeway Balancing
E3: Scenario | F3: =scenario_name -> Year 2012 AM Peak
D5: Copy this Data to the Turning Movement Balancing Workbook
C6: LINK_ID (no prefix) | D6: LINK_ID | E6: Corridor | F6: Corridor & Direction | G6: Type | H6: Location | I6: Balanced Volume
C7: 1000 | D7: ="LINK_" & $C7 -> LINK_1000 | E7: NB I-39/90 | F7: NB I-39/90 | G7: mainline | H7: Beltline I/C to Badger I/C | I7: =INDEX(Balancing!$L$11:$L$102,MATCH($C7,Balancing!$D$11:$D$102,0)) -> 3610
C8: 1010 | D8: LINK_1010 | F8: NB I-39/90 | G8: off | H8: off to WB WIS 30 | I8: =INDEX(Balancing!$L$11:$L$102,MATCH($C8,Balancing!$D$11:$D$102,0)) -> 570
C9: 1020 | D9: LINK_1020 | F9: NB I-39/90 | G9: off | H9: off to EB I-94 | I9: =INDEX(Balancing!$L$11:$L$102,MATCH($C9,Balancing!$D$11:$D$102,0)) -> 470
C10: 1030 | D10: LINK_1030 | F10: NB I-39/90 | G10: mainline. | H10: b/n ramps | I10: =INDEX(Balancing!$L$11:$L$102,MATCH($C10,Balancing!$D$11:$D$102,0)) -> 2570
C11: 1040 | D11: LINK_1040 | F11: NB I-39/90 | G11: on | H11: on from EB WIS 30 | I11: =INDEX(Balancing!$L$11:$L$102,MATCH($C11,Balancing!$D$11:$D$102,0)) -> 380
C12: 1050 | D12: LINK_1050 | F12: NB I-39/90 | G12: on | H12: on from WB I-94 | I12: =INDEX(Balancing!$L$11:$L$102,MATCH($C12,Balancing!$D$11:$D$102,0)) -> 700
C13: 1060 | D13: LINK_1060 | F13: NB I-39/90 | G13: mainline | H13: Badger to US 151 | I13: =INDEX(Balancing!$L$11:$L$102,MATCH($C13,Balancing!$D$11:$D$102,0)) -> 3650
C14: 1070 | D14: LINK_1070 | F14: NB I-39/90 | G14: CD | H14: off to US 151/High Crossing CD | I14: =INDEX(Balancing!$L$11:$L$102,MATCH($C14,Balancing!$D$11:$D$102,0)) -> 1970
C15: 1080 | D15: LINK_1080 | F15: NB I-39/90 | G15: off | H15: CD: off to High Crossing | I15: =INDEX(Balancing!$L$11:$L$102,MATCH($C15,Balancing!$D$11:$D$102,0)) -> 470
C16: 1090 | D16: LINK_1090 | F16: NB I-39/90 | G16: off | H16: CD: off to NB US 151 | I16: =INDEX(Balancing!$L$11:$L$102,MATCH($C16,Balancing!$D$11:$D$102,0)) -> 1380
C17: 1100 | D17: LINK_1100 | F17: NB I-39/90 | G17: CD | H17: CD: b/n ramps | I17: =INDEX(Balancing!$L$11:$L$102,MATCH($C17,Balancing!$D$11:$D$102,0)) -> 120
C18: 1110 | D18: LINK_1110 | F18: NB I-39/90 | G18: on | H18: CD: on from NB US 151 | I18: =INDEX(Balancing!$L$11:$L$102,MATCH($C18,Balancing!$D$11:$D$102,0)) -> 70
C19: 1120 | D19: LINK_1120 | F19: NB I-39/90 | G19: off | H19: CD: off to SB US 151 | I19: =INDEX(Balancing!$L$11:$L$102,MATCH($C19,Balancing!$D$11:$D$102,0)) -> 120
C20: 1130 | D20: LINK_1130 | F20: NB I-39/90 | G20: CD | H20: CD: b/n ramps | I20: =INDEX(Balancing!$L$11:$L$102,MATCH($C20,Balancing!$D$11:$D$102,0)) -> 70
C21: 1140 | D21: LINK_1140 | F21: NB I-39/90 | G21: on | H21: CD: on from SB US 151 | I21: =INDEX(Balancing!$L$11:$L$102,MATCH($C21,Balancing!$D$11:$D$102,0)) -> 130
C22: 1150 | D22: LINK_1150 | F22: NB I-39/90 | G22: mainline. | H22: b/n CD exit & CD entrance | I22: =INDEX(Balancing!$L$11:$L$102,MATCH($C22,Balancing!$D$11:$D$102,0)) -> 1680
C23: 1160 | D23: LINK_1160 | F23: NB I-39/90 | G23: CD | H23: on from CD | I23: =INDEX(Balancing!$L$11:$L$102,MATCH($C23,Balancing!$D$11:$D$102,0)) -> 200
C24: 1170 | D24: LINK_1170 | F24: NB I-39/90 | G24: mainline | H24: US 151 to US 51 | I24: =INDEX(Balancing!$L$11:$L$102,MATCH($C24,Balancing!$D$11:$D$102,0)) -> 1880
C25: 1180 | D25: LINK_1180 | F25: NB I-39/90 | G25: off | H25: off to US 51 | I25: =INDEX(Balancing!$L$11:$L$102,MATCH($C25,Balancing!$D$11:$D$102,0)) -> 300
C26: 1190 | D26: LINK_1190 | F26: NB I-39/90 | G26: on | H26: on from NB US 51 | I26: =INDEX(Balancing!$L$11:$L$102,MATCH($C26,Balancing!$D$11:$D$102,0)) -> 110
C27: 1200 | D27: LINK_1200 | F27: NB I-39/90 | G27: on | H27: on from SB US 51 | I27: =INDEX(Balancing!$L$11:$L$102,MATCH($C27,Balancing!$D$11:$D$102,0)) -> 40
C28: 1210 | D28: LINK_1210 | F28: NB I-39/90 | G28: mainline | H28: US 51 to WIS 19 | I28: =INDEX(Balancing!$L$11:$L$102,MATCH($C28,Balancing!$D$11:$D$102,0)) -> 1730
C29: 2000 | D29: LINK_2000 | E29: SB I-39/90 | F29: SB I-39/90 | G29: mainline | H29: WIS 19 to US 51 | I29: =INDEX(Balancing!$L$11:$L$102,MATCH($C29,Balancing!$D$11:$D$102,0)) -> 2450
C30: 2010 | D30: LINK_2010 | F30: SB I-39/90 | G30: off | H30: off to US 51 | I30: =INDEX(Balancing!$L$11:$L$102,MATCH($C30,Balancing!$D$11:$D$102,0)) -> 910
C31: 2020 | D31: LINK_2020 | F31: SB I-39/90 | G31: on | H31: on from SB US 51 | I31: =INDEX(Balancing!$L$11:$L$102,MATCH($C31,Balancing!$D$11:$D$102,0)) -> 160
C32: 2030 | D32: LINK_2030 | F32: SB I-39/90 | G32: on | H32: on from NB US 51 | I32: =INDEX(Balancing!$L$11:$L$102,MATCH($C32,Balancing!$D$11:$D$102,0)) -> 150
C33: 2040 | D33: LINK_2040 | F33: SB I-39/90 | G33: mainline | H33: US 51 to US 151 | I33: =INDEX(Balancing!$L$11:$L$102,MATCH($C33,Balancing!$D$11:$D$102,0)) -> 1850
C34: 2050 | D34: LINK_2050 | F34: SB I-39/90 | G34: CD | H34: off to US 151 CD | I34: =INDEX(Balancing!$L$11:$L$102,MATCH($C34,Balancing!$D$11:$D$102,0)) -> 400
C35: 2060 | D35: LINK_2060 | F35: SB I-39/90 | G35: off | H35: CD: off to SB US 151 | I35: =INDEX(Balancing!$L$11:$L$102,MATCH($C35,Balancing!$D$11:$D$102,0)) -> 140
C36: 2070 | D36: LINK_2070 | F36: SB I-39/90 | G36: CD | H36: CD: b/n ramps | I36: =INDEX(Balancing!$L$11:$L$102,MATCH($C36,Balancing!$D$11:$D$102,0)) -> 260
C37: 2080 | D37: LINK_2080 | F37: SB I-39/90 | G37: on | H37: CD: on from SB US 151 | I37: =INDEX(Balancing!$L$11:$L$102,MATCH($C37,Balancing!$D$11:$D$102,0)) -> 1690
C38: 2090 | D38: LINK_2090 | F38: SB I-39/90 | G38: off | H38: CD: off to NB US 151 | I38: =INDEX(Balancing!$L$11:$L$102,MATCH($C38,Balancing!$D$11:$D$102,0)) -> 260
C39: 2100 | D39: ="LINK_" & $C39 -> LINK_2100 | F39: SB I-39/90 | G39: CD | H39: CD: b/n ramps | I39: =INDEX(Balancing!$L$11:$L$102,MATCH($C39,Balancing!$D$11:$D$102,0)) -> 1690
C40: 2110 | D40: LINK_2110 | F40: SB I-39/90 | G40: on | H40: CD: on from NB US 151 | I40: =INDEX(Balancing!$L$11:$L$102,MATCH($C40,Balancing!$D$11:$D$102,0)) -> 210
C41: 2120 | D41: LINK_2120 | F41: SB I-39/90 | G41: mainline. | H41: b/n CD exit & CD entrance | I41: =INDEX(Balancing!$L$11:$L$102,MATCH($C41,Balancing!$D$11:$D$102,0)) -> 1450
C42: 2130 | D42: LINK_2130 | F42: SB I-39/90 | G42: CD | H42: on from CD | I42: =INDEX(Balancing!$L$11:$L$102,MATCH($C42,Balancing!$D$11:$D$102,0)) -> 1900
C43: 2140 | D43: LINK_2140 | F43: SB I-39/90 | G43: on | H43: on from High Crossing | I43: =INDEX(Balancing!$L$11:$L$102,MATCH($C43,Balancing!$D$11:$D$102,0)) -> 250
C44: 2150 | D44: LINK_2150 | F44: SB I-39/90 | G44: mainline | H44: US 151 to Badger | I44: =INDEX(Balancing!$L$11:$L$102,MATCH($C44,Balancing!$D$11:$D$102,0)) -> 3600
C45: 2160 | D45: LINK_2160 | F45: SB I-39/90 | G45: off | H45: off to EB I-94 | I45: =INDEX(Balancing!$L$11:$L$102,MATCH($C45,Balancing!$D$11:$D$102,0)) -> 380
C46: 2170 | D46: LINK_2170 | F46: SB I-39/90 | G46: off | H46: off to WB WIS 30 | I46: =INDEX(Balancing!$L$11:$L$102,MATCH($C46,Balancing!$D$11:$D$102,0)) -> 840
C47: 2180 | D47: LINK_2180 | F47: SB I-39/90 | G47: mainline. | H47: b/n ramps | I47: =INDEX(Balancing!$L$11:$L$102,MATCH($C47,Balancing!$D$11:$D$102,0)) -> 2380
C48: 2190 | D48: LINK_2190 | F48: SB I-39/90 | G48: on | H48: on from WB I-94 | I48: =INDEX(Balancing!$L$11:$L$102,MATCH($C48,Balancing!$D$11:$D$102,0)) -> 910
C49: 2200 | D49: LINK_2200 | F49: SB I-39/90 | G49: on | H49: on from EB WIS 30 | I49: =INDEX(Balancing!$L$11:$L$102,MATCH($C49,Balancing!$D$11:$D$102,0)) -> 240
C50: 2210 | D50: LINK_2210 | F50: SB I-39/90 | G50: mainline | H50: Badger I/C to Beltline I/C | I50: =INDEX(Balancing!$L$11:$L$102,MATCH($C50,Balancing!$D$11:$D$102,0)) -> 3530
C51: 3000 | D51: LINK_3000 | E51: NB US 151 | F51: NB US 151 | G51: mainline | H51: Frontage Rd to I-39/90/94 | I51: =INDEX(Balancing!$L$11:$L$102,MATCH($C51,Balancing!$D$11:$D$102,0)) -> 820
C52: 2110 | D52: LINK_2110 | F52: NB US 151 | G52: off | H52: off to SB I-39/90/94 | I52: =INDEX(Balancing!$L$11:$L$102,MATCH($C52,Balancing!$D$11:$D$102,0)) -> 210
C53: 2090 | D53: LINK_2090 | F53: NB US 151 | G53: on | H53: on from SB I-39/90/94 | I53: =INDEX(Balancing!$L$11:$L$102,MATCH($C53,Balancing!$D$11:$D$102,0)) -> 260
C54: 1110 | D54: LINK_1110 | F54: NB US 151 | G54: off | H54: off to NB I-39/90/94 | I54: =INDEX(Balancing!$L$11:$L$102,MATCH($C54,Balancing!$D$11:$D$102,0)) -> 70
C55: 1090 | D55: LINK_1090 | F55: NB US 151 | G55: on | H55: on from NB I-39/90/94 | I55: =INDEX(Balancing!$L$11:$L$102,MATCH($C55,Balancing!$D$11:$D$102,0)) -> 1380
C56: 3050 | D56: LINK_3050 | F56: NB US 151 | G56: mainline | H56: I-39/90/94 to American Pkwy | I56: =INDEX(Balancing!$L$11:$L$102,MATCH($C56,Balancing!$D$11:$D$102,0)) -> 2180
C57: 3060 | D57: LINK_3060 | F57: NB US 151 | G57: off | H57: off to EB American Pkwy | I57: =INDEX(Balancing!$L$11:$L$102,MATCH($C57,Balancing!$D$11:$D$102,0)) -> 130
C58: 3070 | D58: LINK_3070 | F58: NB US 151 | G58: off | H58: off to WB American Pkwy | I58: =INDEX(Balancing!$L$11:$L$102,MATCH($C58,Balancing!$D$11:$D$102,0)) -> 910
C59: 3080 | D59: LINK_3080 | F59: NB US 151 | G59: mainline. | H59: b/n ramps | I59: =INDEX(Balancing!$L$11:$L$102,MATCH($C59,Balancing!$D$11:$D$102,0)) -> 1140
C60: 3090 | D60: LINK_3090 | F60: NB US 151 | G60: on | H60: NB on from American Pkwy | I60: =INDEX(Balancing!$L$11:$L$102,MATCH($C60,Balancing!$D$11:$D$102,0)) -> 150
C61: 3100 | D61: LINK_3100 | F61: NB US 151 | G61: mainline | H61: American Pkwy to Reiner Rd | I61: =INDEX(Balancing!$L$11:$L$102,MATCH($C61,Balancing!$D$11:$D$102,0)) -> 1290
C62: 4000 | D62: LINK_4000 | E62: SB US 151 | F62: SB US 151 | G62: mainline | H62: Reiner Rd to American Pkwy | I62: =INDEX(Balancing!$L$11:$L$102,MATCH($C62,Balancing!$D$11:$D$102,0)) -> 3550
C63: 4010 | D63: LINK_4010 | F63: SB US 151 | G63: CD | H63: off to American Pkwy/High Crossing | I63: =INDEX(Balancing!$L$11:$L$102,MATCH($C63,Balancing!$D$11:$D$102,0)) -> 510
C64: 4020 | D64: LINK_4020 | F64: SB US 151 | G64: off | H64: off to WB American Pkwy | I64: =INDEX(Balancing!$L$11:$L$102,MATCH($C64,Balancing!$D$11:$D$102,0)) -> 320
C65: 4030 | D65: LINK_4030 | F65: SB US 151 | G65: off | H65: off to High Crossing | I65: =INDEX(Balancing!$L$11:$L$102,MATCH($C65,Balancing!$D$11:$D$102,0)) -> 190
C66: 4040 | D66: LINK_4040 | F66: SB US 151 | G66: on | H66: on from High Crossing | I66: =INDEX(Balancing!$L$11:$L$102,MATCH($C66,Balancing!$D$11:$D$102,0)) -> 70
C67: 4050 | D67: LINK_4050 | F67: SB US 151 | G67: mainline. | H67: b/n ramps | I67: =INDEX(Balancing!$L$11:$L$102,MATCH($C67,Balancing!$D$11:$D$102,0)) -> 3110
C68: 4060 | D68: LINK_4060 | F68: SB US 151 | G68: on | H68: on from EB American Pkwy | I68: =INDEX(Balancing!$L$11:$L$102,MATCH($C68,Balancing!$D$11:$D$102,0)) -> 290
C69: 4070 | D69: LINK_4070 | F69: SB US 151 | G69: mainline | H69: American Pkwy to I-39/90/94 | I69: =INDEX(Balancing!$L$11:$L$102,MATCH($C69,Balancing!$D$11:$D$102,0)) -> 3400
C70: 1140 | D70: LINK_1140 | F70: SB US 151 | G70: off | H70: off to NB I-39/90/94 | I70: =INDEX(Balancing!$L$11:$L$102,MATCH($C70,Balancing!$D$11:$D$102,0)) -> 130
C71: 1120 | D71: ="LINK_" & $C71 -> LINK_1120 | F71: SB US 151 | G71: on | H71: on from NB I-39/90/94 | I71: =INDEX(Balancing!$L$11:$L$102,MATCH($C71,Balancing!$D$11:$D$102,0)) -> 120
C72: 2080 | D72: LINK_2080 | F72: SB US 151 | G72: off | H72: off to SB I-39/90/94 | I72: =INDEX(Balancing!$L$11:$L$102,MATCH($C72,Balancing!$D$11:$D$102,0)) -> 1690
C73: 2060 | D73: LINK_2060 | F73: SB US 151 | G73: on | H73: on from SB I-39/90/94 | I73: =INDEX(Balancing!$L$11:$L$102,MATCH($C73,Balancing!$D$11:$D$102,0)) -> 140
C74: 4120 | D74: LINK_4120 | F74: SB US 151 | G74: mainline | H74: I-39/90/94 to Frontage Rd | I74: =INDEX(Balancing!$L$11:$L$102,MATCH($C74,Balancing!$D$11:$D$102,0)) -> 1840
C75: 5000 | D75: LINK_5000 | E75: EB WIS 30 | F75: EB WIS 30 | G75: mainline | H75: Fair Oaks to US 51 | I75: =INDEX(Balancing!$L$11:$L$102,MATCH($C75,Balancing!$D$11:$D$102,0)) -> 1380
C76: 5010 | D76: LINK_5010 | F76: EB WIS 30 | G76: off | H76: off to US 51 | I76: =INDEX(Balancing!$L$11:$L$102,MATCH($C76,Balancing!$D$11:$D$102,0)) -> 650
C77: 5020 | D77: LINK_5020 | F77: EB WIS 30 | G77: on | H77: on from US 51 | I77: =INDEX(Balancing!$L$11:$L$102,MATCH($C77,Balancing!$D$11:$D$102,0)) -> 500
C78: 5030 | D78: LINK_5030 | F78: EB WIS 30 | G78: mainline | H78: US 51 to Thompson Dr | I78: =INDEX(Balancing!$L$11:$L$102,MATCH($C78,Balancing!$D$11:$D$102,0)) -> 1230
C79: 5040 | D79: LINK_5040 | F79: EB WIS 30 | G79: off | H79: off to Thompson Dr | I79: =INDEX(Balancing!$L$11:$L$102,MATCH($C79,Balancing!$D$11:$D$102,0)) -> 270
C80: 5050 | D80: LINK_5050 | F80: EB WIS 30 | G80: mainline | H80: Thompson Dr to I-39/90 | I80: =INDEX(Balancing!$L$11:$L$102,MATCH($C80,Balancing!$D$11:$D$102,0)) -> 960
C81: 2200 | D81: LINK_2200 | F81: EB WIS 30 | G81: off | H81: off to SB I-39/90 | I81: =INDEX(Balancing!$L$11:$L$102,MATCH($C81,Balancing!$D$11:$D$102,0)) -> 240
C82: 1040 | D82: LINK_1040 | F82: EB WIS 30 | G82: off | H82: off to NB I-39/90 | I82: =INDEX(Balancing!$L$11:$L$102,MATCH($C82,Balancing!$D$11:$D$102,0)) -> 380
C83: 5080 | D83: LINK_5080 | F83: EB WIS 30 | G83: mainline | H83: EB WIS 30 to EB I-94 | I83: =INDEX(Balancing!$L$11:$L$102,MATCH($C83,Balancing!$D$11:$D$102,0)) -> 340
C84: 1020 | D84: LINK_1020 | F84: EB WIS 30 | G84: on | H84: on from NB I-39/90 | I84: =INDEX(Balancing!$L$11:$L$102,MATCH($C84,Balancing!$D$11:$D$102,0)) -> 470
C85: 2160 | D85: LINK_2160 | F85: EB WIS 30 | G85: on | H85: on from SB I-39/90/94 | I85: =INDEX(Balancing!$L$11:$L$102,MATCH($C85,Balancing!$D$11:$D$102,0)) -> 380
C86: 5110 | D86: LINK_5110 | E86: EB I-94 | F86: EB I-94 | G86: mainline | H86: Badger to County N | I86: =INDEX(Balancing!$L$11:$L$102,MATCH($C86,Balancing!$D$11:$D$102,0)) -> 1010
C87: 6000 | D87: LINK_6000 | E87: WB I-94 | F87: WB I-94 | G87: mainline | H87: County N to Badger | I87: =INDEX(Balancing!$L$11:$L$102,MATCH($C87,Balancing!$D$11:$D$102,0)) -> 2550
C88: 1050 | D88: LINK_1050 | F88: WB I-94 | G88: off | H88: off to NB I-39/90 | I88: =INDEX(Balancing!$L$11:$L$102,MATCH($C88,Balancing!$D$11:$D$102,0)) -> 700
C89: 2190 | D89: LINK_2190 | F89: WB I-94 | G89: off | H89: off to SB I-39/90 | I89: =INDEX(Balancing!$L$11:$L$102,MATCH($C89,Balancing!$D$11:$D$102,0)) -> 910
C90: 6030 | D90: LINK_6030 | E90: WB WIS 30 | F90: WB WIS 30 | G90: mainline | H90: EB I-94 to EB WIS 30 | I90: =INDEX(Balancing!$L$11:$L$102,MATCH($C90,Balancing!$D$11:$D$102,0)) -> 0
C91: 2170 | D91: LINK_2170 | F91: WB WIS 30 | G91: on | H91: on from SB I-39/90/94 | I91: =INDEX(Balancing!$L$11:$L$102,MATCH($C91,Balancing!$D$11:$D$102,0)) -> 840
C92: 1010 | D92: LINK_1010 | F92: WB WIS 30 | G92: on | H92: on from NB I-39/90 | I92: =INDEX(Balancing!$L$11:$L$102,MATCH($C92,Balancing!$D$11:$D$102,0)) -> 570
C93: 6060 | D93: LINK_6060 | F93: WB WIS 30 | G93: mainline | H93: Badger to Thompson Dr | I93: =INDEX(Balancing!$L$11:$L$102,MATCH($C93,Balancing!$D$11:$D$102,0)) -> 2350
C94: 6070 | D94: LINK_6070 | F94: WB WIS 30 | G94: on | H94: on from Thompson Dr | I94: =INDEX(Balancing!$L$11:$L$102,MATCH($C94,Balancing!$D$11:$D$102,0)) -> 1110
C95: 6080 | D95: LINK_6080 | F95: WB WIS 30 | G95: mainline | H95: Thompson Dr to US 51 | I95: =INDEX(Balancing!$L$11:$L$102,MATCH($C95,Balancing!$D$11:$D$102,0)) -> 3460
C96: 6090 | D96: LINK_6090 | F96: WB WIS 30 | G96: off | H96: off to US 51 | I96: =INDEX(Balancing!$L$11:$L$102,MATCH($C96,Balancing!$D$11:$D$102,0)) -> 1320
C97: 6100 | D97: LINK_6100 | F97: WB WIS 30 | G97: on | H97: on from US 51 | I97: =INDEX(Balancing!$L$11:$L$102,MATCH($C97,Balancing!$D$11:$D$102,0)) -> 550
C98: 6110 | D98: LINK_6110 | F98: WB WIS 30 | G98: mainline | H98: US 51 to Fair Oaks | I98: =INDEX(Balancing!$L$11:$L$102,MATCH($C98,Balancing!$D$11:$D$102,0)) -> 2690

Sheet Data Validation (hidden)
D2: Allowed values in Columns using "Data Validation" Drop-down Cells
D4: Corridor Worksheet | H4: Balancing Worksheet
D5: Affects 2+ Corridors? | E5: Type | H5: Capacity Weight
D6: Primary | E6: on | H6: Hourly
D7: Secondary | E7: off | H7: AADT
E8: CD
E9: mainline
E10: mainline.
